Workbook

Sheet Table1A List of required stocks
A1: Table1A: List of required stocks
L2: WP years | M2: 2020-2021
L3: AR year | M3: 2020
A4: MS | B4: Reference years | C4: Species | D4: Region | E4: RFMO/RFO/IO | F4: Area / Stock | G4: Selected for sampling (Y/N) | H4: Average landings in the reference years (tons) | I4: EU TAC (if any) (%) | J4: Share (%) in EU landings | K4: Threshold (Y/N) | L4: Comments | M4: Changes in species landings
A5: POL | B5: 2016-2018 | C5: Anguilla anguilla | D5: Baltic Sea (ICES areas III b-d) | E5: ICES | F5: 22-32 | G5: Y | H5: <200 | J5: 16.18486 | K5: N | L5: Shares in EU landings (column J) are based on the EU landings uploaded by MS to the FIDES database. The only exception is Coregonus lavaretus, for which data from the RDB database was used as more reliable data source.
A6: POL | B6: 2016-2018 | C6: Clupea harengus | D6: Baltic Sea (ICES areas III b-d) | E6: ICES | F6: 22-24 | G6: Y | H6: 2680 | I6: 13.01118075 | K6: N | M6: -0.7774759328
A7: POL | B7: 2016-2018 | C7: Clupea harengus | D7: Baltic Sea (ICES areas III b-d) | E7: ICES | F7: 25-29 | G7: Y | H7: 43330 | I7: 24.914169 | K7: N | M7: -0.17179437
A8: POL | B8: 2016-2018 | C8: Coregonus lavaretus | D8: Baltic Sea (ICES areas III b-d) | E8: ICES | F8: IIId | G8: N | H8: <200 | J8: 2.81040918 | K8: Y
A9: POL | B9: 2016-2018 | C9: Coregonus albula | D9: Baltic Sea (ICES areas III b-d) | E9: ICES | F9: 22-32 | G9: N | H9: None | J9: None | K9: Y
A10: POL | B10: 2016-2018 | C10: Gadus morhua | D10: Baltic Sea (ICES areas III b-d) | E10: ICES | F10: 22-24 | G10: Y | H10: 835 | I10: 11.68401742 | K10: N | M10: -0.908408982
A11: POL | B11: 2016-2018 | C11: Gadus morhua | D11: Baltic Sea (ICES areas III b-d) | E11: ICES | F11: 25-32 | G11: Y | H11: 7360 | I11: 26.45224084 | K11: N | M11: -0.9459705136
A12: POL | B12: 2016-2018 | C12: Limanda limanda | D12: Baltic Sea (ICES areas III b-d) | E12: ICES | F12: 22-32 | G12: N | H12: None | J12: None | K12: Y
A13: POL | B13: 2016-2018 | C13: Perca fluviatilis | D13: Baltic Sea (ICES areas III b-d) | E13: ICES | F13: IIId | G13: Y | H13: 850 | J13: 27.97573 | K13: N | M13: -0.5322635294
A14: POL | B14: 2016-2018 | C14: Platichthys flesus | D14: Baltic Sea (ICES areas III b-d) | E14: ICES | F14: 22-32 | G14: Y | H14: 13910 | J14: 74.96444 | K14: N | M14: -0.2096228756
A15: POL | B15: 2016-2018 | C15: Pleuronectes platessa | D15: Baltic Sea (ICES areas III b-d) | E15: ICES | F15: 22-32 | G15: Y | H15: 380 | I15: 14.99601745 | K15: N | M15: -0.1638605263
A16: POL | B16: 2016-2018 | C16: Psetta maxima | D16: Baltic Sea (ICES areas III b-d) | E16: ICES | F16: 22-32 | G16: Y | H16: <200 | J16: 22.63669 | K16: N
A17: POL | B17: 2013-2015 | C17: Salmo salar | D17: Baltic Sea (ICES areas III b-d) | E17: ICES | F17: 22-31 | G17: Y | H17: <200 | I17: 6.286138161 | K17: N
A18: POL | B18: 2016-2018 | C18: Salmo trutta | D18: Baltic Sea (ICES areas III b-d) | E18: ICES | F18: 22-32 | G18: Y | H18: 260 | J18: 78.79851 | K18: N | M18: -0.6837280769
A19: POL | B19: 2016-2018 | C19: Sander lucioperca | D19: Baltic Sea (ICES areas III b-d) | E19: ICES | F19: IIId | G19: Y | H19: 230 | J19: 35.72206 | K19: N | M19: 0.2203821739
A20: POL | B20: 2016-2018 | C20: Scophthalmus rhombus | D20: Baltic Sea (ICES areas III b-d) | E20: ICES | F20: 22-32 | G20: N | H20: None | J20: None | K20: Y
A21: POL | B21: 2016-2018 | C21: Sprattus sprattus | D21: Baltic Sea (ICES areas III b-d) | E21: ICES | F21: 22-32 | G21: Y | H21: 70725 | I21: 29.35929427 | K21: N | M21: 0.02565544008
A22: POL | B22: 2016-2018 | C22: Brosme brosme | D22: North Sea (ICES areas IIIa and IV), Eastern Arctic (ICES areas I and II) | E22: ICES | F22: I, II | G22: N | H22: <200 | I22: None | J22: 6.13636 | K22: Y
A23: POL | B23: 2016-2018 | C23: Clupea harengus | D23: North Sea (ICES areas IIIa and IV), Eastern Arctic (ICES areas I and II) | E23: ICES | F23: I, II | G23: N | H23: 330 | I23: 1.1 | J23: 1.2135193 | K23: Y
A24: POL | B24: 2016-2018 | C24: Gadus morhua | D24: North Sea (ICES areas IIIa and IV), Eastern Arctic (ICES areas I and II) | E24: ICES | F24: I, II | G24: Y | H24: 4110 | I24: 8.2 | J24: 8.6442 | K24: N | M24: -0.71086618
A25: POL | B25: 2016-2018 | C25: Melanogrammus aeglefinus | D25: North Sea (ICES areas IIIa and IV), Eastern Arctic (ICES areas I and II) | E25: ICES | F25: I, II | G25: Y | H25: <200 | I25: None | J25: 13.77288 | K25: N
A26: POL | B26: 2016-2018 | C26: Micromesistius poutassou | D26: North Sea (ICES areas IIIa and IV), Eastern Arctic (ICES areas I and II) | E26: ICES | F26: I, II | G26: N | H26: <200 | I26: None | J26: 0.46551068 | K26: Y
A27: POL | B27: 2016-2018 | C27: Pollachius virens | D27: North Sea (ICES areas IIIa and IV), Eastern Arctic (ICES areas I and II) | E27: ICES | F27: I, II | G27: Y | H27: 480 | I27: None | J27: 15.91982491 | K27: N | M27: -0.9972354167
A28: POL | B28: 2016-2018 | C28: Reinhardtius hippoglossoides | D28: North Sea (ICES areas IIIa and IV), Eastern Arctic (ICES areas I and II) | E28: ICES | F28: I, II | G28: N | H28: <200 | I28: None | J28: 2.40928 | K28: Y
A29: POL | B29: 2016-2018 | C29: Scomber scombrus | D29: North Sea (ICES areas IIIa and IV), Eastern Arctic (ICES areas I and II) | E29: ICES | F29: II | G29: N | H29: <200 | I29: None | J29: 0.00545 | K29: Y
A30: POL | B30: 2016-2018 | C30: Sebastes mentella | D30: North Sea (ICES areas IIIa and IV), Eastern Arctic (ICES areas I and II) | E30: ICES | F30: I, II | G30: N | H30: <200 | I30: None | J30: 3.16 | K30: Y
A31: POL | B31: 2016-2018 | C31: Sebastes marinus | D31: North Sea (ICES areas IIIa and IV), Eastern Arctic (ICES areas I and II) | E31: ICES | F31: I, II | G31: N | H31: <200 | I31: None | J31: 43.13 | K31: Y | L31: Average landing in 2016-2018 is 28 t (as a by-catch only). EU Landing data not available
A32: POL | B32: 2016-2018 | C32: Clupea harengus | D32: North Sea (ICES areas IIIa and IV), Eastern Arctic (ICES areas I and II) | E32: ICES | F32: IV, VIId | G32: N | H32: <200 | I32: None | J32: 0.006 | K32: Y
A33: POL | B33: 2016-2018 | C33: Micromesistius poutassou | D33: North Sea (ICES areas IIIa and IV), Eastern Arctic (ICES areas I and II) | E33: ICES | F33: IV, VIId | G33: N | H33: <200 | I33: None | J33: 1.84484 | K33: Y
A34: POL | B34: 2016-2018 | C34: Scomber scombrus | D34: North Sea (ICES areas IIIa and IV), Eastern Arctic (ICES areas I and II) | E34: ICES | F34: IV, VIId | G34: N | H34: 1345 | I34: None | J34: 0.72547 | K34: Y | M34: 0.1175040892
A35: POL | B35: 2016-2018 | C35: Micromesistius poutassou | D35: North-Western waters (ICES areas Vb (only Union waters), VI and VII) | E35: ICES | F35: I-IX, XII, XIV | G35: N | H35: 9225 | I35: None | J35: 3.59876 | K35: Y
A36: POL | B36: 2016-2018 | C36: Scomber scombrus | D36: North-Western waters (ICES areas Vb (only Union waters), VI and VII) | E36: ICES | F36: I, IIIa, IV, V, VI, VII, VIII, IX | G36: N | H36: <200 | I36: 0.4478304379 | J36: 0.00277 | K36: Y
A37: POL | B37: 2016-2018 | C37: Brachydeuterus auritus | D37: Other regions | E37: CECAF | F37: 34.3.1 | G37: N | H37: None | J37: N.A. | K37: Y | L37: Selection for sampling stemming from international obligations and based on the Multi-lateral agreement for biological data collection of pelagic fisheries in CECAF waters (http://dcf.mir.gdynia.pl/?page_id=365) and on the Sampling Protocol - “Biological Data Collection of pelagic fisheries in CECAF waters in compliance with the DCF, version 8-03-2018”. ( http://dcf.mir.gdynia.pl/?page_id=367 ).
A38: POL | B38: 2016-2018 | C38: Dentex spp. | D38: Other regions | E38: CECAF | F38: 34.3.1 | G38: N | H38: <200 | J38: N.A. | K38: Y
A39: POL | B39: 2016-2018 | C39: Engraulis encrasicolus | D39: Other regions | E39: CECAF | F39: 34.1.3 | G39: N | H39: <200 | J39: N.A. | K39: Y
A40: POL | B40: 2016-2018 | C40: Merluccius merluccius | D40: Other regions | E40: CECAF | F40: 34.1.3 | G40: N | H40: <200 | J40: N.A. | K40: Y
A41: POL | B41: 2016-2018 | C41: Merluccius merluccius | D41: Other regions | E41: CECAF | F41: 34.3.1 | G41: N | H41: <200 | J41: N.A. | K41: Y
A42: POL | B42: 2016-2018 | C42: Merluccius senegalensis | D42: Other regions | E42: CECAF | F42: 34.1.3 | G42: N | H42: None | J42: N.A. | K42: Y
A43: POL | B43: 2016-2018 | C43: Sardinella aurita | D43: Other regions | E43: CECAF | F43: 34.1.3 | G43: Y | H43: 300 | J43: N.A. | K43: N
A44: POL | B44: 2016-2018 | C44: Sardinella aurita | D44: Other regions | E44: CECAF | F44: 34.3.1 | G44: Y | H44: <200 | J44: N.A. | K44: N
A45: POL | B45: 2016-2018 | C45: Sardina pilchardus | D45: Other regions | E45: CECAF | F45: 34.1.3 | G45: Y | H45: 710 | J45: N.A. | K45: N
A46: POL | B46: 2016-2018 | C46: Scomber spp. | D46: Other regions | E46: CECAF | F46: 34.1.3 | G46: Y | H46: 3350 | J46: N.A. | K46: N
A47: POL | B47: 2016-2018 | C47: Scomber spp. | D47: Other regions | E47: CECAF | F47: 34.3.1 | G47: Y | H47: 1200 | J47: N.A. | K47: N
A48: POL | B48: 2016-2018 | C48: Sparus spp. | D48: Other regions | E48: CECAF | F48: 34.1.3 | G48: N | H48: <200 | J48: N.A. | K48: Y
A49: POL | B49: 2016-2018 | C49: Trachurus trachurus | D49: Other regions | E49: CECAF | F49: 34.1.3 | G49: Y | H49: 5135 | J49: N.A. | K49: N
A50: POL | B50: 2016-2018 | C50: Trachurus trachurus | D50: Other regions | E50: CECAF | F50: 34.3.1 | G50: Y | H50: 2240 | J50: N.A. | K50: N
A51: POL | B51: 2016-2018 | C51: Trachurus murphyi | D51: Other regions | E51: SPRFMO | F51: SPRFMO Convention Area | G51: Y | H51: 895 | I51: 30.08997897 | J51: N.A. | K51: N | L51: Selection for sampling stemming from international obligations and based on the Multilateral Agreement for biological data collection of pelagic fisheries in SPRFMO waters (http://dcf.mir.gdynia.pl/?page_id=365) and according to the SPRFMO requirements ("CMM 01-2019; Conservation and Management Measure for Trachurus Murphyi") - https://www.sprfmo.int/assets/Fisheries/Conservation-and-Management-Measures/2019-CMMs/CMM-01-2019-5Mar2019.pdf | M51: No EU fishing activity in SPRFMO area in 2020

Sheet Table1B Planning of sampling
A1: Table 1B: Planning of sampling for biological variables
R2: WP years | Y2: 2020-2021
R3: AR year | Y3: 2020
A4: MS | B4: Species | C4: Region | D4: RFMO/RFO/IO | E4: Area / Stock | F4: Frequency | G4: Length | J4: Age | M4: Weight | P4: Sex ratio | S4: Sexual maturity | V4: Fecundity | Y4: Comments
G5: 2019 | H5: 2020 | I5: 2021 | J5: 2019 | K5: 2020 | L5: 2021 | M5: 2019 | N5: 2020 | O5: 2021 | P5: 2019 | Q5: 2020 | R5: 2021 | S5: 2019 | T5: 2020 | U5: 2021 | V5: 2019 | W5: 2020 | X5: 2021
A6: POL | B6: Anguilla anguilla | C6: Baltic Sea (ICES areas III b-d) | D6: ICES | E6: 22-32 | F6: A | H6: X | I6: X | K6: X | L6: X | N6: X | O6: X | Q6: X | R6: X
A7: POL | B7: Clupea harengus | C7: Baltic Sea (ICES areas III b-d) | D7: ICES | E7: 22-24 | F7: Q | H7: X | I7: X | K7: X | L7: X | N7: X | O7: X | Q7: X | R7: X | T7: X | U7: X
A8: POL | B8: Clupea harengus | C8: Baltic Sea (ICES areas III b-d) | D8: ICES | E8: 25-29 | F8: Q | H8: X | I8: X | K8: X | L8: X | N8: X | O8: X | Q8: X | R8: X | T8: X | U8: X
A9: POL | B9: Gadus morhua | C9: Baltic Sea (ICES areas III b-d) | D9: ICES | E9: 22-24 | F9: Q | H9: X | I9: X | K9: X | L9: X | N9: X | O9: X | Q9: X | R9: X | T9: X | U9: X
A10: POL | B10: Gadus morhua | C10: Baltic Sea (ICES areas III b-d) | D10: ICES | E10: 25-32 | F10: Q | H10: X | I10: X | K10: X | L10: X | N10: X | O10: X | Q10: X | R10: X | T10: X | U10: X
A11: POL | B11: Perca fluviatilis | C11: Baltic Sea (ICES areas III b-d) | D11: ICES | E11: IIId | F11: A | H11: X | I11: X | K11: X | L11: X | N11: X | O11: X | Q11: X | R11: X | T11: X | U11: X
A12: POL | B12: Platichthys flesus | C12: Baltic Sea (ICES areas III b-d) | D12: ICES | E12: 22-32 | F12: Q | H12: X | I12: X | K12: X | L12: X | N12: X | O12: X | Q12: X | R12: X | T12: X | U12: X
A13: POL | B13: Pleuronectes platessa | C13: Baltic Sea (ICES areas III b-d) | D13: ICES | E13: 22-32 | F13: Q | H13: X | I13: X | K13: X | L13: X | N13: X | O13: X | Q13: X | R13: X | T13: X | U13: X
A14: POL | B14: Psetta maxima | C14: Baltic Sea (ICES areas III b-d) | D14: ICES | E14: 22-32 | F14: Q | H14: X | I14: X | K14: X | L14: X | N14: X | O14: X | Q14: X | R14: X | T14: X | U14: X
A15: POL | B15: Salmo salar | C15: Baltic Sea (ICES areas III b-d) | D15: ICES | E15: 22-31 | F15: A | H15: X | I15: X | K15: X | L15: X | N15: X | O15: X | Q15: X | R15: X
A16: POL | B16: Salmo trutta | C16: Baltic Sea (ICES areas III b-d) | D16: ICES | E16: 22-32 | F16: A | H16: X | I16: X | K16: X | L16: X | N16: X | O16: X | Q16: X | R16: X
A17: POL | B17: Sander lucioperca | C17: Baltic Sea (ICES areas III b-d) | D17: ICES | E17: IIId | F17: A | H17: X | I17: X | K17: X | L17: X | N17: X | O17: X | Q17: X | R17: X | T17: X | U17: X
A18: POL | B18: Sprattus sprattus | C18: Baltic Sea (ICES areas III b-d) | D18: ICES | E18: 22-32 | F18: Q | H18: X | I18: X | K18: X | L18: X | N18: X | O18: X | Q18: X | R18: X | T18: X | U18: X
A19: POL | B19: Gadus morhua | C19: North Sea (ICES areas IIIa and IV), Eastern Arctic (ICES areas I and II) | D19: ICES | E19: I, II | F19: A | H19: X | I19: X | K19: X | L19: X | N19: X | O19: X | Q19: X | R19: X | T19: X | U19: X
A20: POL | B20: Melanogrammus aeglefinus | C20: North Sea (ICES areas IIIa and IV), Eastern Arctic (ICES areas I and II) | D20: ICES | E20: I, II | F20: A | H20: X | I20: X | K20: X | L20: X | N20: X | O20: X | Q20: X | R20: X | T20: X | U20: X
A21: POL | B21: Pollachius virens | C21: North Sea (ICES areas IIIa and IV), Eastern Arctic (ICES areas I and II) | D21: ICES | E21: I, II | F21: A | H21: X | I21: X | K21: X | L21: X | N21: X | O21: X | Q21: X | R21: X | T21: X | U21: X
A22: POL | B22: Sardinella aurita | C22: Other regions | D22: CECAF | E22: 34.1.3 | F22: Q | H22: X | I22: X | K22: X | L22: X | N22: X | O22: X | Q22: X | R22: X | T22: X | U22: X
A23: POL | B23: Sardinella aurita | C23: Other regions | D23: CECAF | E23: 34.3.1 | F23: Q | H23: X | I23: X | K23: X | L23: X | N23: X | O23: X | Q23: X | R23: X | T23: X | U23: X
A24: POL | B24: Sardina pilchardus | C24: Other regions | D24: CECAF | E24: 34.1.3 | F24: Q | H24: X | I24: X | K24: X | L24: X | N24: X | O24: X | Q24: X | R24: X | T24: X | U24: X
A25: POL | B25: Scomber spp. | C25: Other regions | D25: CECAF | E25: 34.1.3 | F25: Q | H25: X | I25: X | K25: X | L25: X | N25: X | O25: X | Q25: X | R25: X | T25: X | U25: X
A26: POL | B26: Scomber spp. | C26: Other regions | D26: CECAF | E26: 34.3.1 | F26: Q | H26: X | I26: X | K26: X | L26: X | N26: X | O26: X | Q26: X | R26: X | T26: X | U26: X
A27: POL | B27: Trachurus trachurus | C27: Other regions | D27: CECAF | E27: 34.1.3 | F27: Q | H27: X | I27: X | K27: X | L27: X | N27: X | O27: X | Q27: X | R27: X | T27: X | U27: X
A28: POL | B28: Trachurus trachurus | C28: Other regions | D28: CECAF | E28: 34.3.1 | F28: Q | H28: X | I28: X | K28: X | L28: X | N28: X | O28: X | Q28: X | R28: X | T28: X | U28: X
A29: POL | B29: Trachurus murphyi | C29: Other regions | D29: SPRFMO | E29: SPRFMO Convention Area | F29: A | H29: X | I29: X | K29: X | L29: X | N29: X | O29: X | Q29: X | R29: X | T29: X | U29: X

Sheet Table1C Sampling intensity
A1: Table 1C: Sampling intensity for biological variables
P2: WP years | Q2: 2020-2021
P3: AR year | Q3: 2020
A4: MS | B4: MS partcipating in sampling | C4: Sampling year | D4: Species | E4: Region | F4: RFMO/RFO/IO | G4: Area / Stock | H4: Variables | I4: Data sources | J4: Planned minimum no of individuals to be measured at the national level | K4: Planned minimum no of individuals to be measured at the regional level | L4: Comments | M4: Achieved number of individuals measured at the national level | N4: % of achievement (100*M/J) | O4: Achieved number of samples | P4: Sampling protocol | Q4: AR Comments
A5: POL | B5: POL | C5: 2020-2021 | D5: Anguilla anguilla | E5: Baltic Sea (ICES areas III b-d) | F5: ICES | G5: 22-32 | H5: length | I5: Commercial | J5: all fish caught per haul | K5: NA | M5: 520 | N5: 95.2283 | O5: 14 | P5: all fish caught per haul
A6: POL | B6: POL | C6: 2020-2021 | D6: Anguilla anguilla | E6: Baltic Sea (ICES areas III b-d) | F6: ICES | G6: 22-32 | H6: age | I6: Commercial | J6: 200 per eel management unit | K6: NA | M6: 390 | N6: 98 | O6: 6 | P6: 200 per eel management unit
A7: POL | B7: POL | C7: 2020-2021 | D7: Anguilla anguilla | E7: Baltic Sea (ICES areas III b-d) | F7: ICES | G7: 22-32 | H7: weight | I7: Commercial | J7: 200 per eel management unit | K7: NA | M7: 390 | N7: 98 | O7: 6 | P7: 200 per eel management unit
A8: POL | B8: POL | C8: 2020-2021 | D8: Anguilla anguilla | E8: Baltic Sea (ICES areas III b-d) | F8: ICES | G8: 22-32 | H8: sex ratio | I8: Commercial | J8: 200 per eel management unit | K8: NA | M8: 390 | N8: 98 | O8: 6 | P8: 200 per eel management unit
A9: POL | B9: POL | C9: 2020-2021 | D9: Anguilla anguilla | E9: Baltic Sea (ICES areas III b-d) | F9: ICES | G9: 22-32 | H9: length | I9: Surveys | J9: all fish caught per haul | K9: NA | M9: 412 | N9: 100 | O9: 140 | P9: all fish caught per haul
A10: POL | B10: POL | C10: 2020-2021 | D10: Anguilla anguilla | E10: Baltic Sea (ICES areas III b-d) | F10: ICES | G10: 22-32 | H10: age | I10: Surveys | J10: all fish caught per haul | K10: NA | M10: 412 | N10: 100 | O10: 140 | P10: all fish caught per haul
A11: POL | B11: POL | C11: 2020-2021 | D11: Anguilla anguilla | E11: Baltic Sea (ICES areas III b-d) | F11: ICES | G11: 22-32 | H11: weight | I11: Surveys | J11: all fish caught per haul | K11: NA | M11: 412 | N11: 100 | O11: 140 | P11: all fish caught per haul
A12: POL | B12: POL | C12: 2020-2021 | D12: Anguilla anguilla | E12: Baltic Sea (ICES areas III b-d) | F12: ICES | G12: 22-32 | H12: sex ratio | I12: Surveys | J12: all fish caught per haul | K12: NA | M12: 412 | N12: 100 | O12: 140 | P12: all fish caught per haul
A13: POL | B13: POL | C13: 2020-2021 | D13: Clupea harengus | E13: Baltic Sea (ICES areas III b-d) | F13: ICES | G13: 22-24 | H13: length | I13: Commercial at sea | J13: 200 fish per haul | K13: NA | M13: 422 | N13: 105.5 | O13: 6 | P13: 200 fish per haul
A14: POL | B14: POL | C14: 2020-2021 | D14: Clupea harengus | E14: Baltic Sea (ICES areas III b-d) | F14: ICES | G14: 22-24 | H14: age | I14: Commercial at sea | J14: 4 per 0.5 cm per haul | K14: NA | M14: 128 | N14: 113.2743363 | O14: 5 | P14: 4 per 0.5 cm per haul
A15: POL | B15: POL | C15: 2020-2021 | D15: Clupea harengus | E15: Baltic Sea (ICES areas III b-d) | F15: ICES | G15: 22-24 | H15: weight | I15: Commercial at sea | J15: 4 per 0.5 cm per haul | K15: NA | M15: 128 | N15: 113.2743363 | O15: 5 | P15: 4 per 0.5 cm per haul
A16: POL | B16: POL | C16: 2020-2021 | D16: Clupea harengus | E16: Baltic Sea (ICES areas III b-d) | F16: ICES | G16: 22-24 | H16: sex ratio | I16: Commercial at sea | J16: 4 per 0.5 cm per haul | K16: NA | M16: 128 | N16: 113.2743363 | O16: 5 | P16: 4 per 0.5 cm per haul
A17: POL | B17: POL | C17: 2020-2021 | D17: Clupea harengus | E17: Baltic Sea (ICES areas III b-d) | F17: ICES | G17: 22-24 | H17: sexual maturity | I17: Commercial at sea | J17: 4 per 0.5 cm per haul | K17: NA | M17: 128 | N17: 113.2743363 | O17: 5 | P17: 4 per 0.5 cm per haul
A18: POL | B18: POL | C18: 2020-2021 | D18: Clupea harengus | E18: Baltic Sea (ICES areas III b-d) | F18: ICES | G18: 22-24 | H18: length | I18: Commercial on shore | J18: 200 fish from the last haul | K18: NA | M18: 2030 | N18: 112.7777778 | O18: 12 | P18: 200 fish from the last haul
A19: POL | B19: POL | C19: 2020-2021 | D19: Clupea harengus | E19: Baltic Sea (ICES areas III b-d) | F19: ICES | G19: 22-24 | H19: age | I19: Commercial on shore | J19: 4 per 0.5 cm from the last haul | K19: NA | M19: 667 | N19: 118.8948307 | O19: 12 | P19: 4 per 0.5 cm from the last haul
A20: POL | B20: POL | C20: 2020-2021 | D20: Clupea harengus | E20: Baltic Sea (ICES areas III b-d) | F20: ICES | G20: 22-24 | H20: weight | I20: Commercial on shore | J20: 4 per 0.5 cm from the last haul | K20: NA | M20: 667 | N20: 118.8948307 | O20: 12 | P20: 4 per 0.5 cm from the last haul
A21: POL | B21: POL | C21: 2020-2021 | D21: Clupea harengus | E21: Baltic Sea (ICES areas III b-d) | F21: ICES | G21: 22-24 | H21: sex ratio | I21: Commercial on shore | J21: 4 per 0.5 cm from the last haul | K21: NA | M21: 667 | N21: 118.8948307 | O21: 12 | P21: 4 per 0.5 cm from the last haul
A22: POL | B22: POL | C22: 2020-2021 | D22: Clupea harengus | E22: Baltic Sea (ICES areas III b-d) | F22: ICES | G22: 22-24 | H22: sexual maturity | I22: Commercial on shore | J22: 4 per 0.5 cm from the last haul | K22: NA | M22: 667 | N22: 118.8948307 | O22: 12 | P22: 4 per 0.5 cm from the last haul
A23: POL | B23: POL | C23: 2020-2021 | D23: Clupea harengus | E23: Baltic Sea (ICES areas III b-d) | F23: ICES | G23: 22-24 | H23: length | I23: Surveys | J23: 200 fish per haul | K23: NA | L23: According to IBAS & BITS Surveys Manuals ( http://dcf.mir.gdynia.pl/?page_id=367 ) | M23: 0 | N23: 0 | O23: 0 | P23: 200 fish per haul | Q23: No control fish hauls selected by WGBIFS in 22-24
A24: POL | B24: POL | C24: 2020-2021 | D24: Clupea harengus | E24: Baltic Sea (ICES areas III b-d) | F24: ICES | G24: 22-24 | H24: age | I24: Surveys | J24: 5-10 per 0.5 cm per haul | K24: NA | M24: 0 | N24: 0 | O24: 0 | P24: 5-10 per 0.5 cm per haul | Q24: No control fish hauls selected by WGBIFS in 22-24
A25: POL | B25: POL | C25: 2020-2021 | D25: Clupea harengus | E25: Baltic Sea (ICES areas III b-d) | F25: ICES | G25: 22-24 | H25: weight | I25: Surveys | J25: 5-10 per 0.5 cm per haul | K25: NA | M25: 0 | N25: 0 | O25: 0 | P25: 5-10 per 0.5 cm per haul | Q25: No control fish hauls selected by WGBIFS in 22-24
A26: POL | B26: POL | C26: 2020-2021 | D26: Clupea harengus | E26: Baltic Sea (ICES areas III b-d) | F26: ICES | G26: 22-24 | H26: sex ratio | I26: Surveys | J26: 5-10 per 0.5 cm per haul | K26: NA | M26: 0 | N26: 0 | O26: 0 | P26: 5-10 per 0.5 cm per haul | Q26: No control fish hauls selected by WGBIFS in 22-24
A27: POL | B27: POL | C27: 2020-2021 | D27: Clupea harengus | E27: Baltic Sea (ICES areas III b-d) | F27: ICES | G27: 22-24 | H27: sexual maturity | I27: Surveys | J27: 5-10 per 0.5 cm per haul | K27: NA | M27: 0 | N27: 0 | O27: 0 | P27: 5-10 per 0.5 cm per haul | Q27: No control fish hauls selected by WGBIFS in 22-24
A28: POL | B28: POL | C28: 2020-2021 | D28: Clupea harengus | E28: Baltic Sea (ICES areas III b-d) | F28: ICES | G28: 25-29 | H28: length | I28: Commercial at sea | J28: 200 fish per haul | K28: NA | M28: 299 | N28: 29.9 | O28: 7 | P28: 200 fish per haul | Q28: Reasons for undersampling - COVID related and ban on fisheries. No sea samples from fishery targetting Herring (Clupea harengus). Only 5 samples from fishery targetting Sprat (Sprattus sprattus). See Text Box 1C for comments
A29: POL | B29: POL | C29: 2020-2021 | D29: Clupea harengus | E29: Baltic Sea (ICES areas III b-d) | F29: ICES | G29: 25-29 | H29: age | I29: Commercial at sea | J29: 4 per 0.5 cm per haul per ICES Sub-Diivision | K29: NA | M29: 53 | N29: 50.96153846 | O29: 2 | P29: 4 per 0.5 cm per haul per ICES Sub-Diivision | Q29: Reasons for undersampling - COVID related and ban on fisheries. No sea samples from fishery targetting Herring (Clupea harengus). Only 5 samples from fishery targetting Sprat (Sprattus sprattus). See Text Box 1C for comments
A30: POL | B30: POL | C30: 2020-2021 | D30: Clupea harengus | E30: Baltic Sea (ICES areas III b-d) | F30: ICES | G30: 25-29 | H30: weight | I30: Commercial at sea | J30: 4 per 0.5 cm per haul per ICES Sub-Diivision | K30: NA | M30: 53 | N30: 50.96153846 | O30: 2 | P30: 4 per 0.5 cm per haul per ICES Sub-Diivision | Q30: Reasons for undersampling - COVID related and ban on fisheries. No sea samples from fishery targetting Herring (Clupea harengus). Only 5 samples from fishery targetting Sprat (Sprattus sprattus). See Text Box 1C for comments
A31: POL | B31: POL | C31: 2020-2021 | D31: Clupea harengus | E31: Baltic Sea (ICES areas III b-d) | F31: ICES | G31: 25-29 | H31: sex ratio | I31: Commercial at sea | J31: 4 per 0.5 cm per haul per ICES Sub-Diivision | K31: NA | M31: 53 | N31: 50.96153846 | O31: 2 | P31: 4 per 0.5 cm per haul per ICES Sub-Diivision | Q31: Reasons for undersampling - COVID related and ban on fisheries. No sea samples from fishery targetting Herring (Clupea harengus). Only 5 samples from fishery targetting Sprat (Sprattus sprattus). See Text Box 1C for comments
A32: POL | B32: POL | C32: 2020-2021 | D32: Clupea harengus | E32: Baltic Sea (ICES areas III b-d) | F32: ICES | G32: 25-29 | H32: sexual maturity | I32: Commercial at sea | J32: 4 per 0.5 cm per haul per ICES Sub-Diivision | K32: NA | M32: 53 | N32: 50.96153846 | O32: 2 | P32: 4 per 0.5 cm per haul per ICES Sub-Diivision | Q32: Reasons for undersampling - COVID related and ban on fisheries. No sea samples from fishery targetting Herring (Clupea harengus). Only 5 samples from fishery targetting Sprat (Sprattus sprattus). See Text Box 1C for comments
A33: POL | B33: POL | C33: 2020-2021 | D33: Clupea harengus | E33: Baltic Sea (ICES areas III b-d) | F33: ICES | G33: 25-29 | H33: length | I33: Commercial on shore | J33: 200 fish from the last haul | K33: NA | M33: 6151 | N33: 123.02 | O33: 31 | P33: 200 fish from the last haul
A34: POL | B34: POL | C34: 2020-2021 | D34: Clupea harengus | E34: Baltic Sea (ICES areas III b-d) | F34: ICES | G34: 25-29 | H34: age | I34: Commercial on shore | J34: 4 per 0.5 cm from the last haul | K34: NA | M34: 1807 | N34: 109.0525045 | O34: 28 | P34: 4 per 0.5 cm from the last haul
A35: POL | B35: POL | C35: 2020-2021 | D35: Clupea harengus | E35: Baltic Sea (ICES areas III b-d) | F35: ICES | G35: 25-29 | H35: weight | I35: Commercial on shore | J35: 4 per 0.5 cm from the last haul | K35: NA | M35: 1807 | N35: 109.0525045 | O35: 28 | P35: 4 per 0.5 cm from the last haul
A36: POL | B36: POL | C36: 2020-2021 | D36: Clupea harengus | E36: Baltic Sea (ICES areas III b-d) | F36: ICES | G36: 25-29 | H36: sex ratio | I36: Commercial on shore | J36: 4 per 0.5 cm from the last haul | K36: NA | M36: 1807 | N36: 109.0525045 | O36: 28 | P36: 4 per 0.5 cm from the last haul
A37: POL | B37: POL | C37: 2020-2021 | D37: Clupea harengus | E37: Baltic Sea (ICES areas III b-d) | F37: ICES | G37: 25-29 | H37: sexual maturity | I37: Commercial on shore | J37: 4 per 0.5 cm from the last haul | K37: NA | M37: 1807 | N37: 109.0525045 | O37: 28 | P37: 4 per 0.5 cm from the last haul
A38: POL | B38: POL | C38: 2020-2021 | D38: Clupea harengus | E38: Baltic Sea (ICES areas III b-d) | F38: ICES | G38: 25-29 | H38: length | I38: Surveys | J38: 200 fish per haul | K38: NA | L38: According to IBAS & BITS Surveys Manuals (http://dcf.mir.gdynia.pl/?page_id=367 ) | M38: 23969 | N38: 89.83359431 | O38: 155 | P38: 200 fish per haul
A39: POL | B39: POL | C39: 2020-2021 | D39: Clupea harengus | E39: Baltic Sea (ICES areas III b-d) | F39: ICES | G39: 25-29 | H39: age | I39: Surveys | J39: 5-10 per 0.5 cm per haul | K39: NA | M39: 3042 | N39: 136.0465116 | O39: 119 | P39: 5-10 per 0.5 cm per haul
A40: POL | B40: POL | C40: 2020-2021 | D40: Clupea harengus | E40: Baltic Sea (ICES areas III b-d) | F40: ICES | G40: 25-29 | H40: weight | I40: Surveys | J40: 5-10 per 0.5 cm per haul | K40: NA | M40: 3042 | N40: 136.0465116 | O40: 119 | P40: 5-10 per 0.5 cm per haul
A41: POL | B41: POL | C41: 2020-2021 | D41: Clupea harengus | E41: Baltic Sea (ICES areas III b-d) | F41: ICES | G41: 25-29 | H41: sex ratio | I41: Surveys | J41: 5-10 per 0.5 cm per haul | K41: NA | M41: 3042 | N41: 136.0465116 | O41: 119 | P41: 5-10 per 0.5 cm per haul
A42: POL | B42: POL | C42: 2020-2021 | D42: Clupea harengus | E42: Baltic Sea (ICES areas III b-d) | F42: ICES | G42: 25-29 | H42: sexual maturity | I42: Surveys | J42: 5-10 per 0.5 cm per haul | K42: NA | M42: 3042 | N42: 136.0465116 | O42: 119 | P42: 5-10 per 0.5 cm per haul
A43: POL | B43: POL | C43: 2020-2021 | D43: Gadus morhua | E43: Baltic Sea (ICES areas III b-d) | F43: ICES | G43: 22-24 | H43: length | I43: Commercial at sea | J43: 5 boxes per haul | K43: NA | M43: 160 | N43: 10.35866667 | O43: 6 | P43: 5 boxes per haul | Q43: Reasons for undersampling - COVID related and ban on fisheries. No sea samples from fishery targetting Cod (Gadus morhua). Only 6 samples from fishery targetting Flounder (Platichthys flesus) and Perch (Perca fluviatilis). See Text Box 1C for comments
A44: POL | B44: POL | C44: 2020-2021 | D44: Gadus morhua | E44: Baltic Sea (ICES areas III b-d) | F44: ICES | G44: 22-24 | H44: age | I44: Commercial at sea | J44: 5 per 1cm | K44: NA | M44: 10 | N44: 7.8125 | O44: 1 | P44: 5 per 1cm | Q44: Reasons for undersampling - COVID related and ban on fisheries. No sea samples from fishery targetting Cod (Gadus morhua). Only one sample from fishery targetting Flounder (Platichthys flesus). See Text Box 1C for comments
A45: POL | B45: POL | C45: 2020-2021 | D45: Gadus morhua | E45: Baltic Sea (ICES areas III b-d) | F45: ICES | G45: 22-24 | H45: weight | I45: Commercial at sea | J45: 5 per 1cm | K45: NA | M45: 10 | N45: 7.8125 | O45: 1 | P45: 5 per 1cm | Q45: Reasons for undersampling - COVID related and ban on fisheries. No sea samples from fishery targetting Cod (Gadus morhua). Only one sample from fishery targetting Flounder (Platichthys flesus). See Text Box 1C for comments
A46: POL | B46: POL | C46: 2020-2021 | D46: Gadus morhua | E46: Baltic Sea (ICES areas III b-d) | F46: ICES | G46: 22-24 | H46: sex ratio | I46: Commercial at sea | J46: 5 per 1cm | K46: NA | M46: 10 | N46: 7.8125 | O46: 1 | P46: 5 per 1cm | Q46: Reasons for undersampling - COVID related and ban on fisheries. No sea samples from fishery targetting Cod (Gadus morhua). Only one sample from fishery targetting Flounder (Platichthys flesus). See Text Box 1C for comments
A47: POL | B47: POL | C47: 2020-2021 | D47: Gadus morhua | E47: Baltic Sea (ICES areas III b-d) | F47: ICES | G47: 22-24 | H47: sexual maturity | I47: Commercial at sea | J47: 5 per 1cm | K47: NA | M47: 10 | N47: 7.8125 | O47: 1 | P47: 5 per 1cm | Q47: Reasons for undersampling - COVID related and ban on fisheries. No sea samples from fishery targetting Cod (Gadus morhua). Only one sample from fishery targetting Flounder (Platichthys flesus). See Text Box 1C for comments
A48: POL | B48: POL | C48: 2020-2021 | D48: Gadus morhua | E48: Baltic Sea (ICES areas III b-d) | F48: ICES | G48: 22-24 | H48: length | I48: Commercial on shore | J48: 2 boxes from the last haul | K48: NA | M48: 1 | N48: 0.04 | O48: 1 | P48: 2 boxes from the last haul | Q48: Reasons for undersampling - COVID related and ban on fisheries. No samples from fishery targetting Cod (Gadus morhua). Only one sample from fishery targetting Sprat (Sprattus sprattus). See Text Box 1C for comments
A49: POL | B49: POL | C49: 2020-2021 | D49: Gadus morhua | E49: Baltic Sea (ICES areas III b-d) | F49: ICES | G49: 22-24 | H49: age | I49: Commercial on shore | J49: 4 per 1 cm | K49: NA | M49: 0 | N49: 0 | O49: 0 | P49: 4 per 1 cm | Q49: Reasons for undersampling - COVID related and ban on fisheries. No single sample available from landings from commercial. See Text Box 1C for comments
A50: POL | B50: POL | C50: 2020-2021 | D50: Gadus morhua | E50: Baltic Sea (ICES areas III b-d) | F50: ICES | G50: 22-24 | H50: weight | I50: Commercial on shore | J50: 4 per 1 cm | K50: NA | M50: 0 | N50: 0 | O50: 0 | P50: 4 per 1 cm | Q50: Reasons for undersampling - COVID related and ban on fisheries. No single sample available from landings from commercial. See Text Box 1C for comments
A51: POL | B51: POL | C51: 2020-2021 | D51: Gadus morhua | E51: Baltic Sea (ICES areas III b-d) | F51: ICES | G51: 22-24 | H51: sex ratio | I51: Commercial on shore | J51: 4 per 1 cm | K51: NA | M51: 0 | N51: 0 | O51: 0 | P51: 4 per 1 cm | Q51: Reasons for undersampling - COVID related and ban on fisheries. No single sample available from landings from commercial. See Text Box 1C for comments
A52: POL | B52: POL | C52: 2020-2021 | D52: Gadus morhua | E52: Baltic Sea (ICES areas III b-d) | F52: ICES | G52: 22-24 | H52: sexual maturity | I52: Commercial on shore | J52: 4 per 1 cm | K52: NA | M52: 0 | N52: 0 | O52: 0 | P52: 4 per 1 cm | Q52: Reasons for undersampling - COVID related and ban on fisheries. No single sample available from landings from commercial. See Text Box 1C for comments
A53: POL | B53: POL | C53: 2020-2021 | D53: Gadus morhua | E53: Baltic Sea (ICES areas III b-d) | F53: ICES | G53: 22-24 | H53: length | I53: Surveys | J53: 5 boxes per haul | K53: NA | L53: According to IBAS & BITS Surveys Manuals (http://dcf.mir.gdynia.pl/?page_id=367 ) | M53: 0 | N53: 0 | O53: 0 | P53: 5 boxes per haul | Q53: No control fish hauls selected by WGBIFS in 22-24
A54: POL | B54: POL | C54: 2020-2021 | D54: Gadus morhua | E54: Baltic Sea (ICES areas III b-d) | F54: ICES | G54: 22-24 | H54: age | I54: Surveys | J54: 5 per 1cm | K54: NA | M54: 0 | N54: 0 | O54: 0 | P54: 5 per 1cm | Q54: No control fish hauls selected by WGBIFS in 22-24
A55: POL | B55: POL | C55: 2020-2021 | D55: Gadus morhua | E55: Baltic Sea (ICES areas III b-d) | F55: ICES | G55: 22-24 | H55: weight | I55: Surveys | J55: 5 per 1cm | K55: NA | M55: 0 | N55: 0 | O55: 0 | P55: 5 per 1cm | Q55: No control fish hauls selected by WGBIFS in 22-24
A56: POL | B56: POL | C56: 2020-2021 | D56: Gadus morhua | E56: Baltic Sea (ICES areas III b-d) | F56: ICES | G56: 22-24 | H56: sex ratio | I56: Surveys | J56: 5 per 1cm | K56: NA | M56: 0 | N56: 0 | O56: 0 | P56: 5 per 1cm | Q56: No control fish hauls selected by WGBIFS in 22-24
A57: POL | B57: POL | C57: 2020-2021 | D57: Gadus morhua | E57: Baltic Sea (ICES areas III b-d) | F57: ICES | G57: 22-24 | H57: sexual maturity | I57: Surveys | J57: 5 per 1cm | K57: NA | M57: 0 | N57: 0 | O57: 0 | P57: 5 per 1cm | Q57: No control fish hauls selected by WGBIFS in 22-24
A58: POL | B58: POL | C58: 2020-2021 | D58: Gadus morhua | E58: Baltic Sea (ICES areas III b-d) | F58: ICES | G58: 25-32 | H58: length | I58: Commercial at sea | J58: 5 boxes per haul | K58: NA | M58: 34 | N58: 2.310666667 | O58: 6 | P58: 5 boxes per haul | Q58: Reasons for undersampling - COVID related and ban on fisheries. No sea samples from fishery targetting Cod (Gadus morhua). Only 6 samples from fishery targetting Flounder (Platichthys flesus), Sprat (Sprattus sprattus) and Sea trout (Salmo trutta). See Text Box 1C for comments
A59: POL | B59: POL | C59: 2020-2021 | D59: Gadus morhua | E59: Baltic Sea (ICES areas III b-d) | F59: ICES | G59: 25-32 | H59: age | I59: Commercial at sea | J59: 5 per 1cm | K59: NA | M59: 2 | N59: 5.882352941 | O59: 1 | P59: 5 per 1cm | Q59: Reasons for undersampling - COVID related and ban on fisheries. No sea samples from fishery targetting Cod (Gadus morhua). Only one sample from fishery targetting Flounder (Platichthys flesus). See Text Box 1C for comments
A60: POL | B60: POL | C60: 2020-2021 | D60: Gadus morhua | E60: Baltic Sea (ICES areas III b-d) | F60: ICES | G60: 25-32 | H60: weight | I60: Commercial at sea | J60: 5 per 1cm | K60: NA | M60: 2 | N60: 5.882352941 | O60: 1 | P60: 5 per 1cm | Q60: Reasons for undersampling - COVID related and ban on fisheries. No sea samples from fishery targetting Cod (Gadus morhua). Only one sample from fishery targetting Flounder (Platichthys flesus). See Text Box 1C for comments
A61: POL | B61: POL | C61: 2020-2021 | D61: Gadus morhua | E61: Baltic Sea (ICES areas III b-d) | F61: ICES | G61: 25-32 | H61: sex ratio | I61: Commercial at sea | J61: 5 per 1cm | K61: NA | M61: 2 | N61: 5.882352941 | O61: 1 | P61: 5 per 1cm | Q61: Reasons for undersampling - COVID related and ban on fisheries. No sea samples from fishery targetting Cod (Gadus morhua). Only one sample from fishery targetting Flounder (Platichthys flesus). See Text Box 1C for comments
A62: POL | B62: POL | C62: 2020-2021 | D62: Gadus morhua | E62: Baltic Sea (ICES areas III b-d) | F62: ICES | G62: 25-32 | H62: sexual maturity | I62: Commercial at sea | J62: 5 per 1cm | K62: NA | M62: 2 | N62: 5.882352941 | O62: 1 | P62: 5 per 1cm | Q62: Reasons for undersampling - COVID related and ban on fisheries. No sea samples from fishery targetting Cod (Gadus morhua). Only one sample from fishery targetting Flounder (Platichthys flesus). See Text Box 1C for comments
A63: POL | B63: POL | C63: 2020-2021 | D63: Gadus morhua | E63: Baltic Sea (ICES areas III b-d) | F63: ICES | G63: 25-32 | H63: length | I63: Commercial on shore | J63: 2 boxes from the last haul | K63: NA | M63: 35 | N63: 25.68 | O63: 1 | P63: 2 boxes from the last haul | Q63: Reasons for undersampling - COVID related and ban on fisheries. No samples from fishery targetting Cod (Gadus morhua). Only one sample from fishery targetting Flounder (Platichthys flesus). See Text Box 1C for comments
A64: POL | B64: POL | C64: 2020-2021 | D64: Gadus morhua | E64: Baltic Sea (ICES areas III b-d) | F64: ICES | G64: 25-32 | H64: age | I64: Commercial on shore | J64: 4 per 1 cm | K64: NA | M64: 35 | N64: 109.375 | O64: 1 | P64: 4 per 1 cm | Q64: No samples from fishery targetting Cod (Gadus morhua). Only one sample from fishery targetting Flounder (Platichthys flesus).
A65: POL | B65: POL | C65: 2020-2021 | D65: Gadus morhua | E65: Baltic Sea (ICES areas III b-d) | F65: ICES | G65: 25-32 | H65: weight | I65: Commercial on shore | J65: 4 per 1 cm | K65: NA | M65: 35 | N65: 109.375 | O65: 1 | P65: 4 per 1 cm | Q65: No samples from fishery targetting Cod (Gadus morhua). Only one sample from fishery targetting Flounder (Platichthys flesus).
A66: POL | B66: POL | C66: 2020-2021 | D66: Gadus morhua | E66: Baltic Sea (ICES areas III b-d) | F66: ICES | G66: 25-32 | H66: sex ratio | I66: Commercial on shore | J66: 4 per 1 cm | K66: NA | M66: 35 | N66: 109.375 | O66: 1 | P66: 4 per 1 cm | Q66: No samples from fishery targetting Cod (Gadus morhua). Only one sample from fishery targetting Flounder (Platichthys flesus).
A67: POL | B67: POL | C67: 2020-2021 | D67: Gadus morhua | E67: Baltic Sea (ICES areas III b-d) | F67: ICES | G67: 25-32 | H67: sexual maturity | I67: Commercial on shore | J67: 4 per 1 cm | K67: NA | M67: 35 | N67: 109.375 | O67: 1 | P67: 4 per 1 cm | Q67: No samples from fishery targetting Cod (Gadus morhua). Only one sample from fishery targetting Flounder (Platichthys flesus).
A68: POL | B68: POL | C68: 2020-2021 | D68: Gadus morhua | E68: Baltic Sea (ICES areas III b-d) | F68: ICES | G68: 25-32 | H68: length | I68: Surveys | J68: 5 boxes per haul | K68: NA | L68: According to IBAS & BITS Surveys Manuals (http://dcf.mir.gdynia.pl/?page_id=367 ) | M68: 19648 | N68: 150.1293072 | O68: 134 | P68: 5 boxes per haul
A69: POL | B69: POL | C69: 2020-2021 | D69: Gadus morhua | E69: Baltic Sea (ICES areas III b-d) | F69: ICES | G69: 25-32 | H69: age | I69: Surveys | J69: 5 per 1cm per ICES Sub-Division | K69: NA | M69: 1076 | N69: 109.0172239 | O69: 118 | P69: 5 per 1cm per ICES Sub-Division
A70: POL | B70: POL | C70: 2020-2021 | D70: Gadus morhua | E70: Baltic Sea (ICES areas III b-d) | F70: ICES | G70: 25-32 | H70: weight | I70: Surveys | J70: 5 per 1cm per ICES Sub-Division | K70: NA | M70: 1076 | N70: 109.0172239 | O70: 118 | P70: 5 per 1cm per ICES Sub-Division
A71: POL | B71: POL | C71: 2020-2021 | D71: Gadus morhua | E71: Baltic Sea (ICES areas III b-d) | F71: ICES | G71: 25-32 | H71: sex ratio | I71: Surveys | J71: 5 per 1cm per ICES Sub-Division | K71: NA | M71: 1076 | N71: 109.0172239 | O71: 118 | P71: 5 per 1cm per ICES Sub-Division
A72: POL | B72: POL | C72: 2020-2021 | D72: Gadus morhua | E72: Baltic Sea (ICES areas III b-d) | F72: ICES | G72: 25-32 | H72: sexual maturity | I72: Surveys | J72: 5 per 1cm per ICES Sub-Division | K72: NA | M72: 1076 | N72: 109.0172239 | O72: 118 | P72: 5 per 1cm per ICES Sub-Division
A73: POL | B73: POL | C73: 2020-2021 | D73: Perca fluviatilis | E73: Baltic Sea (ICES areas III b-d) | F73: ICES | G73: IIId | H73: length | I73: Commercial | J73: 1 box per haul | K73: NA | M73: 2110 | N73: 96.69 | O73: 34 | P73: 1 box per haul
A74: POL | B74: POL | C74: 2020-2021 | D74: Perca fluviatilis | E74: Baltic Sea (ICES areas III b-d) | F74: ICES | G74: IIId | H74: age | I74: Commercial | J74: 5 per 1 cm per fishing ground | K74: NA | M74: 658 | N74: 103.34 | O74: 31 | P74: 5 per 1 cm per fishing ground
A75: POL | B75: POL | C75: 2020-2021 | D75: Perca fluviatilis | E75: Baltic Sea (ICES areas III b-d) | F75: ICES | G75: IIId | H75: weight | I75: Commercial | J75: 5 per 1 cm per fishing ground | K75: NA | M75: 658 | N75: 103.34 | O75: 31 | P75: 5 per 1 cm per fishing ground
A76: POL | B76: POL | C76: 2020-2021 | D76: Perca fluviatilis | E76: Baltic Sea (ICES areas III b-d) | F76: ICES | G76: IIId | H76: sex ratio | I76: Commercial | J76: 5 per 1 cm per fishing ground | K76: NA | M76: 658 | N76: 103.34 | O76: 31 | P76: 5 per 1 cm per fishing ground
A77: POL | B77: POL | C77: 2020-2021 | D77: Perca fluviatilis | E77: Baltic Sea (ICES areas III b-d) | F77: ICES | G77: IIId | H77: sexual maturity | I77: Commercial | J77: 5 per 1 cm per fishing ground | K77: NA | M77: 658 | N77: 103.34 | O77: 31 | P77: 5 per 1 cm per fishing ground
A78: POL | B78: POL | C78: 2020-2021 | D78: Platichthys flesus | E78: Baltic Sea (ICES areas III b-d) | F78: ICES | G78: 22-32 | H78: length | I78: Commercial at sea | J78: 1 box per haul | K78: NA | M78: 2737 | N78: 152.97 | O78: 44 | P78: 1 box per haul
A79: POL | B79: POL | C79: 2020-2021 | D79: Platichthys flesus | E79: Baltic Sea (ICES areas III b-d) | F79: ICES | G79: 22-32 | H79: age | I79: Commercial at sea | J79: 5 per 1 cm | K79: NA | M79: 329 | N79: 77.90697674 | O79: 8 | P79: 5 per 1 cm | Q79: Reasons for undersampling - COVID related and ban on fisheries. Only 3 samples from one at-sea trip targetting Flounder (Platichthys flesus) and 5 samples collected at sea as by-catch from trips targetting other species. In case of some trips sampled, all fish were measured but not all fish were available to sample for other biological variables. See Text Box 1C for comments
A80: POL | B80: POL | C80: 2020-2021 | D80: Platichthys flesus | E80: Baltic Sea (ICES areas III b-d) | F80: ICES | G80: 22-32 | H80: weight | I80: Commercial at sea | J80: 5 per 1 cm | K80: NA | M80: 329 | N80: 77.90697674 | O80: 8 | P80: 5 per 1 cm | Q80: Reasons for undersampling - COVID related and ban on fisheries. Only 3 samples from one at-sea trip targetting Flounder (Platichthys flesus) and 5 samples collected at sea as by-catch from trips targetting other species. In case of some trips sampled, all fish were measured but not all fish were available to sample for other biological variables. See Text Box 1C for comments
A81: POL | B81: POL | C81: 2020-2021 | D81: Platichthys flesus | E81: Baltic Sea (ICES areas III b-d) | F81: ICES | G81: 22-32 | H81: sex ratio | I81: Commercial at sea | J81: 5 per 1 cm | K81: NA | M81: 329 | N81: 77.90697674 | O81: 8 | P81: 5 per 1 cm | Q81: Reasons for undersampling - COVID related and ban on fisheries. Only 3 samples from one at-sea trip targetting Flounder (Platichthys flesus) and 5 samples collected at sea as by-catch from trips targetting other species. In case of some trips sampled, all fish were measured but not all fish were available to sample for other biological variables. See Text Box 1C for comments
A82: POL | B82: POL | C82: 2020-2021 | D82: Platichthys flesus | E82: Baltic Sea (ICES areas III b-d) | F82: ICES | G82: 22-32 | H82: sexual maturity | I82: Commercial at sea | J82: 5 per 1 cm | K82: NA | M82: 329 | N82: 77.90697674 | O82: 8 | P82: 5 per 1 cm | Q82: Reasons for undersampling - COVID related and ban on fisheries. Only 3 samples from one at-sea trip targetting Flounder (Platichthys flesus) and 5 samples collected at sea as by-catch from trips targetting other species. In case of some trips sampled, all fish were measured but not all fish were available to sample for other biological variables. See Text Box 1C for comments
A83: POL | B83: POL | C83: 2020-2021 | D83: Platichthys flesus | E83: Baltic Sea (ICES areas III b-d) | F83: ICES | G83: 22-32 | H83: length | I83: Commercial on shore | J83: 1 box from the last haul | K83: NA | M83: 1204 | N83: 130.03 | O83: 11 | P83: 1 box from the last haul
A84: POL | B84: POL | C84: 2020-2021 | D84: Platichthys flesus | E84: Baltic Sea (ICES areas III b-d) | F84: ICES | G84: 22-32 | H84: age | I84: Commercial on shore | J84: 5 per 1 cm | K84: NA | M84: 426 | N84: 94.87750557 | O84: 8 | P84: 5 per 1 cm
A85: POL | B85: POL | C85: 2020-2021 | D85: Platichthys flesus | E85: Baltic Sea (ICES areas III b-d) | F85: ICES | G85: 22-32 | H85: weight | I85: Commercial on shore | J85: 5 per 1 cm | K85: NA | M85: 426 | N85: 94.87750557 | O85: 8 | P85: 5 per 1 cm
A86: POL | B86: POL | C86: 2020-2021 | D86: Platichthys flesus | E86: Baltic Sea (ICES areas III b-d) | F86: ICES | G86: 22-32 | H86: sex ratio | I86: Commercial on shore | J86: 5 per 1 cm | K86: NA | M86: 426 | N86: 94.87750557 | O86: 8 | P86: 5 per 1 cm
A87: POL | B87: POL | C87: 2020-2021 | D87: Platichthys flesus | E87: Baltic Sea (ICES areas III b-d) | F87: ICES | G87: 22-32 | H87: sexual maturity | I87: Commercial on shore | J87: 5 per 1 cm | K87: NA | M87: 426 | N87: 94.87750557 | O87: 8 | P87: 5 per 1 cm
A88: POL | B88: POL | C88: 2020-2021 | D88: Platichthys flesus | E88: Baltic Sea (ICES areas III b-d) | F88: ICES | G88: 22-32 | H88: length | I88: Surveys | J88: 1 box per haul per ICES Sub-Division | K88: NA | L88: According to BITS Surveys Manual (http://dcf.mir.gdynia.pl/?page_id=367) | M88: 10712 | N88: 103.2013343 | O88: 115 | P88: 1 box per haul per ICES Sub-Division
A89: POL | B89: POL | C89: 2020-2021 | D89: Platichthys flesus | E89: Baltic Sea (ICES areas III b-d) | F89: ICES | G89: 22-32 | H89: age | I89: Surveys | J89: 10 per 1cm per sex per ICES Sub-Division | K89: NA | M89: 1479 | N89: 96.85658153 | O89: 104 | P89: 10 per 1cm per sex per ICES Sub-Division
A90: POL | B90: POL | C90: 2020-2021 | D90: Platichthys flesus | E90: Baltic Sea (ICES areas III b-d) | F90: ICES | G90: 22-32 | H90: weight | I90: Surveys | J90: 10 per 1cm per sex per ICES Sub-Division | K90: NA | M90: 1479 | N90: 96.85658153 | O90: 104 | P90: 10 per 1cm per sex per ICES Sub-Division
A91: POL | B91: POL | C91: 2020-2021 | D91: Platichthys flesus | E91: Baltic Sea (ICES areas III b-d) | F91: ICES | G91: 22-32 | H91: sex ratio | I91: Surveys | J91: 10 per 1cm per sex per ICES Sub-Division | K91: NA | M91: 1479 | N91: 96.85658153 | O91: 104 | P91: 10 per 1cm per sex per ICES Sub-Division
A92: POL | B92: POL | C92: 2020-2021 | D92: Platichthys flesus | E92: Baltic Sea (ICES areas III b-d) | F92: ICES | G92: 22-32 | H92: sexual maturity | I92: Surveys | J92: 10 per 1cm per sex per ICES Sub-Division | K92: NA | M92: 1479 | N92: 96.85658153 | O92: 104 | P92: 10 per 1cm per sex per ICES Sub-Division
A93: POL | B93: POL | C93: 2020-2021 | D93: Pleuronectes platessa | E93: Baltic Sea (ICES areas III b-d) | F93: ICES | G93: 22-32 | H93: length | I93: Commercial at sea | J93: all fish caught per haul | K93: NA | L93: no directed fishery (bycatch in cod and flounder fisheries) | M93: 9 | N93: 100 | O93: 4 | P93: all fish caught per haul | Q93: No directed fishery (bycatch in cod and flounder fisheries)
A94: POL | B94: POL | C94: 2020-2021 | D94: Pleuronectes platessa | E94: Baltic Sea (ICES areas III b-d) | F94: ICES | G94: 22-32 | H94: age | I94: Commercial at sea | J94: all fish caught per haul | K94: NA | M94: 3 | N94: 33.33333333 | O94: 1 | P94: all fish caught per haul | Q94: no directed fishery (bycatch in cod and flounder fisheries). Only one sample available. Reasons for undersampling - see comments in Text Box 1C.
A95: POL | B95: POL | C95: 2020-2021 | D95: Pleuronectes platessa | E95: Baltic Sea (ICES areas III b-d) | F95: ICES | G95: 22-32 | H95: weight | I95: Commercial at sea | J95: all fish caught per haul | K95: NA | M95: 3 | N95: 33.33333333 | O95: 1 | P95: all fish caught per haul | Q95: no directed fishery (bycatch in cod and flounder fisheries). Only one sample available. Reasons for undersampling - see comments in Text Box 1C.
A96: POL | B96: POL | C96: 2020-2021 | D96: Pleuronectes platessa | E96: Baltic Sea (ICES areas III b-d) | F96: ICES | G96: 22-32 | H96: sex ratio | I96: Commercial at sea | J96: all fish caught per haul | K96: NA | M96: 3 | N96: 33.33333333 | O96: 1 | P96: all fish caught per haul | Q96: no directed fishery (bycatch in cod and flounder fisheries). Only one sample available. Reasons for undersampling - see comments in Text Box 1C.
A97: POL | B97: POL | C97: 2020-2021 | D97: Pleuronectes platessa | E97: Baltic Sea (ICES areas III b-d) | F97: ICES | G97: 22-32 | H97: sexual maturity | I97: Commercial at sea | J97: all fish caught per haul | K97: NA | M97: 3 | N97: 33.33333333 | O97: 1 | P97: all fish caught per haul | Q97: no directed fishery (bycatch in cod and flounder fisheries). Only one sample available. Reasons for undersampling - see comments in Text Box 1C.
A98: POL | B98: POL | C98: 2020-2021 | D98: Pleuronectes platessa | E98: Baltic Sea (ICES areas III b-d) | F98: ICES | G98: 22-32 | H98: length | I98: Surveys | J98: all fish caught per haul | K98: NA | L98: According to BITS Surveys Manual (http://dcf.mir.gdynia.pl/?page_id=367) | M98: 1554 | N98: 87.84649821 | O98: 88 | P98: all fish caught per haul | Q98: In some hauls unexpectedly high levels of catch was observed in which case a subsample were taken for measurement.
A99: POL | B99: POL | C99: 2020-2021 | D99: Pleuronectes platessa | E99: Baltic Sea (ICES areas III b-d) | F99: ICES | G99: 22-32 | H99: age | I99: Surveys | J99: all fish caught per haul | K99: NA | M99: 796 | N99: 99.01 | O99: 82 | P99: all fish caught per haul (max. 10 ind. per length class per sex per trip per ICES Sub-Division.
A100: POL | B100: POL | C100: 2020-2021 | D100: Pleuronectes platessa | E100: Baltic Sea (ICES areas III b-d) | F100: ICES | G100: 22-32 | H100: weight | I100: Surveys | J100: all fish caught per haul | K100: NA | M100: 796 | N100: 99.01 | O100: 82 | P100: all fish caught per haul (max. 10 ind. per length class per sex per trip per ICES Sub-Division.
A101: POL | B101: POL | C101: 2020-2021 | D101: Pleuronectes platessa | E101: Baltic Sea (ICES areas III b-d) | F101: ICES | G101: 22-32 | H101: sex ratio | I101: Surveys | J101: all fish caught per haul | K101: NA | M101: 796 | N101: 99.01 | O101: 82 | P101: all fish caught per haul (max. 10 ind. per length class per sex per trip per ICES Sub-Division.
A102: POL | B102: POL | C102: 2020-2021 | D102: Pleuronectes platessa | E102: Baltic Sea (ICES areas III b-d) | F102: ICES | G102: 22-32 | H102: sexual maturity | I102: Surveys | J102: all fish caught per haul | K102: NA | M102: 796 | N102: 99.01 | O102: 82 | P102: all fish caught per haul (max. 10 ind. per length class per sex per trip per ICES Sub-Division.
A103: POL | B103: POL | C103: 2020-2021 | D103: Psetta maxima | E103: Baltic Sea (ICES areas III b-d) | F103: ICES | G103: 22-32 | H103: length | I103: Commercial at sea | J103: all fish caught per haul | K103: NA | L103: no directed fishery (bycatch in cod and flounder fisheries) | M103: 130 | N103: 100 | O103: 7 | P103: all fish caught per haul
A104: POL | B104: POL | C104: 2020-2021 | D104: Psetta maxima | E104: Baltic Sea (ICES areas III b-d) | F104: ICES | G104: 22-32 | H104: age | I104: Commercial at sea | J104: all fish caught per haul | K104: NA | M104: 57 | N104: 43.84615385 | O104: 3 | P104: all fish caught per haul | Q104: No directed fishery (bycatch in cod and flounder fisheries). Only 3 samples collected. In case of some trips sampled, all fish were measured but not all fish were available to sample for other biological variables - see comments in Text Box 1C.
A105: POL | B105: POL | C105: 2020-2021 | D105: Psetta maxima | E105: Baltic Sea (ICES areas III b-d) | F105: ICES | G105: 22-32 | H105: weight | I105: Commercial at sea | J105: all fish caught per haul | K105: NA | M105: 57 | N105: 43.84615385 | O105: 3 | P105: all fish caught per haul | Q105: No directed fishery (bycatch in cod and flounder fisheries). Only 3 samples collected. In case of some trips sampled, all fish were measured but not all fish were available to sample for other biological variables - see comments in Text Box 1C.
A106: POL | B106: POL | C106: 2020-2021 | D106: Psetta maxima | E106: Baltic Sea (ICES areas III b-d) | F106: ICES | G106: 22-32 | H106: sex ratio | I106: Commercial at sea | J106: all fish caught per haul | K106: NA | M106: 57 | N106: 43.84615385 | O106: 3 | P106: all fish caught per haul | Q106: No directed fishery (bycatch in cod and flounder fisheries). Only 3 samples collected. In case of some trips sampled, all fish were measured but not all fish were available to sample for other biological variables - see comments in Text Box 1C.
A107: POL | B107: POL | C107: 2020-2021 | D107: Psetta maxima | E107: Baltic Sea (ICES areas III b-d) | F107: ICES | G107: 22-32 | H107: sexual maturity | I107: Commercial at sea | J107: all fish caught per haul | K107: NA | M107: 57 | N107: 43.84615385 | O107: 3 | P107: all fish caught per haul | Q107: No directed fishery (bycatch in cod and flounder fisheries). Only 3 samples collected. In case of some trips sampled, all fish were measured but not all fish were available to sample for other biological variables - see comments in Text Box 1C.
A108: POL | B108: POL | C108: 2020-2021 | D108: Psetta maxima | E108: Baltic Sea (ICES areas III b-d) | F108: ICES | G108: 22-32 | H108: length | I108: Surveys | J108: all fish caught per haul | K108: NA | L108: According to BITS Surveys Manual (http://dcf.mir.gdynia.pl/?page_id=367) | M108: 92 | N108: 100 | O108: 33 | P108: all fish caught per haul
A109: POL | B109: POL | C109: 2020-2021 | D109: Psetta maxima | E109: Baltic Sea (ICES areas III b-d) | F109: ICES | G109: 22-32 | H109: age | I109: Surveys | J109: all fish caught per haul | K109: NA | M109: 92 | N109: 100 | O109: 33 | P109: all fish caught per haul
A110: POL | B110: POL | C110: 2020-2021 | D110: Psetta maxima | E110: Baltic Sea (ICES areas III b-d) | F110: ICES | G110: 22-32 | H110: weight | I110: Surveys | J110: all fish caught per haul | K110: NA | M110: 92 | N110: 100 | O110: 33 | P110: all fish caught per haul
A111: POL | B111: POL | C111: 2020-2021 | D111: Psetta maxima | E111: Baltic Sea (ICES areas III b-d) | F111: ICES | G111: 22-32 | H111: sex ratio | I111: Surveys | J111: all fish caught per haul | K111: NA | M111: 92 | N111: 100 | O111: 33 | P111: all fish caught per haul
A112: POL | B112: POL | C112: 2020-2021 | D112: Psetta maxima | E112: Baltic Sea (ICES areas III b-d) | F112: ICES | G112: 22-32 | H112: sexual maturity | I112: Surveys | J112: all fish caught per haul | K112: NA | M112: 92 | N112: 100 | O112: 33 | P112: all fish caught per haul
A113: POL | B113: POL | C113: 2020-2021 | D113: Salmo salar | E113: Baltic Sea (ICES areas III b-d) | F113: ICES | G113: 22-31 | H113: length | I113: Commercial | J113: all fish caught per haul | K113: NA | M113: 102 | N113: 100 | O113: 5 | P113: all fish caught per haul
A114: POL | B114: POL | C114: 2020-2021 | D114: Salmo salar | E114: Baltic Sea (ICES areas III b-d) | F114: ICES | G114: 22-31 | H114: age | I114: Commercial | J114: 5 per 1 cm per year | K114: NA | M114: 100 | N114: 111.1111111 | O114: 3 | P114: 5 per 1 cm per year
A115: POL | B115: POL | C115: 2020-2021 | D115: Salmo salar | E115: Baltic Sea (ICES areas III b-d) | F115: ICES | G115: 22-31 | H115: weight | I115: Commercial | J115: 5 per 1 cm per year | K115: NA | M115: 100 | N115: 111.1111111 | O115: 3 | P115: 5 per 1 cm per year
A116: POL | B116: POL | C116: 2020-2021 | D116: Salmo salar | E116: Baltic Sea (ICES areas III b-d) | F116: ICES | G116: 22-31 | H116: sex ratio | I116: Commercial | J116: 5 per 1 cm per year | K116: NA | M116: 100 | N116: 111.1111111 | O116: 3 | P116: 5 per 1 cm per year
A117: POL | B117: POL | C117: 2020-2021 | D117: Salmo trutta | E117: Baltic Sea (ICES areas III b-d) | F117: ICES | G117: 22-32 | H117: length | I117: Commercial | J117: all fish caught per haul | K117: NA | M117: 28 | N117: 100 | O117: 15 | P117: all fish caught per haul
A118: POL | B118: POL | C118: 2020-2021 | D118: Salmo trutta | E118: Baltic Sea (ICES areas III b-d) | F118: ICES | G118: 22-32 | H118: age | I118: Commercial | J118: 5 per 1 cm per year | K118: NA | M118: 27 | N118: 100 | O118: 14 | P118: 5 per 1 cm per year
A119: POL | B119: POL | C119: 2020-2021 | D119: Salmo trutta | E119: Baltic Sea (ICES areas III b-d) | F119: ICES | G119: 22-32 | H119: weight | I119: Commercial | J119: 5 per 1 cm per year | K119: NA | M119: 27 | N119: 100 | O119: 14 | P119: 5 per 1 cm per year
A120: POL | B120: POL | C120: 2020-2021 | D120: Salmo trutta | E120: Baltic Sea (ICES areas III b-d) | F120: ICES | G120: 22-32 | H120: sex ratio | I120: Commercial | J120: 5 per 1 cm per year | K120: NA | M120: 27 | N120: 100 | O120: 14 | P120: 5 per 1 cm per year
A121: POL | B121: POL | C121: 2020-2021 | D121: Sander lucioperca | E121: Baltic Sea (ICES areas III b-d) | F121: ICES | G121: IIId | H121: length | I121: Commercial | J121: 5 box per haul | K121: NA | M121: 1108 | N121: 82.47 | O121: 32 | P121: 5 box per haul | Q121: In case of some trips sampled, not all fish required according to sampling protocol were available to sample
A122: POL | B122: POL | C122: 2020-2021 | D122: Sander lucioperca | E122: Baltic Sea (ICES areas III b-d) | F122: ICES | G122: IIId | H122: age | I122: Commercial | J122: 5 per 1 cm per fishing ground | K122: NA | M122: 507 | N122: 71.32 | O122: 27 | P122: 5 per 1 cm per fishing ground | Q122: In some cases of a very low catch in the sampled hauls (of the order of a few kg) all fish caught were measured but not sampled for other biological variables
A123: POL | B123: POL | C123: 2020-2021 | D123: Sander lucioperca | E123: Baltic Sea (ICES areas III b-d) | F123: ICES | G123: IIId | H123: weight | I123: Commercial | J123: 5 per 1 cm per fishing ground | K123: NA | M123: 507 | N123: 71.32 | O123: 27 | P123: 5 per 1 cm per fishing ground | Q123: In some cases of a very low catch in the sampled hauls (of the order of a few kg) all fish caught were measured but not sampled for other biological variables
A124: POL | B124: POL | C124: 2020-2021 | D124: Sander lucioperca | E124: Baltic Sea (ICES areas III b-d) | F124: ICES | G124: IIId | H124: sex ratio | I124: Commercial | J124: 5 per 1 cm per fishing ground | K124: NA | M124: 507 | N124: 71.32 | O124: 27 | P124: 5 per 1 cm per fishing ground | Q124: In some cases of a very low catch in the sampled hauls (of the order of a few kg) all fish caught were measured but not sampled for other biological variables
A125: POL | B125: POL | C125: 2020-2021 | D125: Sander lucioperca | E125: Baltic Sea (ICES areas III b-d) | F125: ICES | G125: IIId | H125: sexual maturity | I125: Commercial | J125: 5 per 1 cm per fishing ground | K125: NA | M125: 507 | N125: 71.32 | O125: 27 | P125: 5 per 1 cm per fishing ground | Q125: In some cases of a very low catch in the sampled hauls (of the order of a few kg) all fish caught were measured but not sampled for other biological variables
A126: POL | B126: POL | C126: 2020-2021 | D126: Sprattus sprattus | E126: Baltic Sea (ICES areas III b-d) | F126: ICES | G126: 22-32 | H126: length | I126: Commercial at sea | J126: 200 fish per haul | K126: NA | M126: 1532 | N126: 109.4285714 | O126: 7 | P126: 200 fish per haul
A127: POL | B127: POL | C127: 2020-2021 | D127: Sprattus sprattus | E127: Baltic Sea (ICES areas III b-d) | F127: ICES | G127: 22-32 | H127: age | I127: Commercial at sea | J127: 5-10 per 0.5 cm per haul per ICES Sub-Diivision | K127: NA | M127: 414 | N127: 97.87234043 | O127: 6 | P127: 5-10 per 0.5 cm per haul per ICES Sub-Diivision
A128: POL | B128: POL | C128: 2020-2021 | D128: Sprattus sprattus | E128: Baltic Sea (ICES areas III b-d) | F128: ICES | G128: 22-32 | H128: weight | I128: Commercial at sea | J128: 5-10 per 0.5 cm per haul per ICES Sub-Diivision | K128: NA | M128: 414 | N128: 97.87234043 | O128: 6 | P128: 5-10 per 0.5 cm per haul per ICES Sub-Diivision
A129: POL | B129: POL | C129: 2020-2021 | D129: Sprattus sprattus | E129: Baltic Sea (ICES areas III b-d) | F129: ICES | G129: 22-32 | H129: sex ratio | I129: Commercial at sea | J129: 5-10 per 0.5 cm per haul per ICES Sub-Diivision | K129: NA | M129: 414 | N129: 97.87234043 | O129: 6 | P129: 5-10 per 0.5 cm per haul per ICES Sub-Diivision
A130: POL | B130: POL | C130: 2020-2021 | D130: Sprattus sprattus | E130: Baltic Sea (ICES areas III b-d) | F130: ICES | G130: 22-32 | H130: sexual maturity | I130: Commercial at sea | J130: 5-10 per 0.5 cm per haul per ICES Sub-Diivision | K130: NA | M130: 414 | N130: 97.87234043 | O130: 6 | P130: 5-10 per 0.5 cm per haul per ICES Sub-Diivision
A131: POL | B131: POL | C131: 2020-2021 | D131: Sprattus sprattus | E131: Baltic Sea (ICES areas III b-d) | F131: ICES | G131: 22-32 | H131: length | I131: Commercial on shore | J131: 200 fish from the last haul | K131: NA | M131: 4991 | N131: 146.7941176 | O131: 32 | P131: 200 fish from the last haul
A132: POL | B132: POL | C132: 2020-2021 | D132: Sprattus sprattus | E132: Baltic Sea (ICES areas III b-d) | F132: ICES | G132: 22-32 | H132: age | I132: Commercial on shore | J132: 5-10 per 0.5 cm from the last haul | K132: NA | M132: 1583 | N132: 95.76527526 | O132: 24 | P132: 5-10 per 0.5 cm from the last haul
A133: POL | B133: POL | C133: 2020-2021 | D133: Sprattus sprattus | E133: Baltic Sea (ICES areas III b-d) | F133: ICES | G133: 22-32 | H133: weight | I133: Commercial on shore | J133: 5-10 per 0.5 cm from the last haul | K133: NA | M133: 1583 | N133: 95.76527526 | O133: 24 | P133: 5-10 per 0.5 cm from the last haul
A134: POL | B134: POL | C134: 2020-2021 | D134: Sprattus sprattus | E134: Baltic Sea (ICES areas III b-d) | F134: ICES | G134: 22-32 | H134: sex ratio | I134: Commercial on shore | J134: 5-10 per 0.5 cm from the last haul | K134: NA | M134: 1583 | N134: 95.76527526 | O134: 24 | P134: 5-10 per 0.5 cm from the last haul
A135: POL | B135: POL | C135: 2020-2021 | D135: Sprattus sprattus | E135: Baltic Sea (ICES areas III b-d) | F135: ICES | G135: 22-32 | H135: sexual maturity | I135: Commercial on shore | J135: 5-10 per 0.5 cm from the last haul | K135: NA | M135: 1583 | N135: 95.76527526 | O135: 24 | P135: 5-10 per 0.5 cm from the last haul
A136: POL | B136: POL | C136: 2020-2021 | D136: Sprattus sprattus | E136: Baltic Sea (ICES areas III b-d) | F136: ICES | G136: 22-32 | H136: length | I136: Surveys | J136: 200 fish per haul | K136: NA | L136: According to BITS Surveys Manual (http://dcf.mir.gdynia.pl/?page_id=367) | M136: 25440 | N136: 101.0301219 | O136: 138 | P136: 200 fish per haul
A137: POL | B137: POL | C137: 2020-2021 | D137: Sprattus sprattus | E137: Baltic Sea (ICES areas III b-d) | F137: ICES | G137: 22-32 | H137: age | I137: Surveys | J137: 5-10 per 0.5 cm per haul | K137: NA | M137: 1993 | N137: 179.8736462 | O137: 88 | P137: 5-10 per 0.5 cm per haul
A138: POL | B138: POL | C138: 2020-2021 | D138: Sprattus sprattus | E138: Baltic Sea (ICES areas III b-d) | F138: ICES | G138: 22-32 | H138: weight | I138: Surveys | J138: 5-10 per 0.5 cm per haul | K138: NA | M138: 1993 | N138: 179.8736462 | O138: 88 | P138: 5-10 per 0.5 cm per haul
A139: POL | B139: POL | C139: 2020-2021 | D139: Sprattus sprattus | E139: Baltic Sea (ICES areas III b-d) | F139: ICES | G139: 22-32 | H139: sex ratio | I139: Surveys | J139: 5-10 per 0.5 cm per haul | K139: NA | M139: 1993 | N139: 179.8736462 | O139: 88 | P139: 5-10 per 0.5 cm per haul
A140: POL | B140: POL | C140: 2020-2021 | D140: Sprattus sprattus | E140: Baltic Sea (ICES areas III b-d) | F140: ICES | G140: 22-32 | H140: sexual maturity | I140: Surveys | J140: 5-10 per 0.5 cm per haul | K140: NA | M140: 1993 | N140: 179.8736462 | O140: 88 | P140: 5-10 per 0.5 cm per haul
A141: POL | B141: POL | C141: 2020-2021 | D141: Gadus morhua | E141: North Sea (ICES areas IIIa and IV), Eastern Arctic (ICES areas I and II) | F141: ICES | G141: I, II | H141: length | I141: Commercial at sea | J141: 300 fish per haul | K141: NA | M141: 0 | N141: 0 | O141: 0 | P141: 300 fish per haul | Q141: No sampling performed in 2020 due to COVID-19 (closed borders, restrictions in poeple movement, safety issues). See Text Box 1C for details.
A142: POL | B142: POL | C142: 2020-2021 | D142: Gadus morhua | E142: North Sea (ICES areas IIIa and IV), Eastern Arctic (ICES areas I and II) | F142: ICES | G142: I, II | H142: age | I142: Commercial at sea | J142: 5 per 1 cm per trip | K142: NA | M142: 0 | N142: 0 | O142: 0 | P142: 5 per 1 cm per trip | Q142: No sampling performed in 2020 due to COVID-19 (closed borders, restrictions in poeple movement, safety issues). See Text Box 1C for details.
A143: POL | B143: POL | C143: 2020-2021 | D143: Gadus morhua | E143: North Sea (ICES areas IIIa and IV), Eastern Arctic (ICES areas I and II) | F143: ICES | G143: I, II | H143: weight | I143: Commercial at sea | J143: 5 per 1 cm per trip | K143: NA | M143: 0 | N143: 0 | O143: 0 | P143: 5 per 1 cm per trip | Q143: No sampling performed in 2020 due to COVID-19 (closed borders, restrictions in poeple movement, safety issues). See Text Box 1C for details.
A144: POL | B144: POL | C144: 2020-2021 | D144: Gadus morhua | E144: North Sea (ICES areas IIIa and IV), Eastern Arctic (ICES areas I and II) | F144: ICES | G144: I, II | H144: sex ratio | I144: Commercial at sea | J144: 5 per 1 cm per trip | K144: NA | M144: 0 | N144: 0 | O144: 0 | P144: 5 per 1 cm per trip | Q144: No sampling performed in 2020 due to COVID-19 (closed borders, restrictions in poeple movement, safety issues). See Text Box 1C for details.
A145: POL | B145: POL | C145: 2020-2021 | D145: Gadus morhua | E145: North Sea (ICES areas IIIa and IV), Eastern Arctic (ICES areas I and II) | F145: ICES | G145: I, II | H145: sexual maturity | I145: Commercial at sea | J145: 5 per 1 cm per trip | K145: NA | M145: 0 | N145: 0 | O145: 0 | P145: 5 per 1 cm per trip | Q145: No sampling performed in 2020 due to COVID-19 (closed borders, restrictions in poeple movement, safety issues). See Text Box 1C for details.
A146: POL | B146: POL | C146: 2020-2021 | D146: Melanogrammus aeglefinus | E146: North Sea (ICES areas IIIa and IV), Eastern Arctic (ICES areas I and II) | F146: ICES | G146: I, II | H146: length | I146: Commercial at sea | J146: 300 fish per haul | K146: NA | M146: 0 | N146: 0 | O146: 0 | P146: 300 fish per haul | Q146: No sampling performed in 2020 due to COVID-19 (closed borders, restrictions in poeple movement, safety issues). See Text Box 1C for details.
A147: POL | B147: POL | C147: 2020-2021 | D147: Melanogrammus aeglefinus | E147: North Sea (ICES areas IIIa and IV), Eastern Arctic (ICES areas I and II) | F147: ICES | G147: I, II | H147: age | I147: Commercial at sea | J147: 5 per 1 cm per trip | K147: NA | M147: 0 | N147: 0 | O147: 0 | P147: 5 per 1 cm per trip | Q147: No sampling performed in 2020 due to COVID-19 (closed borders, restrictions in poeple movement, safety issues). See Text Box 1C for details.
A148: POL | B148: POL | C148: 2020-2021 | D148: Melanogrammus aeglefinus | E148: North Sea (ICES areas IIIa and IV), Eastern Arctic (ICES areas I and II) | F148: ICES | G148: I, II | H148: weight | I148: Commercial at sea | J148: 5 per 1 cm per trip | K148: NA | M148: 0 | N148: 0 | O148: 0 | P148: 5 per 1 cm per trip | Q148: No sampling performed in 2020 due to COVID-19 (closed borders, restrictions in poeple movement, safety issues). See Text Box 1C for details.
A149: POL | B149: POL | C149: 2020-2021 | D149: Melanogrammus aeglefinus | E149: North Sea (ICES areas IIIa and IV), Eastern Arctic (ICES areas I and II) | F149: ICES | G149: I, II | H149: sex ratio | I149: Commercial at sea | J149: 5 per 1 cm per trip | K149: NA | M149: 0 | N149: 0 | O149: 0 | P149: 5 per 1 cm per trip | Q149: No sampling performed in 2020 due to COVID-19 (closed borders, restrictions in poeple movement, safety issues). See Text Box 1C for details.
A150: POL | B150: POL | C150: 2020-2021 | D150: Melanogrammus aeglefinus | E150: North Sea (ICES areas IIIa and IV), Eastern Arctic (ICES areas I and II) | F150: ICES | G150: I, II | H150: sexual maturity | I150: Commercial at sea | J150: 5 per 1 cm per trip | K150: NA | M150: 0 | N150: 0 | O150: 0 | P150: 5 per 1 cm per trip | Q150: No sampling performed in 2020 due to COVID-19 (closed borders, restrictions in poeple movement, safety issues). See Text Box 1C for details.
A151: POL | B151: POL | C151: 2020-2021 | D151: Pollachius virens | E151: North Sea (ICES areas IIIa and IV), Eastern Arctic (ICES areas I and II) | F151: ICES | G151: I, II | H151: length | I151: Commercial at sea | J151: 300 fish per haul | K151: NA | M151: 0 | N151: 0 | O151: 0 | P151: 300 fish per haul | Q151: No sampling performed in 2020 due to COVID-19 (closed borders, restrictions in poeple movement, safety issues). See Text Box 1C for details.
A152: POL | B152: POL | C152: 2020-2021 | D152: Pollachius virens | E152: North Sea (ICES areas IIIa and IV), Eastern Arctic (ICES areas I and II) | F152: ICES | G152: I, II | H152: age | I152: Commercial at sea | J152: 5 per 1 cm per trip | K152: NA | M152: 0 | N152: 0 | O152: 0 | P152: 5 per 1 cm per trip | Q152: No sampling performed in 2020 due to COVID-19 (closed borders, restrictions in poeple movement, safety issues). See Text Box 1C for details.
A153: POL | B153: POL | C153: 2020-2021 | D153: Pollachius virens | E153: North Sea (ICES areas IIIa and IV), Eastern Arctic (ICES areas I and II) | F153: ICES | G153: I, II | H153: weight | I153: Commercial at sea | J153: 5 per 1 cm per trip | K153: NA | M153: 0 | N153: 0 | O153: 0 | P153: 5 per 1 cm per trip | Q153: No sampling performed in 2020 due to COVID-19 (closed borders, restrictions in poeple movement, safety issues). See Text Box 1C for details.
A154: POL | B154: POL | C154: 2020-2021 | D154: Pollachius virens | E154: North Sea (ICES areas IIIa and IV), Eastern Arctic (ICES areas I and II) | F154: ICES | G154: I, II | H154: sex ratio | I154: Commercial at sea | J154: 5 per 1 cm per trip | K154: NA | M154: 0 | N154: 0 | O154: 0 | P154: 5 per 1 cm per trip | Q154: No sampling performed in 2020 due to COVID-19 (closed borders, restrictions in poeple movement, safety issues). See Text Box 1C for details.
A155: POL | B155: POL | C155: 2020-2021 | D155: Pollachius virens | E155: North Sea (ICES areas IIIa and IV), Eastern Arctic (ICES areas I and II) | F155: ICES | G155: I, II | H155: sexual maturity | I155: Commercial at sea | J155: 5 per 1 cm per trip | K155: NA | M155: 0 | N155: 0 | O155: 0 | P155: 5 per 1 cm per trip | Q155: No sampling performed in 2020 due to COVID-19 (closed borders, restrictions in poeple movement, safety issues). See Text Box 1C for details.
A156: POL | B156: DEU - LTU -LVA - NLD - POL | C156: 2020-2021 | D156: Sardinella aurita | E156: Other regions | F156: CECAF | G156: 34.1.3 | H156: length | I156: Commercial at sea | J156: sample of 25 kg per haul | K156: NA | L156: Sampling Protocol - "Biological Data Collection of pelagic fisheries in CECAF waters in compliance with the DCF" (http://dcf.mir.gdynia.pl/?page_id=367) | M156: 0 | N156: 0 | O156: 0 | P156: sample of 25 kg per haul | Q156: No sampling performed in 2020 due to COVID-19 (closed borders, restrictions in poeple movement, safety issues). See Text Box 1C for details.
A157: POL | B157: DEU - LTU -LVA - NLD - POL | C157: 2020-2021 | D157: Sardinella aurita | E157: Other regions | F157: CECAF | G157: 34.1.3 | H157: age | I157: Commercial at sea | J157: 5 per 1 cm per trip | K157: NA | M157: 0 | N157: 0 | O157: 0 | P157: 5 per 1 cm per trip | Q157: No sampling performed in 2020 due to COVID-19 (closed borders, restrictions in poeple movement, safety issues). See Text Box 1C for details.
A158: POL | B158: DEU - LTU -LVA - NLD - POL | C158: 2020-2021 | D158: Sardinella aurita | E158: Other regions | F158: CECAF | G158: 34.1.3 | H158: weight | I158: Commercial at sea | J158: 5 per 1 cm per trip | K158: NA | M158: 0 | N158: 0 | O158: 0 | P158: 5 per 1 cm per trip | Q158: No sampling performed in 2020 due to COVID-19 (closed borders, restrictions in poeple movement, safety issues). See Text Box 1C for details.
A159: POL | B159: DEU - LTU -LVA - NLD - POL | C159: 2020-2021 | D159: Sardinella aurita | E159: Other regions | F159: CECAF | G159: 34.1.3 | H159: sex ratio | I159: Commercial at sea | J159: 5 per 1 cm per trip | K159: NA | M159: 0 | N159: 0 | O159: 0 | P159: 5 per 1 cm per trip | Q159: No sampling performed in 2020 due to COVID-19 (closed borders, restrictions in poeple movement, safety issues). See Text Box 1C for details.
A160: POL | B160: DEU - LTU -LVA - NLD - POL | C160: 2020-2021 | D160: Sardinella aurita | E160: Other regions | F160: CECAF | G160: 34.1.3 | H160: sexual maturity | I160: Commercial at sea | J160: 5 per 1 cm per trip | K160: NA | M160: 0 | N160: 0 | O160: 0 | P160: 5 per 1 cm per trip | Q160: No sampling performed in 2020 due to COVID-19 (closed borders, restrictions in poeple movement, safety issues). See Text Box 1C for details.
A161: POL | B161: DEU - LTU -LVA - NLD - POL | C161: 2020-2021 | D161: Sardinella aurita | E161: Other regions | F161: CECAF | G161: 34.3.1 | H161: length | I161: Commercial at sea | J161: sample of 25 kg per haul | K161: NA | M161: 0 | N161: 0 | O161: 0 | P161: sample of 25 kg per haul | Q161: No sampling performed in 2020 due to COVID-19 (closed borders, restrictions in poeple movement, safety issues). See Text Box 1C for details.
A162: POL | B162: DEU - LTU -LVA - NLD - POL | C162: 2020-2021 | D162: Sardinella aurita | E162: Other regions | F162: CECAF | G162: 34.3.1 | H162: age | I162: Commercial at sea | J162: 5 per 1 cm per trip | K162: NA | M162: 0 | N162: 0 | O162: 0 | P162: 5 per 1 cm per trip | Q162: No sampling performed in 2020 due to COVID-19 (closed borders, restrictions in poeple movement, safety issues). See Text Box 1C for details.
A163: POL | B163: DEU - LTU -LVA - NLD - POL | C163: 2020-2021 | D163: Sardinella aurita | E163: Other regions | F163: CECAF | G163: 34.3.1 | H163: weight | I163: Commercial at sea | J163: 5 per 1 cm per trip | K163: NA | M163: 0 | N163: 0 | O163: 0 | P163: 5 per 1 cm per trip | Q163: No sampling performed in 2020 due to COVID-19 (closed borders, restrictions in poeple movement, safety issues). See Text Box 1C for details.
A164: POL | B164: DEU - LTU -LVA - NLD - POL | C164: 2020-2021 | D164: Sardinella aurita | E164: Other regions | F164: CECAF | G164: 34.3.1 | H164: sex ratio | I164: Commercial at sea | J164: 5 per 1 cm per trip | K164: NA | M164: 0 | N164: 0 | O164: 0 | P164: 5 per 1 cm per trip | Q164: No sampling performed in 2020 due to COVID-19 (closed borders, restrictions in poeple movement, safety issues). See Text Box 1C for details.
A165: POL | B165: DEU - LTU -LVA - NLD - POL | C165: 2020-2021 | D165: Sardinella aurita | E165: Other regions | F165: CECAF | G165: 34.3.1 | H165: sexual maturity | I165: Commercial at sea | J165: 5 per 1 cm per trip | K165: NA | M165: 0 | N165: 0 | O165: 0 | P165: 5 per 1 cm per trip | Q165: No sampling performed in 2020 due to COVID-19 (closed borders, restrictions in poeple movement, safety issues). See Text Box 1C for details.
A166: POL | B166: DEU - LTU -LVA - NLD - POL | C166: 2020-2021 | D166: Sardina pilchardus | E166: Other regions | F166: CECAF | G166: 34.1.3 | H166: length | I166: Commercial at sea | J166: sample of 25 kg per haul | K166: NA | M166: 0 | N166: 0 | O166: 0 | P166: sample of 25 kg per haul | Q166: No sampling performed in 2020 due to COVID-19 (closed borders, restrictions in poeple movement, safety issues). See Text Box 1C for details.
A167: POL | B167: DEU - LTU -LVA - NLD - POL | C167: 2020-2021 | D167: Sardina pilchardus | E167: Other regions | F167: CECAF | G167: 34.1.3 | H167: age | I167: Commercial at sea | J167: 5 per 1 cm per trip | K167: NA | M167: 0 | N167: 0 | O167: 0 | P167: 5 per 1 cm per trip | Q167: No sampling performed in 2020 due to COVID-19 (closed borders, restrictions in poeple movement, safety issues). See Text Box 1C for details.
A168: POL | B168: DEU - LTU -LVA - NLD - POL | C168: 2020-2021 | D168: Sardina pilchardus | E168: Other regions | F168: CECAF | G168: 34.1.3 | H168: weight | I168: Commercial at sea | J168: 5 per 1 cm per trip | K168: NA | M168: 0 | N168: 0 | O168: 0 | P168: 5 per 1 cm per trip | Q168: No sampling performed in 2020 due to COVID-19 (closed borders, restrictions in poeple movement, safety issues). See Text Box 1C for details.
A169: POL | B169: DEU - LTU -LVA - NLD - POL | C169: 2020-2021 | D169: Sardina pilchardus | E169: Other regions | F169: CECAF | G169: 34.1.3 | H169: sex ratio | I169: Commercial at sea | J169: 5 per 1 cm per trip | K169: NA | M169: 0 | N169: 0 | O169: 0 | P169: 5 per 1 cm per trip | Q169: No sampling performed in 2020 due to COVID-19 (closed borders, restrictions in poeple movement, safety issues). See Text Box 1C for details.
A170: POL | B170: DEU - LTU -LVA - NLD - POL | C170: 2020-2021 | D170: Sardina pilchardus | E170: Other regions | F170: CECAF | G170: 34.1.3 | H170: sexual maturity | I170: Commercial at sea | J170: 5 per 1 cm per trip | K170: NA | M170: 0 | N170: 0 | O170: 0 | P170: 5 per 1 cm per trip | Q170: No sampling performed in 2020 due to COVID-19 (closed borders, restrictions in poeple movement, safety issues). See Text Box 1C for details.
A171: POL | B171: DEU - LTU -LVA - NLD - POL | C171: 2020-2021 | D171: Scomber spp. | E171: Other regions | F171: CECAF | G171: 34.1.3 | H171: length | I171: Commercial at sea | J171: sample of 25 kg per haul | K171: NA | M171: 0 | N171: 0 | O171: 0 | P171: sample of 25 kg per haul | Q171: No sampling performed in 2020 due to COVID-19 (closed borders, restrictions in poeple movement, safety issues). See Text Box 1C for details.
A172: POL | B172: DEU - LTU -LVA - NLD - POL | C172: 2020-2021 | D172: Scomber spp. | E172: Other regions | F172: CECAF | G172: 34.1.3 | H172: age | I172: Commercial at sea | J172: 5 per 1 cm per trip | K172: NA | M172: 0 | N172: 0 | O172: 0 | P172: 5 per 1 cm per trip | Q172: No sampling performed in 2020 due to COVID-19 (closed borders, restrictions in poeple movement, safety issues). See Text Box 1C for details.
A173: POL | B173: DEU - LTU -LVA - NLD - POL | C173: 2020-2021 | D173: Scomber spp. | E173: Other regions | F173: CECAF | G173: 34.1.3 | H173: weight | I173: Commercial at sea | J173: 5 per 1 cm per trip | K173: NA | M173: 0 | N173: 0 | O173: 0 | P173: 5 per 1 cm per trip | Q173: No sampling performed in 2020 due to COVID-19 (closed borders, restrictions in poeple movement, safety issues). See Text Box 1C for details.
A174: POL | B174: DEU - LTU -LVA - NLD - POL | C174: 2020-2021 | D174: Scomber spp. | E174: Other regions | F174: CECAF | G174: 34.1.3 | H174: sex ratio | I174: Commercial at sea | J174: 5 per 1 cm per trip | K174: NA | M174: 0 | N174: 0 | O174: 0 | P174: 5 per 1 cm per trip | Q174: No sampling performed in 2020 due to COVID-19 (closed borders, restrictions in poeple movement, safety issues). See Text Box 1C for details.
A175: POL | B175: DEU - LTU -LVA - NLD - POL | C175: 2020-2021 | D175: Scomber spp. | E175: Other regions | F175: CECAF | G175: 34.1.3 | H175: sexual maturity | I175: Commercial at sea | J175: 5 per 1 cm per trip | K175: NA | M175: 0 | N175: 0 | O175: 0 | P175: 5 per 1 cm per trip | Q175: No sampling performed in 2020 due to COVID-19 (closed borders, restrictions in poeple movement, safety issues). See Text Box 1C for details.
A176: POL | B176: DEU - LTU -LVA - NLD - POL | C176: 2020-2021 | D176: Scomber spp. | E176: Other regions | F176: CECAF | G176: 34.3.1 | H176: length | I176: Commercial at sea | J176: sample of 25 kg per haul | K176: NA | M176: 0 | N176: 0 | O176: 0 | P176: sample of 25 kg per haul | Q176: No sampling performed in 2020 due to COVID-19 (closed borders, restrictions in poeple movement, safety issues). See Text Box 1C for details.
A177: POL | B177: DEU - LTU -LVA - NLD - POL | C177: 2020-2021 | D177: Scomber spp. | E177: Other regions | F177: CECAF | G177: 34.3.1 | H177: age | I177: Commercial at sea | J177: 5 per 1 cm per trip | K177: NA | M177: 0 | N177: 0 | O177: 0 | P177: 5 per 1 cm per trip | Q177: No sampling performed in 2020 due to COVID-19 (closed borders, restrictions in poeple movement, safety issues). See Text Box 1C for details.
A178: POL | B178: DEU - LTU -LVA - NLD - POL | C178: 2020-2021 | D178: Scomber spp. | E178: Other regions | F178: CECAF | G178: 34.3.1 | H178: weight | I178: Commercial at sea | J178: 5 per 1 cm per trip | K178: NA | M178: 0 | N178: 0 | O178: 0 | P178: 5 per 1 cm per trip | Q178: No sampling performed in 2020 due to COVID-19 (closed borders, restrictions in poeple movement, safety issues). See Text Box 1C for details.
A179: POL | B179: DEU - LTU -LVA - NLD - POL | C179: 2020-2021 | D179: Scomber spp. | E179: Other regions | F179: CECAF | G179: 34.3.1 | H179: sex ratio | I179: Commercial at sea | J179: 5 per 1 cm per trip | K179: NA | M179: 0 | N179: 0 | O179: 0 | P179: 5 per 1 cm per trip | Q179: No sampling performed in 2020 due to COVID-19 (closed borders, restrictions in poeple movement, safety issues). See Text Box 1C for details.
A180: POL | B180: DEU - LTU -LVA - NLD - POL | C180: 2020-2021 | D180: Scomber spp. | E180: Other regions | F180: CECAF | G180: 34.3.1 | H180: sexual maturity | I180: Commercial at sea | J180: 5 per 1 cm per trip | K180: NA | M180: 0 | N180: 0 | O180: 0 | P180: 5 per 1 cm per trip | Q180: No sampling performed in 2020 due to COVID-19 (closed borders, restrictions in poeple movement, safety issues). See Text Box 1C for details.
A181: POL | B181: DEU - LTU -LVA - NLD - POL | C181: 2020-2021 | D181: Trachurus trachurus | E181: Other regions | F181: CECAF | G181: 34.1.3 | H181: length | I181: Commercial at sea | J181: sample of 25 kg per haul | K181: NA | M181: 0 | N181: 0 | O181: 0 | P181: sample of 25 kg per haul | Q181: No sampling performed in 2020 due to COVID-19 (closed borders, restrictions in poeple movement, safety issues). See Text Box 1C for details.
A182: POL | B182: DEU - LTU -LVA - NLD - POL | C182: 2020-2021 | D182: Trachurus trachurus | E182: Other regions | F182: CECAF | G182: 34.1.3 | H182: age | I182: Commercial at sea | J182: 5 per 1 cm per trip | K182: NA | M182: 0 | N182: 0 | O182: 0 | P182: 5 per 1 cm per trip | Q182: No sampling performed in 2020 due to COVID-19 (closed borders, restrictions in poeple movement, safety issues). See Text Box 1C for details.
A183: POL | B183: DEU - LTU -LVA - NLD - POL | C183: 2020-2021 | D183: Trachurus trachurus | E183: Other regions | F183: CECAF | G183: 34.1.3 | H183: weight | I183: Commercial at sea | J183: 5 per 1 cm per trip | K183: NA | M183: 0 | N183: 0 | O183: 0 | P183: 5 per 1 cm per trip | Q183: No sampling performed in 2020 due to COVID-19 (closed borders, restrictions in poeple movement, safety issues). See Text Box 1C for details.
A184: POL | B184: DEU - LTU -LVA - NLD - POL | C184: 2020-2021 | D184: Trachurus trachurus | E184: Other regions | F184: CECAF | G184: 34.1.3 | H184: sex ratio | I184: Commercial at sea | J184: 5 per 1 cm per trip | K184: NA | M184: 0 | N184: 0 | O184: 0 | P184: 5 per 1 cm per trip | Q184: No sampling performed in 2020 due to COVID-19 (closed borders, restrictions in poeple movement, safety issues). See Text Box 1C for details.
A185: POL | B185: DEU - LTU -LVA - NLD - POL | C185: 2020-2021 | D185: Trachurus trachurus | E185: Other regions | F185: CECAF | G185: 34.1.3 | H185: sexual maturity | I185: Commercial at sea | J185: 5 per 1 cm per trip | K185: NA | M185: 0 | N185: 0 | O185: 0 | P185: 5 per 1 cm per trip | Q185: No sampling performed in 2020 due to COVID-19 (closed borders, restrictions in poeple movement, safety issues). See Text Box 1C for details.
A186: POL | B186: DEU - LTU -LVA - NLD - POL | C186: 2020-2021 | D186: Trachurus trachurus | E186: Other regions | F186: CECAF | G186: 34.3.1 | H186: length | I186: Commercial at sea | J186: sample of 25 kg per haul | K186: NA | M186: 0 | N186: 0 | O186: 0 | P186: sample of 25 kg per haul | Q186: No sampling performed in 2020 due to COVID-19 (closed borders, restrictions in poeple movement, safety issues). See Text Box 1C for details.
A187: POL | B187: DEU - LTU -LVA - NLD - POL | C187: 2020-2021 | D187: Trachurus trachurus | E187: Other regions | F187: CECAF | G187: 34.3.1 | H187: age | I187: Commercial at sea | J187: 5 per 1 cm per trip | K187: NA | M187: 0 | N187: 0 | O187: 0 | P187: 5 per 1 cm per trip | Q187: No sampling performed in 2020 due to COVID-19 (closed borders, restrictions in poeple movement, safety issues). See Text Box 1C for details.
A188: POL | B188: DEU - LTU -LVA - NLD - POL | C188: 2020-2021 | D188: Trachurus trachurus | E188: Other regions | F188: CECAF | G188: 34.3.1 | H188: weight | I188: Commercial at sea | J188: 5 per 1 cm per trip | K188: NA | M188: 0 | N188: 0 | O188: 0 | P188: 5 per 1 cm per trip | Q188: No sampling performed in 2020 due to COVID-19 (closed borders, restrictions in poeple movement, safety issues). See Text Box 1C for details.
A189: POL | B189: DEU - LTU -LVA - NLD - POL | C189: 2020-2021 | D189: Trachurus trachurus | E189: Other regions | F189: CECAF | G189: 34.3.1 | H189: sex ratio | I189: Commercial at sea | J189: 5 per 1 cm per trip | K189: NA | M189: 0 | N189: 0 | O189: 0 | P189: 5 per 1 cm per trip | Q189: No sampling performed in 2020 due to COVID-19 (closed borders, restrictions in poeple movement, safety issues). See Text Box 1C for details.
A190: POL | B190: DEU - LTU -LVA - NLD - POL | C190: 2020-2021 | D190: Trachurus trachurus | E190: Other regions | F190: CECAF | G190: 34.3.1 | H190: sexual maturity | I190: Commercial at sea | J190: 5 per 1 cm per trip | K190: NA | M190: 0 | N190: 0 | O190: 0 | P190: 5 per 1 cm per trip | Q190: No sampling performed in 2020 due to COVID-19 (closed borders, restrictions in poeple movement, safety issues). See Text Box 1C for details.
A191: POL | B191: DEU - LTU - NLD - POL | C191: 2020-2021 | D191: Trachurus murphyi | E191: Other regions | F191: SPRFMO | G191: SPRFMO Convention Area | H191: length | I191: Commercial at sea | J191: 2-3 baskets per haul (ca. 100 fish per haul) | K191: NA | L191: "Manual for scientific observers on board EU pelagic trawlers in the Pacific" (in accordance to SPRFMO Data Standards) (http://dcf.mir.gdynia.pl/?page_id=367) | M191: 0 | N191: 0 | O191: 0 | P191: 2-3 baskets per haul (ca. 100 fish per haul) | Q191: No EU fishing activity in SPRFMO area, hence no sampling in 2020.
A192: POL | B192: DEU - LTU - NLD - POL | C192: 2020-2021 | D192: Trachurus murphyi | E192: Other regions | F192: SPRFMO | G192: SPRFMO Convention Area | H192: age | I192: Commercial at sea | J192: 5 per 1 cm per trip | K192: NA | M192: 0 | N192: 0 | O192: 0 | P192: 5 per 1 cm per trip | Q192: No EU fishing activity in SPRFMO area, hence no sampling in 2020.
A193: POL | B193: DEU - LTU - NLD - POL | C193: 2020-2021 | D193: Trachurus murphyi | E193: Other regions | F193: SPRFMO | G193: SPRFMO Convention Area | H193: weight | I193: Commercial at sea | J193: 5 per 1 cm per trip | K193: NA | M193: 0 | N193: 0 | O193: 0 | P193: 5 per 1 cm per trip | Q193: No EU fishing activity in SPRFMO area, hence no sampling in 2020.
A194: POL | B194: DEU - LTU - NLD - POL | C194: 2020-2021 | D194: Trachurus murphyi | E194: Other regions | F194: SPRFMO | G194: SPRFMO Convention Area | H194: sex ratio | I194: Commercial at sea | J194: 5 per 1 cm per trip | K194: NA | M194: 0 | N194: 0 | O194: 0 | P194: 5 per 1 cm per trip | Q194: No EU fishing activity in SPRFMO area, hence no sampling in 2020.
A195: POL | B195: DEU - LTU - NLD - POL | C195: 2020-2021 | D195: Trachurus murphyi | E195: Other regions | F195: SPRFMO | G195: SPRFMO Convention Area | H195: sexual maturity | I195: Commercial at sea | J195: 5 per 1 cm per trip | K195: NA | M195: 0 | N195: 0 | O195: 0 | P195: 5 per 1 cm per trip | Q195: No EU fishing activity in SPRFMO area, hence no sampling in 2020.

Sheet Table1D Recreational Fisheries
A1: Table 1D: Recreational fisheries
X2: WP years | Y2: 2020-2021
X3: AR year | Y3: 2020
A4: MS | B4: Sampling year | C4: Area/EMU | D4: RFMO/RFO/IO | E4: Species | F4: Applicable (Species present in the MS?) | G4: Reasons for not sampling | H4: Threshold (Y/N) | I4: Annual estimate of catch? (Y/N) | J4: Annual percentage of released catch? (Y/N) | K4: Collection of catch composition data? (Y/N) | L4: Type of Survey | M4: Comments | N4: Unique Survey ID or Name of sampling scheme (Linked to Table 5A) | O4: Is the survey part of a pilot study or part of an established programme? | P4: Frequency | Q4: Is the sampling design documented? (Linked to Table 5A) | R4: Are non-response and refusal recorded? (Linked to Table 5A) | S4: Are the editing and imputation methods documented? (Linked to Table 5A) | T4: Estimation of the yearly weight and numbers of catch (Y/N) | U4: Estimation of the yearly percentage release (Y/N) | V4: Collection of catch composition data (Y/N) | W4: Evaluated by external experts/bodies (Y/N) | X4: Conform with accepted standards Y/N | Y4: AR Comments
A5: POL | B5: 2020-2021 | C5: Baltic Sea (ICES Subdivisions 22-32) | D5: ICES | E5: Gadus morhua | F5: Y | G5: NA | H5: N | I5: Y | J5: Y | K5: Y | L5: National estimates of numbers of trips &number of anglers & onsite surveys of catch per unit effort & of catch composition | M5: Planned number of at sea trips: 24 | N5: National estimates of numbers of trips &number of anglers & onsite surveys of catch per unit effort & of catch composition | O5: Routine | P5: Annual | Q5: Y | R5: Y | S5: N | T5: Y | U5: Y | V5: Y | W5: Y | X5: Y | Y5: The estimation of annual catch and number for the sampling Year (N) is available in the year after (N+1). Survey evaluated by WGRFS. Imputation is not performed at national level. Refusals recorded for questionnaires' survey. At-sea biological sampling not randomized but based on vessels' availability (drawing from vessel list).
A6: POL | B6: 2020-2021 | C6: Vistula/Oder EMU | D6: EIFAAC | E6: Anguilla anguilla | F6: Y | G6: Conducted by Inland Fisheries Institute (IFI) | H6: N | I6: Y | J6: N | K6: N | L6: National estimates of catch based on questionaires and catch register | M6: Data availabvle to WGEEL annually | N6: National estimates of catch based on questionaires and catch register | O6: Routine | P6: Annual | Q6: N | R6: N | S6: N | T6: Y | U6: N | V6: N | W6: N | X6: Y | Y6: The estimation of annual catch and number for the sampling Year (N) is available in the year after (N+2). The survey is carried out as part of state statistics and is not financed by the DCF, therefore the details of sampling design are not available on the dcf platform.
A7: POL | B7: 2020-2021 | C7: Inland waters | D7: ICES | E7: Salmo salar | F7: Y | G7: NA | H7: N | I7: Y | J7: Y | K7: Y | L7: Anglers registers verified and modified by in situ questionnaires. | M7: Only incidental catches of salmon are noted in Polish rivers. There are no wild salmon populations. | N7: National estimates of catch based on questionaires, catch register, on-site survey | O7: Routine | P7: Annual | Q7: Y | R7: Y | S7: Y | T7: Y | U7: Y | V7: Y | W7: N | X7: Y | Y7: Routine sampling from 2020 based on Pilot Study 2017-2019.
A8: POL | B8: 2020-2021 | C8: Inland waters | D8: ICES | E8: Salmo trutta | F8: Y | G8: NA | H8: N | I8: Y | J8: Y | K8: Y | L8: Anglers registers verified and modified by in situ questionnaires. | N8: National estimates of catch based on questionaires, catch register, on-site survey | O8: Routine | P8: Annual | Q8: Y | R8: Y | S8: Y | T8: Y | U8: Y | V8: Y | W8: N | X8: Y | Y8: Routine sampling from 2020 based on Pilot Study 2017-2019.
A9: POL | B9: 2020-2021 | C9: Baltic Sea (ICES Subdivisions 22-32) | D9: ICES | E9: Salmo salar | F9: Y | G9: NA | H9: N | I9: Y | J9: Y | K9: Y | L9: National estimates of numbers of trips; remote CCTV cameras in ports, on-site surveys; annual off-site surveys; catch per unit effort; catch composition. | N9: National estimates of numbers of trips; remote CCTV cameras in ports, on-site surveys; annual off-site surveys; catch per unit effort; catch composition. | O9: Routine | P9: Annual | Q9: Y | R9: Y | S9: Y | T9: Y | U9: Y | V9: Y | W9: Y | X9: Y | Y9: Routine sampling from 2020 based on Pilot Study 201-2019. Methodology presented during ICES WGRFS meeting in 2018 https://www.ices.dk/sites/pub/Publication%20Reports/Expert%20Group%20Report/EOSG/2018/WGRFS/WGRFS_2018.pdf. Pilots Study results documented in the "PS1-PL-2021 Report" presented to EC (https://dcf.mir.gdynia.pl/wp-content/uploads/2021/05/PS1-PL-2021_Report.pdf)
A10: POL | B10: 2020-2021 | C10: Baltic Sea (ICES Subdivisions 22-32) | D10: ICES | E10: Salmo trutta | F10: Y | G10: NA | H10: N | I10: Y | J10: Y | K10: Y | L10: On-site surveys; off-site surveys; estimates of catch size; catch composition. | N10: On-site surveys; off-site surveys; estimates of catch size; catch composition. | O10: Routine | P10: Annual | Q10: Y | R10: Y | S10: Y | T10: Y | U10: Y | V10: Y | W10: Y | X10: Y | Y10: Routine sampling from 2020 based on Pilot Study 201-2019. Methodology presented during ICES WGRFS meeting in 2018 https://www.ices.dk/sites/pub/Publication%20Reports/Expert%20Group%20Report/EOSG/2018/WGRFS/WGRFS_2018.pdf. Pilots Study results documented in the "PS1-PL-2021 Report" presented to EC (https://dcf.mir.gdynia.pl/wp-content/uploads/2021/05/PS1-PL-2021_Report.pdf)
A11: POL | B11: 2020-2021 | C11: Baltic Sea (ICES Subdivisions 22-32) | D11: ICES | E11: Anguilla anguilla | F11: Y | G11: NA | H11: N | I11: Y | J11: Y | K11: Y | L11: Off-site surveys; estimates of catch size; catch composition. | N11: Off-site surveys; estimates of catch size; catch composition. | O11: Routine | P11: Annual | Q11: Y | R11: Y | S11: Y | T11: Y | U11: Y | V11: Y | W11: Y | X11: Y | Y11: Routine sampling from 2020 based on Pilot Study 201-2019. Methodology presented during ICES WGRFS meeting in 2018 https://www.ices.dk/sites/pub/Publication%20Reports/Expert%20Group%20Report/EOSG/2018/WGRFS/WGRFS_2018.pdf. Pilots Study results documented in the "PS1-PL-2021 Report" presented to EC (https://dcf.mir.gdynia.pl/wp-content/uploads/2021/05/PS1-PL-2021_Report.pdf)

Sheet Table1E Anadromous catadromous
A1: Table 1E: Anadromous and catadromous species data collection in fresh water
T2: WP years | U2: 2020-2021
T3: AR year | U3: 2020
A4: MS | B4: Sampling period | C4: Area | D4: RFMO/RFO/IO | E4: Species | F4: Applicable (Y/N) | G4: Reasons for not sampling | H4: Water Body | I4: Life stage | J4: Fishery / Independent data collection | K4: Method | L4: Unit | M4: Planned nos | N4: Frequency | O4: Comments | P4: Achieved numbers | Q4: % of achievement (100*P/M) | R4: Reasons for non-conformity | S4: Survey ID | T4: Agreed at RCG level? | U4: AR Comments
A6: POL | B6: 2020-2021 | C6: ODER EMU | D6: ICES | E6: Anguilla anguilla | F6: Y | G6: NA | H6: Inland - lakes | I6: yellow | J6: F | K6: sampling | L6: n.samples | M6: 100 | N6: A | O6: biological variables | P6: 380 | Q6: =P6*100/M6 -> 380 | R6: Total Catch Measurement | S6: POL-ELE-FRW-FYK-commercial fishing | T6: N
A7: POL | B7: 2020-2021 | C7: VISTULA EMU | D7: ICES | E7: Anguilla anguilla | F7: Y | G7: NA | H7: Inland - lakes | I7: yellow | J7: F | K7: sampling | L7: n.samples | M7: 100 | N7: A | O7: biological variables | P7: 49 | Q7: =P7*100/M7 -> 49 | R7: Low fishing catches. | S7: POL-ELE-FRW-FYK-commercial fishing | T7: N
A8: POL | B8: 2020-2021 | C8: ODER EMU | D8: ICES | E8: Anguilla anguilla | F8: Y | G8: NA | H8: Inland - lakes | I8: silver | J8: F | K8: sampling | L8: n.samples | M8: 150 | N8: A | O8: biological variables | P8: 236 | Q8: 157.3333333 | R8: Total Catch Measurement | S8: POL-ELE-FRW-FYK-commercial fishing | T8: N
A9: POL | B9: 2020-2021 | C9: VISTULA EMU | D9: ICES | E9: Anguilla anguilla | F9: Y | G9: NA | H9: Inland - lakes | I9: silver | J9: F | K9: sampling | L9: n.samples | M9: 150 | N9: A | O9: biological variables | P9: 159 | Q9: 106 | S9: POL-ELE-FRW-FYK-commercial fishing | T9: N
A10: POL | B10: 2020-2021 | C10: ODER EMU | D10: ICES | E10: Anguilla anguilla | F10: Y | G10: NA | H10: Szczecin Lagoon | I10: yellow | J10: I | K10: trap | L10: n.sites | M10: 1 | N10: A | O10: yellow eel abundance | P10: 1 | Q10: 100 | S10: POL-ELE-MAR-FYK-commercial fishing | T10: N | U10: This sampling refers to surveys in marine waters (transitional) and is also defined in Tables 1 C
A11: POL | B11: 2020-2021 | C11: VISTULA EMU | D11: ICES | E11: Anguilla anguilla | F11: Y | G11: NA | H11: Vistula Lagoon | I11: yellow | J11: I | K11: trap | L11: n.sites | M11: 2 | N11: A | O11: yellow eel abundance | P11: 2 | Q11: 100 | S11: POL-ELE-MAR-FYK-commercial fishing | T11: N | U11: This sampling refers to surveys in marine waters (transitional) and is also defined in Tables 1 C
A12: POL | B12: 2020-2021 | C12: ODER EMU | D12: ICES | E12: Anguilla anguilla | F12: Y | G12: NA | H12: Inland - lakes | I12: yellow | J12: I | K12: trap | L12: n.sites | M12: 3 | N12: A | O12: yellow eel abundance | P12: 3 | Q12: 100 | S12: POL-ELE-FRW-FYK-fishery-independent | T12: N
A13: POL | B13: 2020-2021 | C13: VISTULA EMU | D13: ICES | E13: Anguilla anguilla | F13: Y | G13: NA | H13: Inland - lakes | I13: yellow | J13: I | K13: trap | L13: n.sites | M13: 3 | N13: A | O13: yellow eel abundance | P13: 3 | Q13: 100 | S13: POL-ELE-FRW-FYK-fishery-independent | T13: N
A14: POL | B14: 2020-2021 | C14: ODER EMU | D14: ICES | E14: Anguilla anguilla | F14: Y | G14: NA | H14: Pomeranian rivers | I14: yellow | J14: I | K14: trap, eel ladder | L14: n.sites | M14: 2 | N14: A | O14: abundance of recruits | P14: 2 | Q14: 100 | S14: POL-ELE-FRW-FIX-fishery independant | T14: N
A15: POL | B15: 2020-2021 | C15: Inland waters | D15: ICES | E15: Salmo trutta | F15: Y | G15: NA | H15: Oder and Vistula RBD | I15: adult | J15: F | K15: sampling | L15: n.samples | M15: 100 | N15: A | O15: biological variables | P15: 197 | Q15: 197 | R15: All fish from the Rega fishery spot were measured | S15: POL-TRS-FRW-FIX-commercial fishing | T15: N
A16: POL | B16: 2020-2021 | C16: Inland waters | D16: ICES | E16: Salmo trutta | F16: Y | G16: NA | H16: Pomeranian rivers | I16: parr | J16: I | K16: electrofishing | L16: n.sites | M16: 40 | N16: A | O16: parr density | P16: 40 | Q16: 100 | S16: POL-TRS-FRW-MEL-fishery-independent | T16: Y
A17: POL | B17: 2020-2021 | C17: Inland waters | D17: ICES | E17: Salmo trutta | F17: Y | G17: NA | H17: Pomeranian rivers and Vistula river | I17: adult | J17: I | K17: counters | L17: n.sites | M17: 3 | N17: A | O17: adult abundance | P17: 3 | Q17: =P17*100/M17 -> 100 | S17: POL-ELE-FRW-FIX-fishery independant | T17: N
A18: POL | B18: 2020-2021 | C18: Baltic Sea | D18: ICES | E18: Salmo salar | F18: Y | G18: Residual abundance, no index rivers | H18: Pomeranian rivers | I18: parr, adult | J18: NA | K18: NA | L18: NA | M18: NA | N18: NA | O18: seeText box 1E | P18: NA | Q18: NA | R18: NA | S18: NA | T18: NA

Sheet Table1F Incidental by catch
A1: Table 1F: Incidental by-catch of birds, mammals, reptiles and fish
V2: WP years | W2: 2020-2021
V3: AR year | W3: 2020
P4: Has there be occurrence of bycatch?
A5: MS | B5: Sampling period/year(s) | C5: Region | D5: RFMO/RFO/IO | E5: Sub-area / Fishing ground | F5: Scheme | G5: Stratum ID code / Name of the survey | H5: Group of vulnerable species | I5: Expected occurence of recordings | J5: Comments | K5: Total number of PSU in the sampling year | L5: Achieved number of PSU in the sampling year | M5: Number of PSU sampled in which observers have been instructed to look for bycatch | N5: Does your sampling protocol allow for the calculation of observation effort “at haul level” (Y/N) | O5: Is there any mitigation device? (Y/N) | P5: Fish (Y/N/NA) | Q5: Mammals (Y/N/NA) | R5: Birds (Y/N/NA) | S5: Reptiles (Y/N/NA) | T5: Other (Y/N/NA) | U5: Are data stored in a national database? | V5: Are data stored in international database(s)? | W5: AR Comments
A7: POL | B7: 2020-2021 | C7: Baltic Sea (ICES areas III b-d) | D7: ICES | E7: 22-32 | F7: Baltic at sea and on shore | G7: BAL VL0010 | H7: fish | I7: X | K7: 21737 | L7: 55 | M7: 38 | N7: Y | O7: Y | P7: Y | Q7: Y | R7: Y | S7: NA | T7: Y | U7: Y | V7: Y | W7: Acoustic deterrent devices for GNS and GTR. National database: NPZDRpl. International databases: ICES Bycatch DB
A8: POL | B8: 2020-2021 | C8: Baltic Sea (ICES areas III b-d) | D8: ICES | E8: 22-32 | F8: Baltic at sea and on shore | G8: BAL VL0010 | H8: birds | I8: X | K8: 21737 | L8: 55 | M8: 38 | N8: Y | O8: Y | P8: Y | Q8: Y | R8: Y | S8: NA | T8: Y | U8: Y | V8: Y | W8: Acoustic deterrent devices for GNS and GTR. National database: NPZDRpl. International databases: ICES Bycatch DB
A9: POL | B9: 2020-2021 | C9: Baltic Sea (ICES areas III b-d) | D9: ICES | E9: 22-32 | F9: Baltic at sea and on shore | G9: BAL VL0010 | H9: mammals | I9: X | K9: 21737 | L9: 55 | M9: 38 | N9: Y | O9: Y | P9: Y | Q9: Y | R9: Y | S9: NA | T9: Y | U9: Y | V9: Y | W9: Acoustic deterrent devices for GNS and GTR. National database: NPZDRpl. International databases: ICES Bycatch DB
A10: POL | B10: 2020-2021 | C10: Baltic Sea (ICES areas III b-d) | D10: ICES | E10: 22-32 | F10: Baltic at sea and on shore | G10: BAL VL1012 | H10: fish | I10: X | K10: 5228 | L10: 10 | M10: 4 | N10: Y | O10: Y | P10: Y | Q10: Y | R10: Y | S10: NA | T10: Y | U10: Y | V10: Y | W10: Acoustic deterrent devices for GNS and GTR. National database: NPZDRpl. International databases: ICES Bycatch DB
A11: POL | B11: 2020-2021 | C11: Baltic Sea (ICES areas III b-d) | D11: ICES | E11: 22-32 | F11: Baltic at sea and on shore | G11: BAL VL1012 | H11: birds | I11: X | K11: 5228 | L11: 10 | M11: 4 | N11: Y | O11: Y | P11: Y | Q11: Y | R11: Y | S11: NA | T11: Y | U11: Y | V11: Y | W11: Acoustic deterrent devices for GNS and GTR. National database: NPZDRpl. International databases: ICES Bycatch DB
A12: POL | B12: 2020-2021 | C12: Baltic Sea (ICES areas III b-d) | D12: ICES | E12: 22-32 | F12: Baltic at sea and on shore | G12: BAL VL1012 | H12: mammals | I12: X | K12: 5228 | L12: 10 | M12: 4 | N12: Y | O12: Y | P12: Y | Q12: Y | R12: Y | S12: NA | T12: Y | U12: Y | V12: Y | W12: Acoustic deterrent devices for GNS and GTR. National database: NPZDRpl. International databases: ICES Bycatch DB
A13: POL | B13: 2020-2021 | C13: Baltic Sea (ICES areas III b-d) | D13: ICES | E13: 22-32 | F13: Baltic at sea and on shore | G13: BAL VL1218 | H13: fish | I13: X | K13: 1949 | L13: 12 | M13: 1 | N13: Y | O13: N | P13: Y | Q13: Y | R13: Y | S13: NA | T13: Y | U13: Y | V13: Y | W13: National database: NPZDRpl. International databases: ICES Bycatch DB
A14: POL | B14: 2020-2021 | C14: Baltic Sea (ICES areas III b-d) | D14: ICES | E14: 22-32 | F14: Baltic at sea and on shore | G14: BAL VL1218 | H14: birds | I14: X | K14: 1949 | L14: 12 | M14: 1 | N14: Y | O14: N | P14: Y | Q14: Y | R14: Y | S14: NA | T14: Y | U14: Y | V14: Y | W14: National database: NPZDRpl. International databases: ICES Bycatch DB
A15: POL | B15: 2020-2021 | C15: Baltic Sea (ICES areas III b-d) | D15: ICES | E15: 22-32 | F15: Baltic at sea and on shore | G15: BAL VL1218 | H15: mammals | I15: X | K15: 1949 | L15: 12 | M15: 1 | N15: Y | O15: N | P15: Y | Q15: Y | R15: Y | S15: NA | T15: Y | U15: Y | V15: Y | W15: National database: NPZDRpl. International databases: ICES Bycatch DB
A16: POL | B16: 2020-2021 | C16: Baltic Sea (ICES areas III b-d) | D16: ICES | E16: 22-32 | F16: Baltic at sea and on shore | G16: BAL VL1824 | H16: fish | I16: X | K16: 2808 | L16: 17 | M16: 2 | N16: Y | O16: N | P16: Y | Q16: Y | R16: Y | S16: NA | T16: Y | U16: Y | V16: Y | W16: National database: NPZDRpl. International databases: ICES Bycatch DB
A17: POL | B17: 2020-2021 | C17: Baltic Sea (ICES areas III b-d) | D17: ICES | E17: 22-32 | F17: Baltic at sea and on shore | G17: BAL VL1824 | H17: birds | I17: X | K17: 2808 | L17: 17 | M17: 2 | N17: Y | O17: N | P17: Y | Q17: Y | R17: Y | S17: NA | T17: Y | U17: Y | V17: Y | W17: National database: NPZDRpl. International databases: ICES Bycatch DB
A18: POL | B18: 2020-2021 | C18: Baltic Sea (ICES areas III b-d) | D18: ICES | E18: 22-32 | F18: Baltic at sea and on shore | G18: BAL VL1824 | H18: mammals | I18: X | K18: 2808 | L18: 17 | M18: 2 | N18: Y | O18: N | P18: Y | Q18: Y | R18: Y | S18: NA | T18: Y | U18: Y | V18: Y | W18: National database: NPZDRpl. International databases: ICES Bycatch DB
A19: POL | B19: 2020-2021 | C19: Baltic Sea (ICES areas III b-d) | D19: ICES | E19: 22-32 | F19: Baltic at sea and on shore | G19: BAL VL2440 | H19: fish | I19: X | K19: 2711 | L19: 25 | M19: 4 | N19: Y | O19: N | P19: Y | Q19: Y | R19: Y | S19: NA | T19: Y | U19: Y | V19: Y | W19: National database: NPZDRpl. International databases: ICES Bycatch DB
A20: POL | B20: 2020-2021 | C20: Baltic Sea (ICES areas III b-d) | D20: ICES | E20: 22-32 | F20: Baltic at sea and on shore | G20: BAL VL2440 | H20: birds | I20: X | K20: 2711 | L20: 25 | M20: 4 | N20: Y | O20: N | P20: Y | Q20: Y | R20: Y | S20: NA | T20: Y | U20: Y | V20: Y | W20: National database: NPZDRpl. International databases: ICES Bycatch DB
A21: POL | B21: 2020-2021 | C21: Baltic Sea (ICES areas III b-d) | D21: ICES | E21: 22-32 | F21: Baltic at sea and on shore | G21: BAL VL2440 | H21: mammals | I21: X | K21: 2711 | L21: 25 | M21: 4 | N21: Y | O21: N | P21: Y | Q21: Y | R21: Y | S21: NA | T21: Y | U21: Y | V21: Y | W21: National database: NPZDRpl. International databases: ICES Bycatch DB
A22: POL | B22: 2020-2021 | C22: North Sea (ICES areas IIIa and IV), Eastern Arctic (ICES areas I and II) | D22: ICES | E22: I, II | F22: North Sea and Eastern Arctic at sea | G22: NSEA | H22: fish | I22: X | K22: 7 | L22: 0 | M22: 0 | N22: Y | O22: Y | P22: NA | Q22: NA | R22: NA | S22: NA | T22: NA | U22: NA | V22: NA | W22: Escape device. No sampling performed in 2020 due to COVID-19 (closed borders, restrictions in poeple movement, safaty issues). See Text Box 1C for details.
A23: POL | B23: 2020-2021 | C23: North Sea (ICES areas IIIa and IV), Eastern Arctic (ICES areas I and II) | D23: ICES | E23: I, II | F23: North Sea and Eastern Arctic at sea | G23: NSEA | H23: birds | I23: X | K23: 7 | L23: 0 | M23: 0 | N23: Y | O23: Y | P23: NA | Q23: NA | R23: NA | S23: NA | T23: NA | U23: NA | V23: NA | W23: Escape device. No sampling performed in 2020 due to COVID-19 (closed borders, restrictions in poeple movement, safaty issues). See Text Box 1C for details.
A24: POL | B24: 2020-2021 | C24: North Sea (ICES areas IIIa and IV), Eastern Arctic (ICES areas I and II) | D24: ICES | E24: I, II | F24: North Sea and Eastern Arctic at sea | G24: NSEA | H24: mammals | I24: X | K24: 7 | L24: 0 | M24: 0 | N24: Y | O24: Y | P24: NA | Q24: NA | R24: NA | S24: NA | T24: NA | U24: NA | V24: NA | W24: Escape device. No sampling performed in 2020 due to COVID-19 (closed borders, restrictions in poeple movement, safaty issues). See Text Box 1C for details.
A25: POL | B25: 2020-2021 | C25: Other regions | D25: CECAF | E25: 34.1.3, 34.3.1 | F25: Other fishing regions at sea | G25: OFR1 | H25: fish | I25: X | K25: 0 | L25: 0 | M25: 0 | N25: Y | O25: N | P25: NA | Q25: NA | R25: NA | S25: NA | T25: NA | U25: NA | V25: NA | W25: No sampling performed in 2020 due to COVID-19 (closed borders, restrictions in poeple movement, safaty issues). See Text Box 1C for details.
A26: POL | B26: 2020-2021 | C26: Other regions | D26: CECAF | E26: 34.1.3, 34.3.1 | F26: Other fishing regions at sea | G26: OFR1 | H26: mammals | I26: X | K26: 0 | L26: 0 | M26: 0 | N26: Y | O26: N | P26: NA | Q26: NA | R26: NA | S26: NA | T26: NA | U26: NA | V26: NA | W26: No sampling performed in 2020 due to COVID-19 (closed borders, restrictions in poeple movement, safaty issues). See Text Box 1C for details.
A27: POL | B27: 2020-2021 | C27: Other regions | D27: SPRFMO | E27: SPRFMO Convention Area | F27: Other fishing regions at sea | G27: OFR2 | H27: fish | I27: X | K27: 0 | L27: 0 | M27: 0 | N27: Y | O27: Y | P27: NA | Q27: NA | R27: NA | S27: NA | T27: NA | U27: NA | V27: NA | W27: Bird Baffler -obligatory birds mitigation device in SPRFMO area. Data reported to SPRFMO Secretariat and Scientific Council. No EU fishing activity in SPRFMO area, hence no sampling in 2020.
A28: POL | B28: 2020-2021 | C28: Other regions | D28: SPRFMO | E28: SPRFMO Convention Area | F28: Other fishing regions at sea | G28: OFR2 | H28: birds | I28: X | K28: 0 | L28: 0 | M28: 0 | N28: Y | O28: Y | P28: NA | Q28: NA | R28: NA | S28: NA | T28: NA | U28: NA | V28: NA | W28: Bird Baffler -obligatory birds mitigation device in SPRFMO area. Data reported to SPRFMO Secretariat and Scientific Council. No EU fishing activity in SPRFMO area, hence no sampling in 2020.
A29: POL | B29: 2020-2021 | C29: Other regions | D29: SPRFMO | E29: SPRFMO Convention Area | F29: Other fishing regions at sea | G29: OFR2 | H29: mammals | I29: X | K29: 0 | L29: 0 | M29: 0 | N29: Y | O29: Y | P29: NA | Q29: NA | R29: NA | S29: NA | T29: NA | U29: NA | V29: NA | W29: Bird Baffler -obligatory birds mitigation device in SPRFMO area. Data reported to SPRFMO Secretariat and Scientific Council. No EU fishing activity in SPRFMO area, hence no sampling in 2020.
A30: POL | B30: 2020 | C30: Baltic Sea (ICES areas III b-d) | D30: ICES | E30: 22-32 | F30: self-sampling of small pelagic's | G30: Pelagics_pilot | H30: fish | I30: X | K30: 1640 | L30: 4 | M30: 0 | N30: N | O30: N | P30: N | Q30: N | R30: N | S30: N | T30: N | U30: NA | V30: NA | W30: New row. Sampling frame not included in the WP. Samples were collected as a part of Intersessional Subgroup 'Case study of fisheries for small pelagic's in the Baltic'. The data were collected in the three months period (February-April) in 2020

Sheet Table1G List of research survey
A1: Table 1G: List of research surveys at sea
Z2: WP years | AA2: 2020-2021
Z3: AR year | AA3: 2020
A4: MS | B4: Name of survey | C4: Acronym | D4: Mandatory (Y/N) | E4: Threshold (Y/N) | F4: Agreed at RCG level | G4: MS participation | H4: Area(s) covered | I4: Period (Month) | J4: Frequency | K4: Days at sea planned | L4: Type of sampling activities | M4: Planned target | N4: Map | O4: Relevant international planning group - RFMO/RFO/IO | P4: International database | Q4: Comments | R4: Type of MS participation | S4: In case of financial participation, is payment done? (Y/N) | T4: Days at sea achieved | U4: Achieved target | V4: Other data assimilations (Y/N) | W4: Was the survey carried out within the official time period? (Y/N) | X4: Was the survey carried out within the official survey area? (Y/N) | Y4: Indication if AR comments by MS are required concerning effort achieved | Z4: Indication if AR comments by MS are required concerning temporal and spatial coverage | AA4: AR Comments
A5: POL | B5: Baltic International Trawl Survey | C5: BITS Q1 | D5: Y | E5: N | F5: Y | G5: DEU (E); DNK (E); LTU (E); LVA (E); SWE (E) | H5: IIIb-d | I5: February | J5: Annual | K5: 28 | L5: Fish Hauls | M5: 81 | N5: Fig 1.1 | O5: ICES WGBIFS | P5: DATRAS, TowData, ROSCOP | Q5: Number of planned days at sea and planned targets (no of hauls) may change between years subject to recommendations from WGBIFS | R5: P | T5: 27 | U5: 70 | V5: N | W5: Y | X5: Y | AA5: 70 control hauls was recommended by the WGBIFS and all planned hauls were executed
A6: POL | B6: Baltic International Trawl Survey | C6: BITS Q4 | D6: Y | E6: N | F6: Y | G6: DEU (E); DNK (E); LTU (E); LVA (E); SWE (E) | H6: IIIb-d | I6: November | J6: Annual | K6: 23 | L6: Fish Hauls | M6: 60 | N6: Fig 1.2 | O6: ICES WGBIFS | P6: DATRAS, TowData, ROSCOP | Q6: Number of planned days at sea and planned targets (no of hauls) may change between years subject to recommendations from WGBIFS | R6: P | T6: 21 | U6: 62 | V6: N | W6: Y | X6: Y | AA6: 62 control hauls was recommended by the WGBIFS and all planned hauls were executed
A7: POL | B7: Baltic International Acoustic Survey (Autumn) | C7: BIAS | D7: Y | E7: N | F7: Y | G7: DEU (E); DNK (C); EST (E); FIN (E); LTU (E); LVA (E); SWE (E) | H7: IIIb-d | I7: September | J7: Annual | K7: 18 | L7: Echo Nm | M7: 830 | N7: Fig 1.3 | O7: ICES WGBIFS | P7: BIAS-DB | Q7: Number of planned days at sea and planned targets (no of hauls, Nm) may change between years subject to recommendations from WGBIFS | R7: P | T7: 16 | U7: 777 | V7: N | W7: Y | X7: Y | AA7: Realized length of echointegration transects according to WGBIFS recommendation (min. 60 Nm for area of 1000 square Nm)
A8: POL | B8: Baltic International Acoustic Survey (Autumn) | C8: BIAS | D8: Y | E8: N | F8: Y | G8: DEU (E); DNK (C); EST (E); FIN (E); LTU (E); LVA (E); SWE (E) | H8: IIIb-d | I8: September | J8: Annual | K8: 18 | L8: Fish Hauls | M8: 35 | N8: Fig 1.3 | O8: ICES WGBIFS | P8: BIAS-DB | Q8: Number of planned days at sea and planned targets (no of hauls, Nm) may change between years subject to recommendations from WGBIFS | R8: P | T8: 16 | U8: 28 | V8: N | W8: Y | X8: Y | AA8: Executed No of control hauls according to WGBIFS recommendation (min. 2 hauls per ICES statistical rectangle)
A9: POL | B9: Sprat Acoustic Survey | C9: SPRAS | D9: Y | E9: N | F9: Y | G9: DEU (E); EST (E); LTU (E); LVA (E). | H9: IIId | I9: May | J9: Annual | K9: 12 | L9: Echo Nm | M9: 830 | N9: Fig 1.3 | O9: ICES WGBIFS | P9: BASS-DB | Q9: Number of planned days at sea and planned targets (no of hauls, Nm) may change between years subject to recommendations from WGBIFS | R9: P | T9: 11 | U9: 750 | V9: N | W9: Y | X9: Y | AA9: Realized length of echointegration transects according to WGBIFS recommendation (min. 60 Nm for area of 1000 square Nm)
A10: POL | B10: Sprat Acoustic Survey | C10: SPRAS | D10: Y | E10: N | F10: Y | G10: DEU (E); EST (E); LTU (E); LVA (E). | H10: IIId | I10: May | J10: Annual | K10: 12 | L10: Fish Hauls | M10: 35 | N10: Fig 1.3 | O10: ICES WGBIFS | P10: BASS-DB | Q10: Number of planned days at sea and planned targets (no of hauls, Nm) may change between years subject to recommendations from WGBIFS | R10: P | T10: 11 | U10: 30 | V10: N | W10: Y | X10: Y | AA10: Executed No of control hauls according to WGBIFS recommendation (min. 2 hauls per ICES statistical rectangle)

Sheet Table1H Research survey data
A1: Table 1H: Research survey data collection and dissemination
L2: WP years | M2: 2020-2021
L3: AR year | M3: 2020
A4: MS | B4: Name of survey | C4: Acronym | D4: Type of data collected | E4: Core/ Additional variable | F4: Used as basis for advice (Y/N) | G4: Comments | H4: Was the sampling carried out? (Y/N/P) | I4: Relevant International database | J4: Was the data uploaded to the relevant database? (Y/N) | K4: Other data assimilations? (Y/N) | L4: Indication if AR comments are required by MS | M4: AR comments
A5: POL | B5: Baltic International Trawl Survey | C5: BITS Q1 | D5: Biological data for Cod 25-32 and Flounder 22-32 | E5: C | F5: Y | H5: Y | I5: DATRAS, TowData, ROSCOP | J5: Y | K5: N
A6: POL | B6: Baltic International Trawl Survey | C6: BITS Q1 | D6: Cod stomach content | E6: A | F6: N | H6: Y | I6: No existing database | J6: N | K6: N
A7: POL | B7: Baltic International Trawl Survey | C7: BITS Q1 | D7: CTD by haul | E7: A | F7: N | H7: Y | I7: ICES Oceanographic DB; ICES - IROC | J7: Y | K7: N
A8: POL | B8: Baltic International Trawl Survey | C8: BITS Q1 | D8: Litter by haul | E8: A | F8: N | H8: Y | I8: DATRAS | J8: Y | K8: N
A9: POL | B9: Baltic International Trawl Survey | C9: BITS Q1 | D9: Marine mammal observations | E9: A | F9: N | H9: Y | I9: No existing database | J9: N | K9: N
A10: POL | B10: Baltic International Trawl Survey | C10: BITS Q4 | D10: Biological data for Cod 25-32 and Flounder 22-32 | E10: C | F10: Y | H10: Y | I10: DATRAS, TowData, ROSCOP | J10: Y | K10: N
A11: POL | B11: Baltic International Trawl Survey | C11: BITS Q4 | D11: Cod stomach content | E11: A | F11: N | H11: Y | I11: No existing database | J11: N | K11: N
A12: POL | B12: Baltic International Trawl Survey | C12: BITS Q4 | D12: CTD by haul | E12: A | F12: N | H12: Y | I12: ICES Oceanographic DB; ICES - IROC | J12: Y | K12: N
A13: POL | B13: Baltic International Trawl Survey | C13: BITS Q4 | D13: Litter by haul | E13: A | F13: N | H13: Y | I13: DATRAS | J13: Y | K13: N
A14: POL | B14: Baltic International Trawl Survey | C14: BITS Q4 | D14: Marine mammal observations | E14: A | F14: N | H14: Y | I14: No existing database | J14: N | K14: N
A15: POL | B15: Baltic International Acoustic Survey (Autumn) | C15: BIAS | D15: Hydroacoustic data | E15: C | F15: Y | H15: Y | I15: ICES Acoustic trawl surveys DB | J15: Y | K15: N
A16: POL | B16: Baltic International Acoustic Survey (Autumn) | C16: BIAS | D16: Biological data for Herring 25-29 and Sprat 22-32 | E16: C | F16: Y | H16: Y | I16: ICES Acoustic trawl surveys DB | J16: Y | K16: N
A17: POL | B17: Baltic International Acoustic Survey (Autumn) | C17: BIAS | D17: CTD by haul | E17: A | F17: N | H17: Y | I17: ICES Oceanographic DB; ICES - IROC | J17: Y | K17: N
A18: POL | B18: Baltic International Acoustic Survey (Autumn) | C18: BIAS | D18: Marine mammal observations | E18: A | F18: N | H18: Y | I18: No existing database | J18: N | K18: N
A19: POL | B19: Sprat Acoustic Survey | C19: SPRAS | D19: Hydroacoustic data | E19: C | F19: Y | H19: Y | I19: ICES Acoustic trawl surveys DB | J19: Y | K19: N
A20: POL | B20: Sprat Acoustic Survey | C20: SPRAS | D20: Biological data for Sprat 22-32 | E20: C | F20: Y | H20: Y | I20: ICES Acoustic trawl surveys DB | J20: Y | K20: N
A21: POL | B21: Sprat Acoustic Survey | C21: SPRAS | D21: CTD by haul | E21: A | F21: N | H21: Y | I21: ICES Oceanographic DB; ICES - IROC | J21: Y | K21: N
A22: POL | B22: Sprat Acoustic Survey | C22: SPRAS | D22: Marine mammal observations | E22: A | F22: N | H22: Y | I22: No existing database | J22: N | K22: N

Sheet Table2A Fishing activity variab
A1: Table 2A: Fishing activity variables data collection strategy
S2: WP years | T2: 2020-2021
S3: AR year | T3: 2020
A4: MS | B4: Supra region | C4: Region | D4: Variable Group | E4: Variable | F4: Fishing technique | G4: Length class | H4: Metiers (level 6) | I4: Data collected under control regulation appropriate for scientific use (Y/N/I) | J4: Type of data collected under control regulation used to calculate the estimates | K4: Expected coverage of data collected under control regulation (% of fishing trips) | L4: Additional data collection (Y/N) | M4: Data collection scheme | N4: Planned coverage of data collected under complementary data collection (% of fishing trips) | O4: Comments | P4: Data collected under control regulation accessible for scientific use (Y/N/I) | Q4: Data source for complementary data collection | R4: Achieved coverage of data collected under complementary data collection | S4: Response Rate (%) | T4: AR comments
A5: POL | B5: Baltic Sea; North Sea; Eastern Arctic; NAFO; Extended North-Western waters (Ices areas V, VI and VII) and Southern Western waters | C5: Baltic Sea (ICES areas III b-d) | D5: Effort | E5: Days at sea, Hours fished, Fishing days, kW*Fishing days, GT*Fishing days, Number of trips, Number of fishing operations | F5: Demersal trawlers and/or demersal seiners | G5: 10-<12 m | H5: All metiers | I5: Y | J5: Aggregated data from logbooks | K5: 100 | L5: N | M5: None | N5: NA | P5: Y | Q5: NA | R5: NA | S5: NA
A6: POL | B6: Baltic Sea; North Sea; Eastern Arctic; NAFO; Extended North-Western waters (Ices areas V, VI and VII) and Southern Western waters | C6: Baltic Sea (ICES areas III b-d) | D6: Effort | E6: Days at sea, Hours fished, Fishing days, kW*Fishing days, GT*Fishing days, Number of trips, Number of fishing operations | F6: Demersal trawlers and/or demersal seiners | G6: 12-<18 m | H6: All metiers | I6: Y | J6: Aggregated data from logbooks, VMS data | K6: 100 | L6: N | M6: None | N6: NA | P6: Y | Q6: NA | R6: NA | S6: NA
A7: POL | B7: Baltic Sea; North Sea; Eastern Arctic; NAFO; Extended North-Western waters (Ices areas V, VI and VII) and Southern Western waters | C7: Baltic Sea (ICES areas III b-d) | D7: Effort | E7: Days at sea, Hours fished, Fishing days, kW*Fishing days, GT*Fishing days, Number of trips, Number of fishing operations | F7: Demersal trawlers and/or demersal seiners | G7: 18-<24 m | H7: All metiers | I7: Y | J7: Aggregated data from logbooks, VMS data | K7: 100 | L7: N | M7: None | N7: NA | P7: Y | Q7: NA | R7: NA | S7: NA
A8: POL | B8: Baltic Sea; North Sea; Eastern Arctic; NAFO; Extended North-Western waters (Ices areas V, VI and VII) and Southern Western waters | C8: Baltic Sea (ICES areas III b-d) | D8: Effort | E8: Days at sea, Hours fished, Fishing days, kW*Fishing days, GT*Fishing days, Number of trips, Number of fishing operations | F8: Demersal trawlers and/or demersal seiners | G8: 24-<40 m | H8: All metiers | I8: Y | J8: Aggregated data from logbooks, VMS data | K8: 100 | L8: N | M8: None | N8: NA | P8: Y | Q8: NA | R8: NA | S8: NA
A9: POL | B9: Baltic Sea; North Sea; Eastern Arctic; NAFO; Extended North-Western waters (Ices areas V, VI and VII) and Southern Western waters | C9: Baltic Sea (ICES areas III b-d) | D9: Capacity | E9: Number of vessels, GT, kW, Vessel Age | F9: Demersal trawlers and/or demersal seiners | G9: 10-<12 m | H9: All metiers | I9: Y | J9: Aggregated data from logbooks, Fleet register | K9: 100 | L9: N | M9: None | N9: NA | P9: Y | Q9: NA | R9: NA | S9: NA
A10: POL | B10: Baltic Sea; North Sea; Eastern Arctic; NAFO; Extended North-Western waters (Ices areas V, VI and VII) and Southern Western waters | C10: Baltic Sea (ICES areas III b-d) | D10: Capacity | E10: Number of vessels, GT, kW, Vessel Age | F10: Demersal trawlers and/or demersal seiners | G10: 12-<18 m | H10: All metiers | I10: Y | J10: Aggregated data from logbooks, Fleet register | K10: 100 | L10: N | M10: None | N10: NA | P10: Y | Q10: NA | R10: NA | S10: NA
A11: POL | B11: Baltic Sea; North Sea; Eastern Arctic; NAFO; Extended North-Western waters (Ices areas V, VI and VII) and Southern Western waters | C11: Baltic Sea (ICES areas III b-d) | D11: Capacity | E11: Number of vessels, GT, kW, Vessel Age | F11: Demersal trawlers and/or demersal seiners | G11: 18-<24 m | H11: All metiers | I11: Y | J11: Aggregated data from logbooks, Fleet register | K11: 100 | L11: N | M11: None | N11: NA | P11: Y | Q11: NA | R11: NA | S11: NA
A12: POL | B12: Baltic Sea; North Sea; Eastern Arctic; NAFO; Extended North-Western waters (Ices areas V, VI and VII) and Southern Western waters | C12: Baltic Sea (ICES areas III b-d) | D12: Capacity | E12: Number of vessels, GT, kW, Vessel Age | F12: Demersal trawlers and/or demersal seiners | G12: 24-<40 m | H12: All metiers | I12: Y | J12: Aggregated data from logbooks, Fleet register | K12: 100 | L12: N | M12: None | N12: NA | P12: Y | Q12: NA | R12: NA | S12: NA
A13: POL | B13: Baltic Sea; North Sea; Eastern Arctic; NAFO; Extended North-Western waters (Ices areas V, VI and VII) and Southern Western waters | C13: Baltic Sea (ICES areas III b-d) | D13: Landings | E13: Value of landings total and per commercial species, Live Weight of landings total and per species, Prices by commercial species | F13: Demersal trawlers and/or demersal seiners | G13: 10-<12 m | H13: All metiers | I13: Y | J13: Aggregated data from logbooks and sales notes | K13: 100 | L13: N | M13: None | N13: NA | P13: Y | Q13: NA | R13: NA | S13: NA
A14: POL | B14: Baltic Sea; North Sea; Eastern Arctic; NAFO; Extended North-Western waters (Ices areas V, VI and VII) and Southern Western waters | C14: Baltic Sea (ICES areas III b-d) | D14: Landings | E14: Value of landings total and per commercial species, Live Weight of landings total and per species, Prices by commercial species | F14: Demersal trawlers and/or demersal seiners | G14: 12-<18 m | H14: All metiers | I14: Y | J14: Aggregated data from logbooks and sales notes, VMS data | K14: 100 | L14: N | M14: None | N14: NA | P14: Y | Q14: NA | R14: NA | S14: NA
A15: POL | B15: Baltic Sea; North Sea; Eastern Arctic; NAFO; Extended North-Western waters (Ices areas V, VI and VII) and Southern Western waters | C15: Baltic Sea (ICES areas III b-d) | D15: Landings | E15: Value of landings total and per commercial species, Live Weight of landings total and per species, Prices by commercial species | F15: Demersal trawlers and/or demersal seiners | G15: 18-<24 m | H15: All metiers | I15: Y | J15: Aggregated data from logbooks and sales notes, VMS data | K15: 100 | L15: N | M15: None | N15: NA | P15: Y | Q15: NA | R15: NA | S15: NA
A16: POL | B16: Baltic Sea; North Sea; Eastern Arctic; NAFO; Extended North-Western waters (Ices areas V, VI and VII) and Southern Western waters | C16: Baltic Sea (ICES areas III b-d) | D16: Landings | E16: Value of landings total and per commercial species, Live Weight of landings total and per species, Prices by commercial species | F16: Demersal trawlers and/or demersal seiners | G16: 24-<40 m | H16: All metiers | I16: Y | J16: Aggregated data from logbooks and sales notes, VMS data | K16: 100 | L16: N | M16: None | N16: NA | P16: Y | Q16: NA | R16: NA | S16: NA
A17: POL | B17: Baltic Sea; North Sea; Eastern Arctic; NAFO; Extended North-Western waters (Ices areas V, VI and VII) and Southern Western waters | C17: Baltic Sea (ICES areas III b-d) | D17: Effort | E17: Days at sea, Hours fished, Fishing days, kW*Fishing days, GT*Fishing days, Number of trips, Number of fishing operations | F17: Pelagic trawlers | G17: 12-<18 m | H17: All metiers | I17: Y | J17: Aggregated data from logbooks, VMS data | K17: 100 | L17: N | M17: None | N17: NA | P17: Y | Q17: NA | R17: NA | S17: NA
A18: POL | B18: Baltic Sea; North Sea; Eastern Arctic; NAFO; Extended North-Western waters (Ices areas V, VI and VII) and Southern Western waters | C18: Baltic Sea (ICES areas III b-d) | D18: Effort | E18: Days at sea, Hours fished, Fishing days, kW*Fishing days, GT*Fishing days, Number of trips, Number of fishing operations | F18: Pelagic trawlers | G18: 18-<24 m | H18: All metiers | I18: Y | J18: Aggregated data from logbooks, VMS data | K18: 100 | L18: N | M18: None | N18: NA | P18: Y | Q18: NA | R18: NA | S18: NA
A19: POL | B19: Baltic Sea; North Sea; Eastern Arctic; NAFO; Extended North-Western waters (Ices areas V, VI and VII) and Southern Western waters | C19: Baltic Sea (ICES areas III b-d) | D19: Effort | E19: Days at sea, Hours fished, Fishing days, kW*Fishing days, GT*Fishing days, Number of trips, Number of fishing operations | F19: Pelagic trawlers | G19: 24-<40 m | H19: All metiers | I19: Y | J19: Aggregated data from logbooks, VMS data | K19: 100 | L19: N | M19: None | N19: NA | P19: Y | Q19: NA | R19: NA | S19: NA
A20: POL | B20: Baltic Sea; North Sea; Eastern Arctic; NAFO; Extended North-Western waters (Ices areas V, VI and VII) and Southern Western waters | C20: Baltic Sea (ICES areas III b-d) | D20: Capacity | E20: Number of vessels, GT, kW, Vessel Age | F20: Pelagic trawlers | G20: 12-<18 m | H20: All metiers | I20: Y | J20: Aggregated data from logbooks, Fleet register | K20: 100 | L20: N | M20: None | N20: NA | P20: Y | Q20: NA | R20: NA | S20: NA
A21: POL | B21: Baltic Sea; North Sea; Eastern Arctic; NAFO; Extended North-Western waters (Ices areas V, VI and VII) and Southern Western waters | C21: Baltic Sea (ICES areas III b-d) | D21: Capacity | E21: Number of vessels, GT, kW, Vessel Age | F21: Pelagic trawlers | G21: 18-<24 m | H21: All metiers | I21: Y | J21: Aggregated data from logbooks, Fleet register | K21: 100 | L21: N | M21: None | N21: NA | P21: Y | Q21: NA | R21: NA | S21: NA
A22: POL | B22: Baltic Sea; North Sea; Eastern Arctic; NAFO; Extended North-Western waters (Ices areas V, VI and VII) and Southern Western waters | C22: Baltic Sea (ICES areas III b-d) | D22: Capacity | E22: Number of vessels, GT, kW, Vessel Age | F22: Pelagic trawlers | G22: 24-<40 m | H22: All metiers | I22: Y | J22: Aggregated data from logbooks, Fleet register | K22: 100 | L22: N | M22: None | N22: NA | P22: Y | Q22: NA | R22: NA | S22: NA
A23: POL | B23: Baltic Sea; North Sea; Eastern Arctic; NAFO; Extended North-Western waters (Ices areas V, VI and VII) and Southern Western waters | C23: Baltic Sea (ICES areas III b-d) | D23: Landings | E23: Value of landings total and per commercial species, Live Weight of landings total and per species, Prices by commercial species | F23: Pelagic trawlers | G23: 12-<18 m | H23: All metiers | I23: Y | J23: Aggregated data from logbooks and sales notes, VMS data | K23: 100 | L23: N | M23: None | N23: NA | P23: Y | Q23: NA | R23: NA | S23: NA
A24: POL | B24: Baltic Sea; North Sea; Eastern Arctic; NAFO; Extended North-Western waters (Ices areas V, VI and VII) and Southern Western waters | C24: Baltic Sea (ICES areas III b-d) | D24: Landings | E24: Value of landings total and per commercial species, Live Weight of landings total and per species, Prices by commercial species | F24: Pelagic trawlers | G24: 18-<24 m | H24: All metiers | I24: Y | J24: Aggregated data from logbooks and sales notes, VMS data | K24: 100 | L24: N | M24: None | N24: NA | P24: Y | Q24: NA | R24: NA | S24: NA
A25: POL | B25: Baltic Sea; North Sea; Eastern Arctic; NAFO; Extended North-Western waters (Ices areas V, VI and VII) and Southern Western waters | C25: Baltic Sea (ICES areas III b-d) | D25: Landings | E25: Value of landings total and per commercial species, Live Weight of landings total and per species, Prices by commercial species | F25: Pelagic trawlers | G25: 24-<40 m | H25: All metiers | I25: Y | J25: Aggregated data from logbooks and sales notes, VMS data | K25: 100 | L25: N | M25: None | N25: NA | P25: Y | Q25: NA | R25: NA | S25: NA
A26: POL | B26: Baltic Sea; North Sea; Eastern Arctic; NAFO; Extended North-Western waters (Ices areas V, VI and VII) and Southern Western waters | C26: Baltic Sea (ICES areas III b-d) | D26: Effort | E26: Days at sea, Hours fished, Fishing days, kW*Fishing days, GT*Fishing days, Number of trips, Number of nets | F26: Drift and/or fixed netters | G26: 0-<10 m | H26: All metiers | I26: Y | J26: Data from monthly catch reports | K26: 100 | L26: N | M26: None | N26: NA | O26: Mesh size information is missing which causes difficulties in metier identification. | P26: Y | Q26: NA | R26: NA | S26: NA
A27: POL | B27: Baltic Sea; North Sea; Eastern Arctic; NAFO; Extended North-Western waters (Ices areas V, VI and VII) and Southern Western waters | C27: Baltic Sea (ICES areas III b-d) | D27: Effort | E27: Days at sea, Hours fished, Fishing days, kW*Fishing days, GT*Fishing days, Number of trips, Number of fishing operations, Number of nets | F27: Drift and/or fixed netters | G27: 10-<12 m | H27: All metiers | I27: Y | J27: Aggregated data from logbooks | K27: 100 | L27: N | M27: None | N27: NA | P27: Y | Q27: NA | R27: NA | S27: NA
A28: POL | B28: Baltic Sea; North Sea; Eastern Arctic; NAFO; Extended North-Western waters (Ices areas V, VI and VII) and Southern Western waters | C28: Baltic Sea (ICES areas III b-d) | D28: Effort | E28: Days at sea, Hours fished, Fishing days, kW*Fishing days, GT*Fishing days, Number of trips, Number of fishing operations, Number of nets | F28: Drift and/or fixed netters | G28: 12-<18 m | H28: All metiers | I28: Y | J28: Aggregated data from logbooks, VMS data | K28: 100 | L28: N | M28: None | N28: NA | P28: Y | Q28: NA | R28: NA | S28: NA
A29: POL | B29: Baltic Sea; North Sea; Eastern Arctic; NAFO; Extended North-Western waters (Ices areas V, VI and VII) and Southern Western waters | C29: Baltic Sea (ICES areas III b-d) | D29: Capacity | E29: Number of vessels, GT, kW, Vessel Age | F29: Drift and/or fixed netters | G29: 0-<10 m | H29: All metiers | I29: Y | J29: Data from monthly catch reports, Fleet register | K29: 100 | L29: N | M29: None | N29: NA | O29: Mesh size information is missing which causes difficulties in metier identification. | P29: Y | Q29: NA | R29: NA | S29: NA
A30: POL | B30: Baltic Sea; North Sea; Eastern Arctic; NAFO; Extended North-Western waters (Ices areas V, VI and VII) and Southern Western waters | C30: Baltic Sea (ICES areas III b-d) | D30: Capacity | E30: Number of vessels, GT, kW, Vessel Age | F30: Drift and/or fixed netters | G30: 10-<12 m | H30: All metiers | I30: Y | J30: Aggregated data from logbooks, Fleet register | K30: 100 | L30: N | M30: None | N30: NA | P30: Y | Q30: NA | R30: NA | S30: NA
A31: POL | B31: Baltic Sea; North Sea; Eastern Arctic; NAFO; Extended North-Western waters (Ices areas V, VI and VII) and Southern Western waters | C31: Baltic Sea (ICES areas III b-d) | D31: Capacity | E31: Number of vessels, GT, kW, Vessel Age | F31: Drift and/or fixed netters | G31: 12-<18 m | H31: All metiers | I31: Y | J31: Aggregated data from logbooks, Fleet register | K31: 100 | L31: N | M31: None | N31: NA | P31: Y | Q31: NA | R31: NA | S31: NA
A32: POL | B32: Baltic Sea; North Sea; Eastern Arctic; NAFO; Extended North-Western waters (Ices areas V, VI and VII) and Southern Western waters | C32: Baltic Sea (ICES areas III b-d) | D32: Landings | E32: Value of landings total and per commercial species, Live Weight of landings total and per species, Prices by commercial species | F32: Drift and/or fixed netters | G32: 0-<10 m | H32: All metiers | I32: Y | J32: Data from monthly catch reports ad sales notes | K32: 100 | L32: N | M32: None | N32: NA | O32: Mesh size information is missing which causes difficulties in metier identification. | P32: Y | Q32: NA | R32: NA | S32: NA | T32: Limited access to sales notes which are stored in a paper form.
A33: POL | B33: Baltic Sea; North Sea; Eastern Arctic; NAFO; Extended North-Western waters (Ices areas V, VI and VII) and Southern Western waters | C33: Baltic Sea (ICES areas III b-d) | D33: Landings | E33: Value of landings total and per commercial species, Live Weight of landings total and per species, Prices by commercial species | F33: Drift and/or fixed netters | G33: 10-<12 m | H33: All metiers | I33: Y | J33: Aggregated data from logbooks and sales notes | K33: 100 | L33: N | M33: None | N33: NA | P33: Y | Q33: NA | R33: NA | S33: NA
A34: POL | B34: Baltic Sea; North Sea; Eastern Arctic; NAFO; Extended North-Western waters (Ices areas V, VI and VII) and Southern Western waters | C34: Baltic Sea (ICES areas III b-d) | D34: Landings | E34: Value of landings total and per commercial species, Live Weight of landings total and per species, Prices by commercial species | F34: Drift and/or fixed netters | G34: 12-<18 m | H34: All metiers | I34: Y | J34: Aggregated data from logbooks and sales notes, VMS data | K34: 100 | L34: N | M34: None | N34: NA | P34: Y | Q34: NA | R34: NA | S34: NA
A35: POL | B35: Baltic Sea; North Sea; Eastern Arctic; NAFO; Extended North-Western waters (Ices areas V, VI and VII) and Southern Western waters | C35: Baltic Sea (ICES areas III b-d) | D35: Effort | E35: Days at sea, Hours fished, Fishing days, kW*Fishing days, GT*Fishing days, Number of trips, Number of pots/traps | F35: Vessels using Pots and/or traps | G35: 0-<10 m | H35: All metiers | I35: Y | J35: Data from monthly catch reports | K35: 100 | L35: N | M35: None | N35: NA | O35: Mesh size information is missing which causes difficulties in metier identification. | P35: Y | Q35: NA | R35: NA | S35: NA
A36: POL | B36: Baltic Sea; North Sea; Eastern Arctic; NAFO; Extended North-Western waters (Ices areas V, VI and VII) and Southern Western waters | C36: Baltic Sea (ICES areas III b-d) | D36: Effort | E36: Days at sea, Hours fished, Fishing days, kW*Fishing days, GT*Fishing days, Number of trips, Number of fishing operations, Number of pots/traps | F36: Vessels using Pots and/or traps | G36: 10-<12 m | H36: All metiers | I36: Y | J36: Aggregated data from logbooks | K36: 100 | L36: N | M36: None | N36: NA | P36: Y | Q36: NA | R36: NA | S36: NA
A37: POL | B37: Baltic Sea; North Sea; Eastern Arctic; NAFO; Extended North-Western waters (Ices areas V, VI and VII) and Southern Western waters | C37: Baltic Sea (ICES areas III b-d) | D37: Capacity | E37: Number of vessels, GT, kW, Vessel Age | F37: Vessels using Pots and/or traps | G37: 0-<10 m | H37: All metiers | I37: Y | J37: Data from monthly catch reports, Fleet register | K37: 100 | L37: N | M37: None | N37: NA | O37: Mesh size information is missing which causes difficulties in metier identification. | P37: Y | Q37: NA | R37: NA | S37: NA
A38: POL | B38: Baltic Sea; North Sea; Eastern Arctic; NAFO; Extended North-Western waters (Ices areas V, VI and VII) and Southern Western waters | C38: Baltic Sea (ICES areas III b-d) | D38: Capacity | E38: Number of vessels, GT, kW, Vessel Age | F38: Vessels using Pots and/or traps | G38: 10-<12 m | H38: All metiers | I38: Y | J38: Aggregated data from logbooks, Fleet register | K38: 100 | L38: N | M38: None | N38: NA | P38: Y | Q38: NA | R38: NA | S38: NA
A39: POL | B39: Baltic Sea; North Sea; Eastern Arctic; NAFO; Extended North-Western waters (Ices areas V, VI and VII) and Southern Western waters | C39: Baltic Sea (ICES areas III b-d) | D39: Landings | E39: Value of landings total and per commercial species, Live Weight of landings total and per species, Prices by commercial species | F39: Vessels using Pots and/or traps | G39: 0-<10 m | H39: All metiers | I39: Y | J39: Data from monthly catch reports ad sales notes | K39: 100 | L39: N | M39: None | N39: NA | O39: Mesh size information is missing which causes difficulties in metier identification. | P39: Y | Q39: NA | R39: NA | S39: NA | T39: Limited access to sales notes which are stored in a paper form.
A40: POL | B40: Baltic Sea; North Sea; Eastern Arctic; NAFO; Extended North-Western waters (Ices areas V, VI and VII) and Southern Western waters | C40: Baltic Sea (ICES areas III b-d) | D40: Landings | E40: Value of landings total and per commercial species, Live Weight of landings total and per species, Prices by commercial species | F40: Vessels using Pots and/or traps | G40: 10-<12 m | H40: All metiers | I40: Y | J40: Aggregated data from logbooks and sales notes | K40: 100 | L40: N | M40: None | N40: NA | P40: Y | Q40: NA | R40: NA | S40: NA
A41: POL | B41: Baltic Sea; North Sea; Eastern Arctic; NAFO; Extended North-Western waters (Ices areas V, VI and VII) and Southern Western waters | C41: Baltic Sea (ICES areas III b-d) | D41: Effort | E41: Days at sea, Hours fished, Fishing days, kW*Fishing days, GT*Fishing days, Number of trips, Number of hooks | F41: Vessels using hooks | G41: 0-<10 m | H41: All metiers | I41: Y | J41: Data from monthly catch reports | K41: 100 | L41: N | M41: None | N41: NA | O41: Mesh size information is missing which causes difficulties in metier identification. | P41: Y | Q41: NA | R41: NA | S41: NA
A42: POL | B42: Baltic Sea; North Sea; Eastern Arctic; NAFO; Extended North-Western waters (Ices areas V, VI and VII) and Southern Western waters | C42: Baltic Sea (ICES areas III b-d) | D42: Effort | E42: Days at sea, Hours fished, Fishing days, kW*Fishing days, GT*Fishing days, Number of trips, Number of fishing operations, Number of hooks | F42: Vessels using hooks | G42: 10-<12 m | H42: All metiers | I42: Y | J42: Aggregated data from logbooks | K42: 100 | L42: N | M42: None | N42: NA | P42: Y | Q42: NA | R42: NA | S42: NA
A43: POL | B43: Baltic Sea; North Sea; Eastern Arctic; NAFO; Extended North-Western waters (Ices areas V, VI and VII) and Southern Western waters | C43: Baltic Sea (ICES areas III b-d) | D43: Effort | E43: Days at sea, Hours fished, Fishing days, kW*Fishing days, GT*Fishing days, Number of trips, Number of fishing operations, Number of hooks | F43: Vessels using hooks | G43: 12-<18 m | H43: All metiers | I43: Y | J43: Aggregated data from logbooks, VMS data | K43: 100 | L43: N | M43: None | N43: NA | P43: Y | Q43: NA | R43: NA | S43: NA
A44: POL | B44: Baltic Sea; North Sea; Eastern Arctic; NAFO; Extended North-Western waters (Ices areas V, VI and VII) and Southern Western waters | C44: Baltic Sea (ICES areas III b-d) | D44: Effort | E44: Days at sea, Hours fished, Fishing days, kW*Fishing days, GT*Fishing days, Number of trips, Number of fishing operations, Number of hooks | F44: Vessels using hooks | G44: 18-<24 m | H44: All metiers | I44: Y | J44: Aggregated data from logbooks, VMS data | K44: 100 | L44: N | M44: None | N44: NA | T44: Segment did not exist in 2019.
A45: POL | B45: Baltic Sea; North Sea; Eastern Arctic; NAFO; Extended North-Western waters (Ices areas V, VI and VII) and Southern Western waters | C45: Baltic Sea (ICES areas III b-d) | D45: Capacity | E45: Number of vessels, GT, kW, Vessel Age | F45: Vessels using hooks | G45: 0-<10 m | H45: All metiers | I45: Y | J45: Data from monthly catch reports, Fleet register | K45: 100 | L45: N | M45: None | N45: NA | O45: Mesh size information is missing which causes difficulties in metier identification. | P45: Y | Q45: NA | R45: NA | S45: NA
A46: POL | B46: Baltic Sea; North Sea; Eastern Arctic; NAFO; Extended North-Western waters (Ices areas V, VI and VII) and Southern Western waters | C46: Baltic Sea (ICES areas III b-d) | D46: Capacity | E46: Number of vessels, GT, kW, Vessel Age | F46: Vessels using hooks | G46: 10-<12 m | H46: All metiers | I46: Y | J46: Aggregated data from logbooks, Fleet register | K46: 100 | L46: N | M46: None | N46: NA | P46: Y | Q46: NA | R46: NA | S46: NA
A47: POL | B47: Baltic Sea; North Sea; Eastern Arctic; NAFO; Extended North-Western waters (Ices areas V, VI and VII) and Southern Western waters | C47: Baltic Sea (ICES areas III b-d) | D47: Capacity | E47: Number of vessels, GT, kW, Vessel Age | F47: Vessels using hooks | G47: 12-<18 m | H47: All metiers | I47: Y | J47: Aggregated data from logbooks, Fleet register | K47: 100 | L47: N | M47: None | N47: NA | P47: Y | Q47: NA | R47: NA | S47: NA
A48: POL | B48: Baltic Sea; North Sea; Eastern Arctic; NAFO; Extended North-Western waters (Ices areas V, VI and VII) and Southern Western waters | C48: Baltic Sea (ICES areas III b-d) | D48: Capacity | E48: Number of vessels, GT, kW, Vessel Age | F48: Vessels using hooks | G48: 18-<24 m | H48: All metiers | I48: Y | J48: Aggregated data from logbooks, Fleet register | K48: 100 | L48: N | M48: None | N48: NA | T48: Segment did not exist in 2019.
A49: POL | B49: Baltic Sea; North Sea; Eastern Arctic; NAFO; Extended North-Western waters (Ices areas V, VI and VII) and Southern Western waters | C49: Baltic Sea (ICES areas III b-d) | D49: Landings | E49: Value of landings total and per commercial species, Live Weight of landings total and per species, Prices by commercial species | F49: Vessels using hooks | G49: 0-<10 m | H49: All metiers | I49: Y | J49: Data from monthly catch reports ad sales notes | K49: 100 | L49: N | M49: None | N49: NA | O49: Mesh size information is missing which causes difficulties in metier identification. | P49: Y | Q49: NA | R49: NA | S49: NA
A50: POL | B50: Baltic Sea; North Sea; Eastern Arctic; NAFO; Extended North-Western waters (Ices areas V, VI and VII) and Southern Western waters | C50: Baltic Sea (ICES areas III b-d) | D50: Landings | E50: Value of landings total and per commercial species, Live Weight of landings total and per species, Prices by commercial species | F50: Vessels using hooks | G50: 10-<12 m | H50: All metiers | I50: Y | J50: Aggregated data from logbooks and sales notes | K50: 100 | L50: N | M50: None | N50: NA | P50: Y | Q50: NA | R50: NA | S50: NA
A51: POL | B51: Baltic Sea; North Sea; Eastern Arctic; NAFO; Extended North-Western waters (Ices areas V, VI and VII) and Southern Western waters | C51: Baltic Sea (ICES areas III b-d) | D51: Landings | E51: Value of landings total and per commercial species, Live Weight of landings total and per species, Prices by commercial species | F51: Vessels using hooks | G51: 12-<18 m | H51: All metiers | I51: Y | J51: Aggregated data from logbooks and sales notes, VMS data | K51: 100 | L51: N | M51: None | N51: NA | P51: Y | Q51: NA | R51: NA | S51: NA
A52: POL | B52: Baltic Sea; North Sea; Eastern Arctic; NAFO; Extended North-Western waters (Ices areas V, VI and VII) and Southern Western waters | C52: Baltic Sea (ICES areas III b-d) | D52: Landings | E52: Value of landings total and per commercial species, Live Weight of landings total and per species, Prices by commercial species | F52: Vessels using hooks | G52: 18-<24 m | H52: All metiers | I52: Y | J52: Aggregated data from logbooks and sales notes, VMS data | K52: 100 | L52: N | M52: None | N52: NA | T52: Segment did not exist in 2019.
A53: POL | B53: Baltic Sea; North Sea; Eastern Arctic; NAFO; Extended North-Western waters (Ices areas V, VI and VII) and Southern Western waters | C53: North Sea (ICES areas IIIa and IV), Eastern Arctic (ICES areas I and II) | D53: Effort | E53: Days at sea, Hours fished, Fishing days, kW*Fishing days, GT*Fishing days, Number of trips, Number of fishing operations | F53: Demersal trawlers and/or demersal seiners | G53: 40 m or larger | H53: All metiers | I53: Y | J53: Aggregated data from logbooks, VMS data | K53: 100 | L53: N | M53: None | N53: NA | P53: Y | Q53: NA | R53: NA | S53: NA
A54: POL | B54: Baltic Sea; North Sea; Eastern Arctic; NAFO; Extended North-Western waters (Ices areas V, VI and VII) and Southern Western waters | C54: North Sea (ICES areas IIIa and IV), Eastern Arctic (ICES areas I and II) | D54: Capacity | E54: Number of vessels, GT, kW, Vessel Age | F54: Demersal trawlers and/or demersal seiners | G54: 40 m or larger | H54: All metiers | I54: Y | J54: Aggregated data from logbooks, Fleet register | K54: 100 | L54: N | M54: None | N54: NA | P54: Y | Q54: NA | R54: NA | S54: NA
A55: POL | B55: Baltic Sea; North Sea; Eastern Arctic; NAFO; Extended North-Western waters (Ices areas V, VI and VII) and Southern Western waters | C55: North Sea (ICES areas IIIa and IV), Eastern Arctic (ICES areas I and II) | D55: Landings | E55: Live Weight of landings total and per species | F55: Demersal trawlers and/or demersal seiners | G55: 40 m or larger | H55: All metiers | I55: Y | J55: Aggregated data from logbooks and sales notes, VMS data | K55: 100 | L55: N | M55: None | N55: NA | P55: Y | Q55: NA | R55: NA | S55: NA
A56: POL | B56: Baltic Sea; North Sea; Eastern Arctic; NAFO; Extended North-Western waters (Ices areas V, VI and VII) and Southern Western waters | C56: North-Western waters (ICES areas Vb (only Union waters), VI and VII) | D56: Effort | E56: Days at sea, Hours fished, Fishing days, kW*Fishing days, GT*Fishing days, Number of trips, Number of fishing operations | F56: Pelagic trawlers | G56: 40 m or larger | H56: All metiers | I56: Y | J56: Aggregated data from logbooks, VMS data | K56: 100 | L56: N | M56: None | N56: NA | P56: Y | Q56: NA | R56: NA | S56: NA
A57: POL | B57: Baltic Sea; North Sea; Eastern Arctic; NAFO; Extended North-Western waters (Ices areas V, VI and VII) and Southern Western waters | C57: North-Western waters (ICES areas Vb (only Union waters), VI and VII) | D57: Capacity | E57: Number of vessels, GT, kW, Vessel Age | F57: Pelagic trawlers | G57: 40 m or larger | H57: All metiers | I57: Y | J57: Aggregated data from logbooks, Fleet register | K57: 100 | L57: N | M57: None | N57: NA | P57: Y | Q57: NA | R57: NA | S57: NA
A58: POL | B58: Baltic Sea; North Sea; Eastern Arctic; NAFO; Extended North-Western waters (Ices areas V, VI and VII) and Southern Western waters | C58: North-Western waters (ICES areas Vb (only Union waters), VI and VII) | D58: Landings | E58: Live Weight of landings total and per species | F58: Pelagic trawlers | G58: 40 m or larger | H58: All metiers | I58: Y | J58: Aggregated data from logbooks and sales notes, VMS data | K58: 100 | L58: N | M58: None | N58: NA | P58: Y | Q58: NA | R58: NA | S58: NA
A59: POL | B59: Other regions | C59: CECAF | D59: Effort | E59: Days at sea, Hours fished, Fishing days, kW*Fishing days, GT*Fishing days, Number of trips, Number of fishing operations | F59: Pelagic trawlers | G59: 40 m or larger | H59: All metiers | I59: Y | J59: Aggregated data from logbooks, VMS data | K59: 100 | L59: N | M59: None | N59: NA | T59: Segment did not exist in 2019.
A60: POL | B60: Other regions | C60: CECAF | D60: Capacity | E60: Number of vessels, GT, kW, Vessel Age | F60: Pelagic trawlers | G60: 40 m or larger | H60: All metiers | I60: Y | J60: Aggregated data from logbooks, Fleet register | K60: 100 | L60: N | M60: None | N60: NA | T60: Segment did not exist in 2019.
A61: POL | B61: Other regions | C61: CECAF | D61: Landings | E61: Live Weight of landings total and per species | F61: Pelagic trawlers | G61: 40 m or larger | H61: All metiers | I61: Y | J61: Aggregated data from logbooks and sales notes, VMS data | K61: 100 | L61: N | M61: None | N61: NA | T61: Segment did not exist in 2019.
A62: POL | B62: Other regions | C62: SPRFMO | D62: Effort | E62: Days at sea, Hours fished, Fishing days, kW*Fishing days, GT*Fishing days, Number of trips, Number of fishing operations | F62: Pelagic trawlers | G62: 40 m or larger | H62: All metiers | I62: Y | J62: Aggregated data from logbooks, VMS data | K62: 100 | L62: N | M62: None | N62: NA | P62: Y | Q62: NA | R62: NA | S62: NA
A63: POL | B63: Other regions | C63: SPRFMO | D63: Capacity | E63: Number of vessels, GT, kW, Vessel Age | F63: Pelagic trawlers | G63: 40 m or larger | H63: All metiers | I63: Y | J63: Aggregated data from logbooks, Fleet register | K63: 100 | L63: N | M63: None | N63: NA | P63: Y | Q63: NA | R63: NA | S63: NA
A64: POL | B64: Other regions | C64: SPRFMO | D64: Landings | E64: Live Weight of landings total and per species | F64: Pelagic trawlers | G64: 40 m or larger | H64: All metiers | I64: Y | J64: Aggregated data from logbooks and sales notes, VMS data | K64: 100 | L64: N | M64: None | N64: NA | P64: Y | Q64: NA | R64: NA | S64: NA
A65: POL | B65: Baltic Sea; North Sea; Eastern Arctic; NAFO; Extended North-Western waters (Ices areas V, VI and VII) and Southern Western waters | C65: Baltic Sea (ICES areas III b-d) | D65: Capacity | E65: Number of vessels, GT, kW, Vessel Age | F65: Inactive | G65: 0-<10 | H65: NA | I65: Y | J65: Data from monthly catch reports, Fleet register | K65: 100 | L65: N | M65: None | N65: NA | P65: Y | Q65: NA | R65: NA | S65: NA
A66: POL | B66: Baltic Sea; North Sea; Eastern Arctic; NAFO; Extended North-Western waters (Ices areas V, VI and VII) and Southern Western waters | C66: Baltic Sea (ICES areas III b-d) | D66: Capacity | E66: Number of vessels, GT, kW, Vessel Age | F66: Inactive | G66: 10-<12 | H66: NA | I66: Y | J66: Aggregated data from logbooks, Fleet register | K66: 100 | L66: N | M66: None | N66: NA | P66: Y | Q66: NA | R66: NA | S66: NA
A67: POL | B67: Baltic Sea; North Sea; Eastern Arctic; NAFO; Extended North-Western waters (Ices areas V, VI and VII) and Southern Western waters | C67: Baltic Sea (ICES areas III b-d) | D67: Capacity | E67: Number of vessels, GT, kW, Vessel Age | F67: Inactive | G67: 12-<18 | H67: NA | I67: Y | J67: Aggregated data from logbooks, Fleet register | K67: 100 | L67: N | M67: None | N67: NA | P67: Y | Q67: NA | R67: NA | S67: NA
A68: POL | B68: Baltic Sea; North Sea; Eastern Arctic; NAFO; Extended North-Western waters (Ices areas V, VI and VII) and Southern Western waters | C68: Baltic Sea (ICES areas III b-d) | D68: Capacity | E68: Number of vessels, GT, kW, Vessel Age | F68: Inactive | G68: 18-<24 | H68: NA | I68: Y | J68: Aggregated data from logbooks, Fleet register | K68: 100 | L68: N | M68: None | N68: NA | P68: Y | Q68: NA | R68: NA | S68: NA
A69: POL | B69: Baltic Sea; North Sea; Eastern Arctic; NAFO; Extended North-Western waters (Ices areas V, VI and VII) and Southern Western waters | C69: Baltic Sea (ICES areas III b-d) | D69: Capacity | E69: Number of vessels, GT, kW, Vessel Age | F69: Inactive | G69: 24-<40 | H69: NA | I69: Y | J69: Aggregated data from logbooks, Fleet register | K69: 100 | L69: N | M69: None | N69: NA | P69: Y | Q69: NA | R69: NA | S69: NA
A70: POL | B70: Baltic Sea; North Sea; Eastern Arctic; NAFO; Extended North-Western waters (Ices areas V, VI and VII) and Southern Western waters | C70: North Sea (ICES areas IIIa and IV) | D70: Effort | E70: Days at sea, Hours fished, Fishing days, kW*Fishing days, GT*Fishing days, Number of trips, Number of fishing operations, Number of pots/traps | F70: Vessels using Pots and/or traps | G70: 24-<40 m | H70: All metiers | I70: Y | J70: Aggregated data from logbooks, VMS data | K70: 100 | L70: N | M70: None | N70: NA | P70: Y | Q70: NA | R70: NA | S70: NA | T70: New row. Segment was not included in WP
A71: POL | B71: Baltic Sea; North Sea; Eastern Arctic; NAFO; Extended North-Western waters (Ices areas V, VI and VII) and Southern Western waters | C71: North Sea (ICES areas IIIa and IV) | D71: Capacity | E71: Number of vessels, GT, kW, Vessel Age | F71: Vessels using Pots and/or traps | G71: 24-<40 m | H71: All metiers | I71: Y | J71: Fleet register | K71: 100 | L71: N | M71: None | N71: NA | P71: Y | Q71: NA | R71: NA | S71: NA | T71: New row. Segment was not included in WP
A72: POL | B72: Baltic Sea; North Sea; Eastern Arctic; NAFO; Extended North-Western waters (Ices areas V, VI and VII) and Southern Western waters | C72: North Sea (ICES areas IIIa and IV) | D72: Landings | E72: Value of landings total and per commercial species, Live Weight of landings total and per species, Prices by commercial species | F72: Vessels using Pots and/or traps | G72: 24-<40 m | H72: All metiers | I72: Y | J72: Aggregated data from logbooks and sales notes, VMS data | K72: 100 | L72: N | M72: None | N72: NA | P72: Y | Q72: NA | R72: NA | S72: NA | T72: New row. Segment was not included in WP
A73: POL | B73: Baltic Sea; North Sea; Eastern Arctic; NAFO; Extended North-Western waters (Ices areas V, VI and VII) and Southern Western waters | C73: Baltic Sea (ICES areas III b-d) | D73: Effort | E73: Days at sea, Hours fished, Fishing days, kW*Fishing days, GT*Fishing days, Number of trips, Number of fishing operations, Number of nets | F73: Drift and/or fixed netters | G73: 18-<24 m | H73: All metiers | I73: Y | J73: Aggregated data from logbooks, VMS data | K73: 100 | L73: N | M73: None | N73: NA | P73: Y | Q73: NA | R73: NA | S73: NA | T73: New row. Segment was not included in WP
A74: POL | B74: Baltic Sea; North Sea; Eastern Arctic; NAFO; Extended North-Western waters (Ices areas V, VI and VII) and Southern Western waters | C74: Baltic Sea (ICES areas III b-d) | D74: Capacity | E74: Number of vessels, GT, kW, Vessel Age | F74: Drift and/or fixed netters | G74: 18-<24 m | H74: All metiers | I74: Y | J74: Aggregated data from logbooks, Fleet register | K74: 100 | L74: N | M74: None | N74: NA | P74: Y | Q74: NA | R74: NA | S74: NA | T74: New row. Segment was not included in WP
A75: POL | B75: Baltic Sea; North Sea; Eastern Arctic; NAFO; Extended North-Western waters (Ices areas V, VI and VII) and Southern Western waters | C75: Baltic Sea (ICES areas III b-d) | D75: Landings | E75: Value of landings total and per commercial species, Live Weight of landings total and per species, Prices by commercial species | F75: Drift and/or fixed netters | G75: 18-<24 m | H75: All metiers | I75: Y | J75: Aggregated data from logbooks and sales notes, VMS data | K75: 100 | L75: N | M75: None | N75: NA | P75: Y | Q75: NA | R75: NA | S75: NA | T75: New row. Segment was not included in WP
A76: POL | B76: Baltic Sea; North Sea; Eastern Arctic; NAFO; Extended North-Western waters (Ices areas V, VI and VII) and Southern Western waters | C76: Baltic Sea (ICES areas III b-d) | D76: Effort | E76: Days at sea, Hours fished, Fishing days, kW*Fishing days, GT*Fishing days, Number of trips, Number of fishing operations, Number of nets | F76: Vessels using polyvalent active gears | G76: 18-<24 m | H76: All metiers | I76: Y | J76: Aggregated data from logbooks, VMS data | K76: 100 | L76: N | M76: None | N76: NA | P76: Y | Q76: NA | R76: NA | S76: NA | T76: New row. Segment was not included in WP
A77: POL | B77: Baltic Sea; North Sea; Eastern Arctic; NAFO; Extended North-Western waters (Ices areas V, VI and VII) and Southern Western waters | C77: Baltic Sea (ICES areas III b-d) | D77: Capacity | E77: Number of vessels, GT, kW, Vessel Age | F77: Vessels using polyvalent active gears | G77: 18-<24 m | H77: All metiers | I77: Y | J77: Aggregated data from logbooks, Fleet register | K77: 100 | L77: N | M77: None | N77: NA | P77: Y | Q77: NA | R77: NA | S77: NA | T77: New row. Segment was not included in WP
A78: POL | B78: Baltic Sea; North Sea; Eastern Arctic; NAFO; Extended North-Western waters (Ices areas V, VI and VII) and Southern Western waters | C78: Baltic Sea (ICES areas III b-d) | D78: Landings | E78: Value of landings total and per commercial species, Live Weight of landings total and per species, Prices by commercial species | F78: Vessels using polyvalent active gears | G78: 18-<24 m | H78: All metiers | I78: Y | J78: Aggregated data from logbooks and sales notes, VMS data | K78: 100 | L78: N | M78: None | N78: NA | P78: Y | Q78: NA | R78: NA | S78: NA | T78: New row. Segment was not included in WP

Sheet Table3A Pop segment fisheries
A1: Table 3A: Population segments for collection of economic and social data for fisheries
Q2: WP years | R2: 2020-2021
Q3: AR year | R3: 2020
A4: MS | B4: Supra region | C4: Fishing technique | D4: Length class | E4: Cluster Name | F4: Type of variables (E/S) | G4: Variable | H4: Data Source | I4: Type of data collection scheme | J4: Frequency | K4: Planned sample rate % | L4: Comments | M4: Frame population | N4: Achieved sample number | O4: Achieved Sample Rate % | P4: Response Rate % | Q4: Achieved Sample no/Planned sample no. | R4: AR Comments
A5: POL | B5: Baltic Sea, North Sea and Eastern Arctic, and North Atlantic | C5: Vessels using Polyvalent ‘passive’ gears only | D5: 00-<10 m | F5: E | G5: Gross value of landings | H5: questionnaires | I5: A - Census | J5: Every Year | K5: 1 | M5: 517 | N5: 517 | O5: =N5/M5 -> 1 | P5: 100 | Q5: =N5/(M5*K5/100) -> 100
A6: POL | B6: Baltic Sea, North Sea and Eastern Arctic, and North Atlantic | C6: Vessels using Polyvalent ‘passive’ gears only | D6: 00-<10 m | F6: E | G6: Income from leasing out quota or other fishing rights | H6: not relevant | M6: N/A | N6: N/A | O6: N/A | P6: N/A | Q6: N/A
A7: POL | B7: Baltic Sea, North Sea and Eastern Arctic, and North Atlantic | C7: Vessels using Polyvalent ‘passive’ gears only | D7: 00-<10 m | F7: E | G7: Other income | H7: questionnaires | I7: A - Census | J7: Every Year | K7: 1 | M7: 517 | N7: 271 | O7: =N7/M7 -> 0.5241779497 | P7: 0.5241779497 | Q7: =N7/(M7*K7/100) -> 52.41779497
A8: POL | B8: Baltic Sea, North Sea and Eastern Arctic, and North Atlantic | C8: Vessels using Polyvalent ‘passive’ gears only | D8: 00-<10 m | F8: E | G8: Personnel costs | H8: questionnaires | I8: A - Census | J8: Every Year | K8: 1 | M8: 517 | N8: 271 | O8: 0.5241779497 | P8: 0.5241779497 | Q8: 52.41779497
A9: POL | B9: Baltic Sea, North Sea and Eastern Arctic, and North Atlantic | C9: Vessels using Polyvalent ‘passive’ gears only | D9: 00-<10 m | F9: E | G9: Value of unpaid labour | H9: estimation | I9: D - Indirect survey | J9: Every Year | K9: 1 | L9: starting collection every year in 2021 | M9: 517 | N9: 271 | O9: 0.5241779497 | P9: 0.5241779497 | Q9: 52.41779497
A10: POL | B10: Baltic Sea, North Sea and Eastern Arctic, and North Atlantic | C10: Vessels using Polyvalent ‘passive’ gears only | D10: 00-<10 m | F10: E | G10: Energy costs | H10: questionnaires | I10: A - Census | J10: Every Year | K10: 1 | M10: 517 | N10: 271 | O10: 0.5241779497 | P10: 0.5241779497 | Q10: 52.41779497
A11: POL | B11: Baltic Sea, North Sea and Eastern Arctic, and North Atlantic | C11: Vessels using Polyvalent ‘passive’ gears only | D11: 00-<10 m | F11: E | G11: Repair and maintenance costs | H11: questionnaires | I11: A - Census | J11: Every Year | K11: 1 | M11: 517 | N11: 271 | O11: 0.5241779497 | P11: 0.5241779497 | Q11: 52.41779497
A12: POL | B12: Baltic Sea, North Sea and Eastern Arctic, and North Atlantic | C12: Vessels using Polyvalent ‘passive’ gears only | D12: 00-<10 m | F12: E | G12: Variable costs | H12: questionnaires | I12: A - Census | J12: Every Year | K12: 1 | M12: 517 | N12: 271 | O12: 0.5241779497 | P12: 0.5241779497 | Q12: 52.41779497
A13: POL | B13: Baltic Sea, North Sea and Eastern Arctic, and North Atlantic | C13: Vessels using Polyvalent ‘passive’ gears only | D13: 00-<10 m | F13: E | G13: Non-variable costs | H13: questionnaires | I13: A - Census | J13: Every Year | K13: 1 | M13: 517 | N13: 271 | O13: 0.5241779497 | P13: 0.5241779497 | Q13: 52.41779497
A14: POL | B14: Baltic Sea, North Sea and Eastern Arctic, and North Atlantic | C14: Vessels using Polyvalent ‘passive’ gears only | D14: 00-<10 m | F14: E | G14: Lease/rental payments for quota or other fishing rights | H14: questionnaires | I14: A - Census | J14: Every Year | K14: 1 | M14: N/A | N14: N/A | O14: N/A | P14: N/A | Q14: N/A
A15: POL | B15: Baltic Sea, North Sea and Eastern Arctic, and North Atlantic | C15: Vessels using Polyvalent ‘passive’ gears only | D15: 00-<10 m | F15: E | G15: Operating Subsidies | H15: questionnaires & administrative data base | I15: A - Census | J15: Every Year | K15: 1 | M15: 517 | N15: 271 | O15: 0.5241779497 | P15: 0.5241779497 | Q15: 52.41779497
A16: POL | B16: Baltic Sea, North Sea and Eastern Arctic, and North Atlantic | C16: Vessels using Polyvalent ‘passive’ gears only | D16: 00-<10 m | F16: E | G16: Subsidies on investments | H16: questionnaires & administrative data base | I16: A - Census | J16: Every Year | K16: 1 | M16: 517 | N16: 271 | O16: 0.5241779497 | P16: 0.5241779497 | Q16: 52.41779497
A17: POL | B17: Baltic Sea, North Sea and Eastern Arctic, and North Atlantic | C17: Vessels using Polyvalent ‘passive’ gears only | D17: 00-<10 m | F17: E | G17: Consumption of fixed capital | H17: questionnaires | I17: A - Census | J17: Every Year | K17: 1 | M17: 517 | N17: 271 | O17: 0.5241779497 | P17: 0.5241779497 | Q17: 52.41779497
A18: POL | B18: Baltic Sea, North Sea and Eastern Arctic, and North Atlantic | C18: Vessels using Polyvalent ‘passive’ gears only | D18: 00-<10 m | F18: E | G18: Value of physical capital | H18: questionnaires & scraping premium | I18: D - Indirect survey | J18: Every Year | K18: 1 | M18: 517 | N18: 271 | O18: 0.5241779497 | P18: 0.5241779497 | Q18: 52.41779497
A19: POL | B19: Baltic Sea, North Sea and Eastern Arctic, and North Atlantic | C19: Vessels using Polyvalent ‘passive’ gears only | D19: 00-<10 m | F19: E | G19: Value of quota and other fishing rights | H19: not relevant | M19: N/A | N19: N/A | O19: N/A | P19: N/A | Q19: N/A
A20: POL | B20: Baltic Sea, North Sea and Eastern Arctic, and North Atlantic | C20: Vessels using Polyvalent ‘passive’ gears only | D20: 00-<10 m | F20: E | G20: Investments in tangible assets, net | H20: questionnaires | I20: A - Census | J20: Every Year | K20: 1 | M20: 517 | N20: 271 | O20: 0.5241779497 | P20: 0.5241779497 | Q20: 52.41779497
A21: POL | B21: Baltic Sea, North Sea and Eastern Arctic, and North Atlantic | C21: Vessels using Polyvalent ‘passive’ gears only | D21: 00-<10 m | F21: E | G21: Long/short Debt | H21: questionnaires | I21: A - Census | J21: Every Year | K21: 1 | M21: 517 | N21: 271 | O21: 0.5241779497 | P21: 0.5241779497 | Q21: 52.41779497
A22: POL | B22: Baltic Sea, North Sea and Eastern Arctic, and North Atlantic | C22: Vessels using Polyvalent ‘passive’ gears only | D22: 00-<10 m | F22: E | G22: Total assets | H22: questionnaires & scraping premium | I22: D - Indirect survey | J22: Every Year | K22: 1 | M22: 517 | N22: 271 | O22: 0.5241779497 | P22: 0.5241779497 | Q22: 52.41779497
A23: POL | B23: Baltic Sea, North Sea and Eastern Arctic, and North Atlantic | C23: Vessels using Polyvalent ‘passive’ gears only | D23: 00-<10 m | F23: E | G23: Engaged crew | H23: questionnaires | I23: A - Census | J23: Every Year | K23: 1 | M23: 517 | N23: 271 | O23: 0.5241779497 | P23: 0.5241779497 | Q23: 52.41779497
A24: POL | B24: Baltic Sea, North Sea and Eastern Arctic, and North Atlantic | C24: Vessels using Polyvalent ‘passive’ gears only | D24: 00-<10 m | F24: E | G24: Unpaid labour | H24: questionnaires | I24: A - Census | J24: Every Year | K24: 1 | L24: starting collection every year in 2021 | M24: 517 | N24: 271 | O24: 0.5241779497 | P24: 0.5241779497 | Q24: 52.41779497
A25: POL | B25: Baltic Sea, North Sea and Eastern Arctic, and North Atlantic | C25: Vessels using Polyvalent ‘passive’ gears only | D25: 00-<10 m | F25: E | G25: Total hours worked per year | H25: questionnaires & logbooks | I25: D - Indirect survey | J25: Every Year | K25: 1 | M25: 517 | N25: 271 | O25: 0.5241779497 | P25: 0.5241779497 | Q25: 52.41779497
A26: POL | B26: Baltic Sea, North Sea and Eastern Arctic, and North Atlantic | C26: Vessels using Polyvalent ‘passive’ gears only | D26: 00-<10 m | F26: E | G26: Number of vessels | H26: questionnaires, Register | I26: A - Census | J26: Every Year | K26: 1 | M26: 517 | N26: 271 | O26: 0.5241779497 | P26: 0.5241779497 | Q26: 52.41779497
A27: POL | B27: Baltic Sea, North Sea and Eastern Arctic, and North Atlantic | C27: Vessels using Polyvalent ‘passive’ gears only | D27: 00-<10 m | F27: E | G27: Mean LOA of vessels | H27: questionnaires, Register | I27: A - Census | J27: Every Year | K27: 1 | M27: 517 | N27: 271 | O27: 0.5241779497 | P27: 0.5241779497 | Q27: 52.41779497
A28: POL | B28: Baltic Sea, North Sea and Eastern Arctic, and North Atlantic | C28: Vessels using Polyvalent ‘passive’ gears only | D28: 00-<10 m | F28: E | G28: Total vessel's tonnage | H28: questionnaires, Register | I28: A - Census | J28: Every Year | K28: 1 | M28: 517 | N28: 271 | O28: 0.5241779497 | P28: 0.5241779497 | Q28: 52.41779497
A29: POL | B29: Baltic Sea, North Sea and Eastern Arctic, and North Atlantic | C29: Vessels using Polyvalent ‘passive’ gears only | D29: 00-<10 m | F29: E | G29: Total vessel's power | H29: questionnaires, Register | I29: A - Census | J29: Every Year | K29: 1 | M29: 517 | N29: 271 | O29: 0.5241779497 | P29: 0.5241779497 | Q29: 52.41779497
A30: POL | B30: Baltic Sea, North Sea and Eastern Arctic, and North Atlantic | C30: Vessels using Polyvalent ‘passive’ gears only | D30: 00-<10 m | F30: E | G30: Mean age of vessels | H30: questionnaires, Register | I30: A - Census | J30: Every Year | K30: 1 | M30: 517 | N30: 271 | O30: 0.5241779497 | P30: 0.5241779497 | Q30: 52.41779497
A31: POL | B31: Baltic Sea, North Sea and Eastern Arctic, and North Atlantic | C31: Vessels using Polyvalent ‘passive’ gears only | D31: 00-<10 m | F31: E | G31: Days at sea | H31: questionnaires, logbooks | I31: A - Census | J31: Every Year | K31: 1 | M31: 517 | N31: 271 | O31: 0.5241779497 | P31: 0.5241779497 | Q31: 52.41779497
A32: POL | B32: Baltic Sea, North Sea and Eastern Arctic, and North Atlantic | C32: Vessels using Polyvalent ‘passive’ gears only | D32: 00-<10 m | F32: E | G32: Energy consuption | H32: questionnaires | I32: A - Census | J32: Every Year | K32: 1 | M32: 517 | N32: 271 | O32: 0.5241779497 | P32: 0.5241779497 | Q32: 52.41779497
A33: POL | B33: Baltic Sea, North Sea and Eastern Arctic, and North Atlantic | C33: Vessels using Polyvalent ‘passive’ gears only | D33: 00-<10 m | F33: E | G33: Number of fishing enterprises/units | H33: Register | I33: A - Census | J33: Every Year | K33: 1 | M33: 517 | N33: 271 | O33: 0.5241779497 | P33: 0.5241779497 | Q33: 52.41779497
A34: POL | B34: Baltic Sea, North Sea and Eastern Arctic, and North Atlantic | C34: Vessels using Polyvalent ‘passive’ gears only | D34: 00-<10 m | F34: E | G34: Value of landings per species | H34: First sale document | I34: A - Census | J34: Every Year | K34: 1 | M34: 517 | N34: 271 | O34: 0.5241779497 | P34: 0.5241779497 | Q34: 52.41779497
A35: POL | B35: Baltic Sea, North Sea and Eastern Arctic, and North Atlantic | C35: Vessels using Polyvalent ‘passive’ gears only | D35: 00-<10 m | F35: E | G35: Average price per spices | H35: First sale document | I35: A - Census | J35: Every Year | K35: 1 | M35: 517 | N35: 271 | O35: 0.5241779497 | P35: 0.5241779497 | Q35: 52.41779497
A36: POL | B36: Baltic Sea, North Sea and Eastern Arctic, and North Atlantic | C36: Vessels using Polyvalent ‘passive’ gears only | D36: 00-<10 m | F36: S | G36: Employment by gender | H36: questionnaires | I36: A - Census | J36: Every Year | K36: 1 | M36: 517 | N36: 271 | O36: 0.5241779497 | P36: 0.5241779497 | Q36: 52.41779497
A37: POL | B37: Baltic Sea, North Sea and Eastern Arctic, and North Atlantic | C37: Vessels using Polyvalent ‘passive’ gears only | D37: 00-<10 m | F37: S | G37: FTE by gender | H37: questionnaires | I37: A - Census | J37: Every Year | K37: 1 | M37: 517 | N37: 271 | O37: 0.5241779497 | P37: 0.5241779497 | Q37: 52.41779497
A38: POL | B38: Baltic Sea, North Sea and Eastern Arctic, and North Atlantic | C38: Vessels using Polyvalent ‘passive’ gears only | D38: 00-<10 m | F38: S | G38: Unpaid labour by gender | H38: questionnaires | I38: A - Census | J38: Every Year | K38: 1 | L38: starting collection every year in 2021 | M38: 517 | N38: 271 | O38: 0.5241779497 | P38: 0.5241779497 | Q38: 52.41779497
A39: POL | B39: Baltic Sea, North Sea and Eastern Arctic, and North Atlantic | C39: Vessels using Polyvalent ‘passive’ gears only | D39: 00-<10 m | F39: S | G39: Employment by age | H39: questionnaires | I39: A - Census | J39: Every Year | K39: 1 | M39: 517 | N39: 271 | O39: 0.5241779497 | P39: 0.5241779497 | Q39: 52.41779497
A40: POL | B40: Baltic Sea, North Sea and Eastern Arctic, and North Atlantic | C40: Vessels using Polyvalent ‘passive’ gears only | D40: 00-<10 m | F40: S | G40: Employment by education level | H40: questionnaires | I40: A - Census | J40: Every Year | K40: 1 | M40: 517 | N40: 271 | O40: 0.5241779497 | P40: 0.5241779497 | Q40: 52.41779497
A41: POL | B41: Baltic Sea, North Sea and Eastern Arctic, and North Atlantic | C41: Vessels using Polyvalent ‘passive’ gears only | D41: 00-<10 m | F41: S | G41: Employment by nationality | H41: questionnaires | I41: A - Census | J41: Every Year | K41: 1 | L41: starting collection every year in 2021 | M41: 517 | N41: 271 | O41: 0.5241779497 | P41: 0.5241779497 | Q41: 52.41779497
A42: POL | B42: Baltic Sea, North Sea and Eastern Arctic, and North Atlantic | C42: Vessels using Polyvalent ‘passive’ gears only | D42: 00-<10 m | F42: S | G42: Employment by employment status | H42: questionnaires | I42: A - Census | J42: Every Year | K42: 1 | M42: 517 | N42: 271 | O42: 0.5241779497 | P42: 0.5241779497 | Q42: 52.41779497
A43: POL | B43: Baltic Sea, North Sea and Eastern Arctic, and North Atlantic | C43: Vessels using Polyvalent ‘passive’ gears only | D43: 00-<10 m | F43: S | G43: FTE National | H43: questionnaires | I43: A - Census | J43: Every Year | K43: 1 | M43: 517 | N43: 271 | O43: 0.5241779497 | P43: 0.5241779497 | Q43: 52.41779497
A44: POL | B44: Baltic Sea, North Sea and Eastern Arctic, and North Atlantic | C44: Vessels using Polyvalent ‘passive’ gears only | D44: 10-<12 m | F44: E | G44: Gross value of landings | H44: questionnaires | I44: A - Census | J44: Every Year | K44: 1 | M44: 106 | N44: 106 | O44: 1 | P44: 1 | Q44: 100
A45: POL | B45: Baltic Sea, North Sea and Eastern Arctic, and North Atlantic | C45: Vessels using Polyvalent ‘passive’ gears only | D45: 10-<12 m | F45: E | G45: Income from leasing out quota or other fishing rights | H45: not relevant | M45: N/A | N45: N/A | O45: N/A | P45: N/A | Q45: N/A
A46: POL | B46: Baltic Sea, North Sea and Eastern Arctic, and North Atlantic | C46: Vessels using Polyvalent ‘passive’ gears only | D46: 10-<12 m | F46: E | G46: Other income | H46: questionnaires | I46: A - Census | J46: Every Year | K46: 1 | M46: 106 | N46: 46 | O46: 0.4339622642 | P46: 0.4339622642 | Q46: 43.39622642
A47: POL | B47: Baltic Sea, North Sea and Eastern Arctic, and North Atlantic | C47: Vessels using Polyvalent ‘passive’ gears only | D47: 10-<12 m | F47: E | G47: Wages and salaries of crew | H47: questionnaires | I47: A - Census | J47: Every Year | K47: 1 | M47: 106 | N47: 46 | O47: 0.4339622642 | P47: 0.4339622642 | Q47: 43.39622642
A48: POL | B48: Baltic Sea, North Sea and Eastern Arctic, and North Atlantic | C48: Vessels using Polyvalent ‘passive’ gears only | D48: 10-<12 m | F48: E | G48: Imputed value of unpaid labour | H48: estimation | I48: D - Indirect survey | J48: Every Year | K48: 1 | L48: starting collection every year in 2021 | M48: 106 | N48: 46 | O48: 0.4339622642 | P48: 0.4339622642 | Q48: 43.39622642
A49: POL | B49: Baltic Sea, North Sea and Eastern Arctic, and North Atlantic | C49: Vessels using Polyvalent ‘passive’ gears only | D49: 10-<12 m | F49: E | G49: Energy costs | H49: questionnaires | I49: A - Census | J49: Every Year | K49: 1 | M49: 106 | N49: 45 | O49: 0.4245283019 | P49: 0.4245283019 | Q49: 42.45283019
A50: POL | B50: Baltic Sea, North Sea and Eastern Arctic, and North Atlantic | C50: Vessels using Polyvalent ‘passive’ gears only | D50: 10-<12 m | F50: E | G50: Repair and maintenance costs | H50: questionnaires | I50: A - Census | J50: Every Year | K50: 1 | M50: 106 | N50: 46 | O50: 0.4339622642 | P50: 0.4339622642 | Q50: 43.39622642
A51: POL | B51: Baltic Sea, North Sea and Eastern Arctic, and North Atlantic | C51: Vessels using Polyvalent ‘passive’ gears only | D51: 10-<12 m | F51: E | G51: Variable costs | H51: questionnaires | I51: A - Census | J51: Every Year | K51: 1 | M51: 106 | N51: 46 | O51: 0.4339622642 | P51: 0.4339622642 | Q51: 43.39622642
A52: POL | B52: Baltic Sea, North Sea and Eastern Arctic, and North Atlantic | C52: Vessels using Polyvalent ‘passive’ gears only | D52: 10-<12 m | F52: E | G52: Non-variable costs | H52: questionnaires | I52: A - Census | J52: Every Year | K52: 1 | M52: 106 | N52: 46 | O52: 0.4339622642 | P52: 0.4339622642 | Q52: 43.39622642
A53: POL | B53: Baltic Sea, North Sea and Eastern Arctic, and North Atlantic | C53: Vessels using Polyvalent ‘passive’ gears only | D53: 10-<12 m | F53: E | G53: Lease/rental payments for quota or other fishing rights | H53: questionnaires | I53: A - Census | J53: Every Year | K53: 1 | M53: N/A | N53: N/A | O53: N/A | P53: N/A | Q53: N/A
A54: POL | B54: Baltic Sea, North Sea and Eastern Arctic, and North Atlantic | C54: Vessels using Polyvalent ‘passive’ gears only | D54: 10-<12 m | F54: E | G54: Operating Subsidies | H54: questionnaires & administrative data base | I54: A - Census | J54: Every Year | K54: 1 | M54: 106 | N54: 46 | O54: 0.4339622642 | P54: 0.4339622642 | Q54: 43.39622642
A55: POL | B55: Baltic Sea, North Sea and Eastern Arctic, and North Atlantic | C55: Vessels using Polyvalent ‘passive’ gears only | D55: 10-<12 m | F55: E | G55: Subsidies on investments | H55: questionnaires & administrative data base | I55: A - Census | J55: Every Year | K55: 1 | M55: 106 | N55: 46 | O55: 0.4339622642 | P55: 0.4339622642 | Q55: 43.39622642
A56: POL | B56: Baltic Sea, North Sea and Eastern Arctic, and North Atlantic | C56: Vessels using Polyvalent ‘passive’ gears only | D56: 10-<12 m | F56: E | G56: Consumption of fixed capital | H56: questionnaires | I56: A - Census | J56: Every Year | K56: 1 | M56: 106 | N56: 46 | O56: 0.4339622642 | P56: 0.4339622642 | Q56: 43.39622642
A57: POL | B57: Baltic Sea, North Sea and Eastern Arctic, and North Atlantic | C57: Vessels using Polyvalent ‘passive’ gears only | D57: 10-<12 m | F57: E | G57: Value of physical capital | H57: questionnaires & scraping premium | I57: D - Indirect survey | J57: Every Year | K57: 1 | M57: 106 | N57: 46 | O57: 0.4339622642 | P57: 0.4339622642 | Q57: 43.39622642
A58: POL | B58: Baltic Sea, North Sea and Eastern Arctic, and North Atlantic | C58: Vessels using Polyvalent ‘passive’ gears only | D58: 10-<12 m | F58: E | G58: Value of quota and other fishing rights | H58: not relevant | M58: N/A | N58: N/A | O58: N/A | P58: N/A | Q58: N/A
A59: POL | B59: Baltic Sea, North Sea and Eastern Arctic, and North Atlantic | C59: Vessels using Polyvalent ‘passive’ gears only | D59: 10-<12 m | F59: E | G59: Investments in tangible assets, net | H59: questionnaires | I59: A - Census | J59: Every Year | K59: 1 | M59: 106 | N59: 46 | O59: 0.4339622642 | P59: 0.4339622642 | Q59: 43.39622642
A60: POL | B60: Baltic Sea, North Sea and Eastern Arctic, and North Atlantic | C60: Vessels using Polyvalent ‘passive’ gears only | D60: 10-<12 m | F60: E | G60: Long/short Debt | H60: questionnaires | I60: A - Census | J60: Every Year | K60: 1 | M60: 106 | N60: 46 | O60: 0.4339622642 | P60: 0.4339622642 | Q60: 43.39622642
A61: POL | B61: Baltic Sea, North Sea and Eastern Arctic, and North Atlantic | C61: Vessels using Polyvalent ‘passive’ gears only | D61: 10-<12 m | F61: E | G61: Total assets | H61: questionnaires & scraping premium | I61: D - Indirect survey | J61: Every Year | K61: 1 | M61: 106 | N61: 46 | O61: 0.4339622642 | P61: 0.4339622642 | Q61: 43.39622642
A62: POL | B62: Baltic Sea, North Sea and Eastern Arctic, and North Atlantic | C62: Vessels using Polyvalent ‘passive’ gears only | D62: 10-<12 m | F62: E | G62: Engaged crew | H62: questionnaires | I62: A - Census | J62: Every Year | K62: 1 | M62: 106 | N62: 46 | O62: 0.4339622642 | P62: 0.4339622642 | Q62: 43.39622642
A63: POL | B63: Baltic Sea, North Sea and Eastern Arctic, and North Atlantic | C63: Vessels using Polyvalent ‘passive’ gears only | D63: 10-<12 m | F63: E | G63: Unpaid labour | H63: questionnaires | I63: A - Census | J63: Every Year | K63: 1 | L63: starting collection every year in 2021 | M63: 106 | N63: 46 | O63: 0.4339622642 | P63: 0.4339622642 | Q63: 43.39622642
A64: POL | B64: Baltic Sea, North Sea and Eastern Arctic, and North Atlantic | C64: Vessels using Polyvalent ‘passive’ gears only | D64: 10-<12 m | F64: E | G64: Total hours worked per year | H64: questionnaires & logbooks | I64: D - Indirect survey | J64: Every Year | K64: 1 | M64: 106 | N64: 46 | O64: 0.4339622642 | P64: 0.4339622642 | Q64: 43.39622642
A65: POL | B65: Baltic Sea, North Sea and Eastern Arctic, and North Atlantic | C65: Vessels using Polyvalent ‘passive’ gears only | D65: 10-<12 m | F65: E | G65: Number of vessels | H65: questionnaires, Register | I65: A - Census | J65: Every Year | K65: 1 | M65: 106 | N65: 46 | O65: 0.4339622642 | P65: 0.4339622642 | Q65: 43.39622642
A66: POL | B66: Baltic Sea, North Sea and Eastern Arctic, and North Atlantic | C66: Vessels using Polyvalent ‘passive’ gears only | D66: 10-<12 m | F66: E | G66: Mean LOA of vessels | H66: questionnaires, Register | I66: A - Census | J66: Every Year | K66: 1 | M66: 106 | N66: 46 | O66: 0.4339622642 | P66: 0.4339622642 | Q66: 43.39622642
A67: POL | B67: Baltic Sea, North Sea and Eastern Arctic, and North Atlantic | C67: Vessels using Polyvalent ‘passive’ gears only | D67: 10-<12 m | F67: E | G67: Total vessels tonnage | H67: questionnaires, Register | I67: A - Census | J67: Every Year | K67: 1 | M67: 106 | N67: 46 | O67: 0.4339622642 | P67: 0.4339622642 | Q67: 43.39622642
A68: POL | B68: Baltic Sea, North Sea and Eastern Arctic, and North Atlantic | C68: Vessels using Polyvalent ‘passive’ gears only | D68: 10-<12 m | F68: E | G68: Total vessels power | H68: questionnaires, Register | I68: A - Census | J68: Every Year | K68: 1 | M68: 106 | N68: 46 | O68: 0.4339622642 | P68: 0.4339622642 | Q68: 43.39622642
A69: POL | B69: Baltic Sea, North Sea and Eastern Arctic, and North Atlantic | C69: Vessels using Polyvalent ‘passive’ gears only | D69: 10-<12 m | F69: E | G69: Mean age of vessels | H69: questionnaires, Register | I69: A - Census | J69: Every Year | K69: 1 | M69: 106 | N69: 46 | O69: 0.4339622642 | P69: 0.4339622642 | Q69: 43.39622642
A70: POL | B70: Baltic Sea, North Sea and Eastern Arctic, and North Atlantic | C70: Vessels using Polyvalent ‘passive’ gears only | D70: 10-<12 m | F70: E | G70: Days at sea | H70: questionnaires, logbooks | I70: A - Census | J70: Every Year | K70: 1 | M70: 106 | N70: 46 | O70: 0.4339622642 | P70: 0.4339622642 | Q70: 43.39622642
A71: POL | B71: Baltic Sea, North Sea and Eastern Arctic, and North Atlantic | C71: Vessels using Polyvalent ‘passive’ gears only | D71: 10-<12 m | F71: E | G71: Energy consuption | H71: questionnaires | I71: A - Census | J71: Every Year | K71: 1 | M71: 106 | N71: 46 | O71: =N71/M71 -> 0.4339622642 | P71: 0.4339622642 | Q71: =N71/(M71*K71/100) -> 43.39622642
A72: POL | B72: Baltic Sea, North Sea and Eastern Arctic, and North Atlantic | C72: Vessels using Polyvalent ‘passive’ gears only | D72: 10-<12 m | F72: E | G72: Number of fishing enterprises/units | H72: Register | I72: A - Census | J72: Every Year | K72: 1 | M72: 106 | N72: 46 | O72: 0.4339622642 | P72: 0.4339622642 | Q72: 43.39622642
A73: POL | B73: Baltic Sea, North Sea and Eastern Arctic, and North Atlantic | C73: Vessels using Polyvalent ‘passive’ gears only | D73: 10-<12 m | F73: E | G73: Value of landings per species | H73: First sale document | I73: A - Census | J73: Every Year | K73: 1 | M73: 106 | N73: 46 | O73: 0.4339622642 | P73: 0.4339622642 | Q73: 43.39622642
A74: POL | B74: Baltic Sea, North Sea and Eastern Arctic, and North Atlantic | C74: Vessels using Polyvalent ‘passive’ gears only | D74: 10-<12 m | F74: E | G74: Average price per spices | H74: First sale document | I74: A - Census | J74: Every Year | K74: 1 | M74: 106 | N74: 46 | O74: 0.4339622642 | P74: 0.4339622642 | Q74: 43.39622642
A75: POL | B75: Baltic Sea, North Sea and Eastern Arctic, and North Atlantic | C75: Vessels using Polyvalent ‘passive’ gears only | D75: 10-<12 m | F75: S | G75: Employment by gender | H75: questionnaires | I75: A - Census | J75: Every Year | K75: 1 | M75: 106 | N75: 46 | O75: 0.4339622642 | P75: 0.4339622642 | Q75: 43.39622642
A76: POL | B76: Baltic Sea, North Sea and Eastern Arctic, and North Atlantic | C76: Vessels using Polyvalent ‘passive’ gears only | D76: 10-<12 m | F76: S | G76: FTE by gender | H76: questionnaires | I76: A - Census | J76: Every Year | K76: 1 | M76: 106 | N76: 46 | O76: 0.4339622642 | P76: 0.4339622642 | Q76: 43.39622642
A77: POL | B77: Baltic Sea, North Sea and Eastern Arctic, and North Atlantic | C77: Vessels using Polyvalent ‘passive’ gears only | D77: 10-<12 m | F77: S | G77: Unpaid labour by gender | H77: questionnaires | I77: A - Census | J77: Every Year | K77: 1 | L77: starting collection every year in 2021 | M77: 106 | N77: 46 | O77: 0.4339622642 | P77: 0.4339622642 | Q77: 43.39622642
A78: POL | B78: Baltic Sea, North Sea and Eastern Arctic, and North Atlantic | C78: Vessels using Polyvalent ‘passive’ gears only | D78: 10-<12 m | F78: S | G78: Employment by age | H78: questionnaires | I78: A - Census | J78: Every Year | K78: 1 | M78: 106 | N78: 46 | O78: 0.4339622642 | P78: 0.4339622642 | Q78: 43.39622642
A79: POL | B79: Baltic Sea, North Sea and Eastern Arctic, and North Atlantic | C79: Vessels using Polyvalent ‘passive’ gears only | D79: 10-<12 m | F79: S | G79: Employment by education level | H79: questionnaires | I79: A - Census | J79: Every Year | K79: 1 | M79: 106 | N79: 46 | O79: 0.4339622642 | P79: 0.4339622642 | Q79: 43.39622642
A80: POL | B80: Baltic Sea, North Sea and Eastern Arctic, and North Atlantic | C80: Vessels using Polyvalent ‘passive’ gears only | D80: 10-<12 m | F80: S | G80: Employment by nationality | H80: questionnaires | I80: A - Census | J80: Every Year | K80: 1 | L80: starting collection every year in 2021 | M80: 106 | N80: 46 | O80: 0.4339622642 | P80: 0.4339622642 | Q80: 43.39622642
A81: POL | B81: Baltic Sea, North Sea and Eastern Arctic, and North Atlantic | C81: Vessels using Polyvalent ‘passive’ gears only | D81: 10-<12 m | F81: S | G81: Employment by employment status | H81: questionnaires | I81: A - Census | J81: Every Year | K81: 1 | M81: 106 | N81: 46 | O81: 0.4339622642 | P81: 0.4339622642 | Q81: 43.39622642
A82: POL | B82: Baltic Sea, North Sea and Eastern Arctic, and North Atlantic | C82: Vessels using Polyvalent ‘passive’ gears only | D82: 10-<12 m | F82: S | G82: FTE National | H82: questionnaires | I82: A - Census | J82: Every Year | K82: 1 | M82: 106 | N82: 46 | O82: 0.4339622642 | P82: 0.4339622642 | Q82: 43.39622642
A83: POL | B83: Baltic Sea, North Sea and Eastern Arctic, and North Atlantic | C83: Drift and/or fixed netters | D83: 10-<12 m | F83: E | G83: Gross value of landings | H83: questionnaires | I83: A - Census | J83: Every Year | K83: 1 | M83: 13 | N83: 13 | O83: 1 | P83: 1 | Q83: 100 | R83: wrong length class, should be 12-<18 m
A84: POL | B84: Baltic Sea, North Sea and Eastern Arctic, and North Atlantic | C84: Drift and/or fixed netters | D84: 10-<12 m | F84: E | G84: Income from leasing out quota or other fishing rights | H84: not relevant | M84: N/A | N84: N/A | O84: N/A | P84: N/A | Q84: N/A | R84: wrong length class, should be 12-<18 m
A85: POL | B85: Baltic Sea, North Sea and Eastern Arctic, and North Atlantic | C85: Drift and/or fixed netters | D85: 10-<12 m | F85: E | G85: Other income | H85: questionnaires | I85: A - Census | J85: Every Year | K85: 1 | M85: 13 | N85: 5 | O85: 0.3846153846 | P85: 0.3846153846 | Q85: 38.46153846 | R85: wrong length class, should be 12-<18 m
A86: POL | B86: Baltic Sea, North Sea and Eastern Arctic, and North Atlantic | C86: Drift and/or fixed netters | D86: 10-<12 m | F86: E | G86: Wages and salaries of crew | H86: questionnaires | I86: A - Census | J86: Every Year | K86: 1 | M86: 13 | N86: 5 | O86: 0.3846153846 | P86: 0.3846153846 | Q86: 38.46153846 | R86: wrong length class, should be 12-<18 m
A87: POL | B87: Baltic Sea, North Sea and Eastern Arctic, and North Atlantic | C87: Drift and/or fixed netters | D87: 10-<12 m | F87: E | G87: Imputed value of unpaid labour | H87: estimation | I87: D - Indirect survey | J87: Every Year | K87: 1 | L87: starting collection every year in 2021 | M87: 13 | N87: 5 | O87: 0.3846153846 | P87: 0.3846153846 | Q87: 38.46153846 | R87: wrong length class, should be 12-<18 m
A88: POL | B88: Baltic Sea, North Sea and Eastern Arctic, and North Atlantic | C88: Drift and/or fixed netters | D88: 10-<12 m | F88: E | G88: Energy costs | H88: questionnaires | I88: A - Census | J88: Every Year | K88: 1 | M88: 13 | N88: 5 | O88: 0.3846153846 | P88: 0.3846153846 | Q88: 38.46153846 | R88: wrong length class, should be 12-<18 m
A89: POL | B89: Baltic Sea, North Sea and Eastern Arctic, and North Atlantic | C89: Drift and/or fixed netters | D89: 10-<12 m | F89: E | G89: Repair and maintenance costs | H89: questionnaires | I89: A - Census | J89: Every Year | K89: 1 | M89: 13 | N89: 5 | O89: 0.3846153846 | P89: 0.3846153846 | Q89: 38.46153846 | R89: wrong length class, should be 12-<18 m
A90: POL | B90: Baltic Sea, North Sea and Eastern Arctic, and North Atlantic | C90: Drift and/or fixed netters | D90: 10-<12 m | F90: E | G90: Variable costs | H90: questionnaires | I90: A - Census | J90: Every Year | K90: 1 | M90: 13 | N90: 5 | O90: 0.3846153846 | P90: 0.3846153846 | Q90: 38.46153846 | R90: wrong length class, should be 12-<18 m
A91: POL | B91: Baltic Sea, North Sea and Eastern Arctic, and North Atlantic | C91: Drift and/or fixed netters | D91: 10-<12 m | F91: E | G91: Non-variable costs | H91: questionnaires | I91: A - Census | J91: Every Year | K91: 1 | M91: 13 | N91: 5 | O91: 0.3846153846 | P91: 0.3846153846 | Q91: 38.46153846 | R91: wrong length class, should be 12-<18 m
A92: POL | B92: Baltic Sea, North Sea and Eastern Arctic, and North Atlantic | C92: Drift and/or fixed netters | D92: 10-<12 m | F92: E | G92: Lease/rental payments for quota or other fishing rights | H92: questionnaires | I92: A - Census | J92: Every Year | K92: 1 | M92: N/A | N92: N/A | O92: N/A | P92: N/A | Q92: N/A | R92: wrong length class, should be 12-<18 m
A93: POL | B93: Baltic Sea, North Sea and Eastern Arctic, and North Atlantic | C93: Drift and/or fixed netters | D93: 10-<12 m | F93: E | G93: Operating Subsidies | H93: questionnaires & administrative data base | I93: A - Census | J93: Every Year | K93: 1 | M93: 13 | N93: 5 | O93: 0.3846153846 | P93: 0.3846153846 | Q93: 38.46153846 | R93: wrong length class, should be 12-<18 m
A94: POL | B94: Baltic Sea, North Sea and Eastern Arctic, and North Atlantic | C94: Drift and/or fixed netters | D94: 10-<12 m | F94: E | G94: Subsidies on investments | H94: questionnaires & administrative data base | I94: A - Census | J94: Every Year | K94: 1 | M94: 13 | N94: 5 | O94: 0.3846153846 | P94: 0.3846153846 | Q94: 38.46153846 | R94: wrong length class, should be 12-<18 m
A95: POL | B95: Baltic Sea, North Sea and Eastern Arctic, and North Atlantic | C95: Drift and/or fixed netters | D95: 10-<12 m | F95: E | G95: Consumption of fixed capital | H95: questionnaires | I95: A - Census | J95: Every Year | K95: 1 | M95: 13 | N95: 5 | O95: 0.3846153846 | P95: 0.3846153846 | Q95: 38.46153846 | R95: wrong length class, should be 12-<18 m
A96: POL | B96: Baltic Sea, North Sea and Eastern Arctic, and North Atlantic | C96: Drift and/or fixed netters | D96: 10-<12 m | F96: E | G96: Value of physical capital | H96: questionnaires & scraping premium | I96: D - Indirect survey | J96: Every Year | K96: 1 | M96: 13 | N96: 5 | O96: 0.3846153846 | P96: 0.3846153846 | Q96: 38.46153846 | R96: wrong length class, should be 12-<18 m
A97: POL | B97: Baltic Sea, North Sea and Eastern Arctic, and North Atlantic | C97: Drift and/or fixed netters | D97: 10-<12 m | F97: E | G97: Value of quota and other fishing rights | H97: not relevant | M97: N/A | N97: N/A | O97: N/A | P97: N/A | Q97: N/A | R97: wrong length class, should be 12-<18 m
A98: POL | B98: Baltic Sea, North Sea and Eastern Arctic, and North Atlantic | C98: Drift and/or fixed netters | D98: 10-<12 m | F98: E | G98: Investments in tangible assets, net | H98: questionnaires | I98: A - Census | J98: Every Year | K98: 1 | M98: 13 | N98: 5 | O98: 0.3846153846 | P98: 0.3846153846 | Q98: 38.46153846 | R98: wrong length class, should be 12-<18 m
A99: POL | B99: Baltic Sea, North Sea and Eastern Arctic, and North Atlantic | C99: Drift and/or fixed netters | D99: 10-<12 m | F99: E | G99: Long/short Debt | H99: questionnaires | I99: A - Census | J99: Every Year | K99: 1 | M99: 13 | N99: 5 | O99: 0.3846153846 | P99: 0.3846153846 | Q99: 38.46153846 | R99: wrong length class, should be 12-<18 m
A100: POL | B100: Baltic Sea, North Sea and Eastern Arctic, and North Atlantic | C100: Drift and/or fixed netters | D100: 10-<12 m | F100: E | G100: Total assets | H100: questionnaires & scraping premium | I100: D - Indirect survey | J100: Every Year | K100: 1 | M100: 13 | N100: 5 | O100: 0.3846153846 | P100: 0.3846153846 | Q100: 38.46153846 | R100: wrong length class, should be 12-<18 m
A101: POL | B101: Baltic Sea, North Sea and Eastern Arctic, and North Atlantic | C101: Drift and/or fixed netters | D101: 10-<12 m | F101: E | G101: Engaged crew | H101: questionnaires | I101: A - Census | J101: Every Year | K101: 1 | M101: 13 | N101: 5 | O101: 0.3846153846 | P101: 0.3846153846 | Q101: 38.46153846 | R101: wrong length class, should be 12-<18 m
A102: POL | B102: Baltic Sea, North Sea and Eastern Arctic, and North Atlantic | C102: Drift and/or fixed netters | D102: 10-<12 m | F102: E | G102: Unpaid labour | H102: questionnaires | I102: A - Census | J102: Every Year | K102: 1 | L102: starting collection every year in 2021 | M102: 13 | N102: 5 | O102: 0.3846153846 | P102: 0.3846153846 | Q102: 38.46153846 | R102: wrong length class, should be 12-<18 m
A103: POL | B103: Baltic Sea, North Sea and Eastern Arctic, and North Atlantic | C103: Drift and/or fixed netters | D103: 10-<12 m | F103: E | G103: Total hours worked per year | H103: questionnaires & logbooks | I103: D - Indirect survey | J103: Every Year | K103: 1 | M103: 13 | N103: 5 | O103: 0.3846153846 | P103: 0.3846153846 | Q103: 38.46153846 | R103: wrong length class, should be 12-<18 m
A104: POL | B104: Baltic Sea, North Sea and Eastern Arctic, and North Atlantic | C104: Drift and/or fixed netters | D104: 10-<12 m | F104: E | G104: Number of vessels | H104: questionnaires, Register | I104: A - Census | J104: Every Year | K104: 1 | M104: 13 | N104: 5 | O104: 0.3846153846 | P104: 0.3846153846 | Q104: 38.46153846 | R104: wrong length class, should be 12-<18 m
A105: POL | B105: Baltic Sea, North Sea and Eastern Arctic, and North Atlantic | C105: Drift and/or fixed netters | D105: 10-<12 m | F105: E | G105: Mean LOA of vessels | H105: questionnaires, Register | I105: A - Census | J105: Every Year | K105: 1 | M105: 13 | N105: 5 | O105: 0.3846153846 | P105: 0.3846153846 | Q105: 38.46153846 | R105: wrong length class, should be 12-<18 m
A106: POL | B106: Baltic Sea, North Sea and Eastern Arctic, and North Atlantic | C106: Drift and/or fixed netters | D106: 10-<12 m | F106: E | G106: Total vessels tonnage | H106: questionnaires, Register | I106: A - Census | J106: Every Year | K106: 1 | M106: 13 | N106: 5 | O106: 0.3846153846 | P106: 0.3846153846 | Q106: 38.46153846 | R106: wrong length class, should be 12-<18 m
A107: POL | B107: Baltic Sea, North Sea and Eastern Arctic, and North Atlantic | C107: Drift and/or fixed netters | D107: 10-<12 m | F107: E | G107: Total vessels power | H107: questionnaires, Register | I107: A - Census | J107: Every Year | K107: 1 | M107: 13 | N107: 5 | O107: 0.3846153846 | P107: 0.3846153846 | Q107: 38.46153846 | R107: wrong length class, should be 12-<18 m
A108: POL | B108: Baltic Sea, North Sea and Eastern Arctic, and North Atlantic | C108: Drift and/or fixed netters | D108: 10-<12 m | F108: E | G108: Mean age of vessels | H108: questionnaires, Register | I108: A - Census | J108: Every Year | K108: 1 | M108: 13 | N108: 5 | O108: 0.3846153846 | P108: 0.3846153846 | Q108: 38.46153846 | R108: wrong length class, should be 12-<18 m
A109: POL | B109: Baltic Sea, North Sea and Eastern Arctic, and North Atlantic | C109: Drift and/or fixed netters | D109: 10-<12 m | F109: E | G109: Days at sea | H109: questionnaires, logbooks | I109: A - Census | J109: Every Year | K109: 1 | M109: 13 | N109: 5 | O109: 0.3846153846 | P109: 0.3846153846 | Q109: 38.46153846 | R109: wrong length class, should be 12-<18 m
A110: POL | B110: Baltic Sea, North Sea and Eastern Arctic, and North Atlantic | C110: Drift and/or fixed netters | D110: 10-<12 m | F110: E | G110: Energy consuption | H110: questionnaires | I110: A - Census | J110: Every Year | K110: 1 | M110: 13 | N110: 5 | O110: 0.3846153846 | P110: 0.3846153846 | Q110: 38.46153846 | R110: wrong length class, should be 12-<18 m
A111: POL | B111: Baltic Sea, North Sea and Eastern Arctic, and North Atlantic | C111: Drift and/or fixed netters | D111: 10-<12 m | F111: E | G111: Number of fishing enterprises/units | H111: Register | I111: A - Census | J111: Every Year | K111: 1 | M111: 13 | N111: 5 | O111: 0.3846153846 | P111: 0.3846153846 | Q111: 38.46153846 | R111: wrong length class, should be 12-<18 m
A112: POL | B112: Baltic Sea, North Sea and Eastern Arctic, and North Atlantic | C112: Drift and/or fixed netters | D112: 10-<12 m | F112: E | G112: Value of landings per species | H112: First sale document | I112: A - Census | J112: Every Year | K112: 1 | M112: 13 | N112: 5 | O112: 0.3846153846 | P112: 0.3846153846 | Q112: 38.46153846 | R112: wrong length class, should be 12-<18 m
A113: POL | B113: Baltic Sea, North Sea and Eastern Arctic, and North Atlantic | C113: Drift and/or fixed netters | D113: 10-<12 m | F113: E | G113: Average price per spices | H113: First sale document | I113: A - Census | J113: Every Year | K113: 1 | M113: 13 | N113: 5 | O113: 0.3846153846 | P113: 0.3846153846 | Q113: 38.46153846 | R113: wrong length class, should be 12-<18 m
A114: POL | B114: Baltic Sea, North Sea and Eastern Arctic, and North Atlantic | C114: Drift and/or fixed netters | D114: 10-<12 m | F114: S | G114: Employment by gender | H114: questionnaires | I114: A - Census | J114: Every Year | K114: 1 | M114: 13 | N114: 5 | O114: 0.3846153846 | P114: 0.3846153846 | Q114: 38.46153846 | R114: wrong length class, should be 12-<18 m
A115: POL | B115: Baltic Sea, North Sea and Eastern Arctic, and North Atlantic | C115: Drift and/or fixed netters | D115: 10-<12 m | F115: S | G115: FTE by gender | H115: questionnaires | I115: A - Census | J115: Every Year | K115: 1 | M115: 13 | N115: 5 | O115: 0.3846153846 | P115: 0.3846153846 | Q115: 38.46153846 | R115: wrong length class, should be 12-<18 m
A116: POL | B116: Baltic Sea, North Sea and Eastern Arctic, and North Atlantic | C116: Drift and/or fixed netters | D116: 10-<12 m | F116: S | G116: Unpaid labour by gender | H116: questionnaires | I116: A - Census | J116: Every Year | K116: 1 | L116: starting collection every year in 2021 | M116: 13 | N116: 5 | O116: 0.3846153846 | P116: 0.3846153846 | Q116: 38.46153846 | R116: wrong length class, should be 12-<18 m
A117: POL | B117: Baltic Sea, North Sea and Eastern Arctic, and North Atlantic | C117: Drift and/or fixed netters | D117: 10-<12 m | F117: S | G117: Employment by age | H117: questionnaires | I117: A - Census | J117: Every Year | K117: 1 | M117: 13 | N117: 5 | O117: 0.3846153846 | P117: 0.3846153846 | Q117: 38.46153846 | R117: wrong length class, should be 12-<18 m
A118: POL | B118: Baltic Sea, North Sea and Eastern Arctic, and North Atlantic | C118: Drift and/or fixed netters | D118: 10-<12 m | F118: S | G118: Employment by education level | H118: questionnaires | I118: A - Census | J118: Every Year | K118: 1 | M118: 13 | N118: 5 | O118: 0.3846153846 | P118: 0.3846153846 | Q118: 38.46153846 | R118: wrong length class, should be 12-<18 m
A119: POL | B119: Baltic Sea, North Sea and Eastern Arctic, and North Atlantic | C119: Drift and/or fixed netters | D119: 10-<12 m | F119: S | G119: Employment by nationality | H119: questionnaires | I119: A - Census | J119: Every Year | K119: 1 | L119: starting collection every year in 2021 | M119: 13 | N119: 5 | O119: 0.3846153846 | P119: 0.3846153846 | Q119: 38.46153846 | R119: wrong length class, should be 12-<18 m
A120: POL | B120: Baltic Sea, North Sea and Eastern Arctic, and North Atlantic | C120: Drift and/or fixed netters | D120: 10-<12 m | F120: S | G120: Employment by employment status | H120: questionnaires | I120: A - Census | J120: Every Year | K120: 1 | M120: 13 | N120: 5 | O120: 0.3846153846 | P120: 0.3846153846 | Q120: 38.46153846 | R120: wrong length class, should be 12-<18 m
A121: POL | B121: Baltic Sea, North Sea and Eastern Arctic, and North Atlantic | C121: Drift and/or fixed netters | D121: 10-<12 m | F121: S | G121: FTE National | H121: questionnaires | I121: A - Census | J121: Every Year | K121: 1 | M121: 13 | N121: 5 | O121: 0.3846153846 | P121: 0.3846153846 | Q121: 38.46153846 | R121: wrong length class, should be 12-<18 m
A122: POL | B122: Baltic Sea, North Sea and Eastern Arctic, and North Atlantic | C122: Demersal trawlers and/or demersal seiners | D122: 12-<18 m | F122: E | G122: Gross value of landings | H122: questionnaires | I122: A - Census | J122: Every Year | K122: 1 | M122: 52 | N122: 52 | O122: 1 | P122: 1 | Q122: 100
A123: POL | B123: Baltic Sea, North Sea and Eastern Arctic, and North Atlantic | C123: Demersal trawlers and/or demersal seiners | D123: 12-<18 m | F123: E | G123: Income from leasing out quota or other fishing rights | H123: not relevant | M123: N/A | N123: N/A | O123: N/A | P123: N/A | Q123: N/A
A124: POL | B124: Baltic Sea, North Sea and Eastern Arctic, and North Atlantic | C124: Demersal trawlers and/or demersal seiners | D124: 12-<18 m | F124: E | G124: Other income | H124: questionnaires | I124: A - Census | J124: Every Year | K124: 1 | M124: 52 | N124: 24 | O124: 0.4615384615 | P124: 0.4615384615 | Q124: 46.15384615
A125: POL | B125: Baltic Sea, North Sea and Eastern Arctic, and North Atlantic | C125: Demersal trawlers and/or demersal seiners | D125: 12-<18 m | F125: E | G125: Wages and salaries of crew | H125: questionnaires | I125: A - Census | J125: Every Year | K125: 1 | M125: 52 | N125: 24 | O125: 0.4615384615 | P125: 0.4615384615 | Q125: 46.15384615
A126: POL | B126: Baltic Sea, North Sea and Eastern Arctic, and North Atlantic | C126: Demersal trawlers and/or demersal seiners | D126: 12-<18 m | F126: E | G126: Imputed value of unpaid labour | H126: estimation | I126: D - Indirect survey | J126: Every Year | K126: 1 | L126: starting collection every year in 2021 | M126: 52 | N126: 24 | O126: 0.4615384615 | P126: 0.4615384615 | Q126: 46.15384615
A127: POL | B127: Baltic Sea, North Sea and Eastern Arctic, and North Atlantic | C127: Demersal trawlers and/or demersal seiners | D127: 12-<18 m | F127: E | G127: Energy costs | H127: questionnaires | I127: A - Census | J127: Every Year | K127: 1 | M127: 52 | N127: 24 | O127: 0.4615384615 | P127: 0.4615384615 | Q127: 46.15384615
A128: POL | B128: Baltic Sea, North Sea and Eastern Arctic, and North Atlantic | C128: Demersal trawlers and/or demersal seiners | D128: 12-<18 m | F128: E | G128: Repair and maintenance costs | H128: questionnaires | I128: A - Census | J128: Every Year | K128: 1 | M128: 52 | N128: 24 | O128: 0.4615384615 | P128: 0.4615384615 | Q128: 46.15384615
A129: POL | B129: Baltic Sea, North Sea and Eastern Arctic, and North Atlantic | C129: Demersal trawlers and/or demersal seiners | D129: 12-<18 m | F129: E | G129: Variable costs | H129: questionnaires | I129: A - Census | J129: Every Year | K129: 1 | M129: 52 | N129: 24 | O129: 0.4615384615 | P129: 0.4615384615 | Q129: 46.15384615
A130: POL | B130: Baltic Sea, North Sea and Eastern Arctic, and North Atlantic | C130: Demersal trawlers and/or demersal seiners | D130: 12-<18 m | F130: E | G130: Non-variable costs | H130: questionnaires | I130: A - Census | J130: Every Year | K130: 1 | M130: 52 | N130: 24 | O130: 0.4615384615 | P130: 0.4615384615 | Q130: 46.15384615
A131: POL | B131: Baltic Sea, North Sea and Eastern Arctic, and North Atlantic | C131: Demersal trawlers and/or demersal seiners | D131: 12-<18 m | F131: E | G131: Lease/rental payments for quota or other fishing rights | H131: questionnaires | I131: A - Census | J131: Every Year | K131: 1 | M131: N/A | N131: N/A | O131: N/A | P131: N/A | Q131: N/A
A132: POL | B132: Baltic Sea, North Sea and Eastern Arctic, and North Atlantic | C132: Demersal trawlers and/or demersal seiners | D132: 12-<18 m | F132: E | G132: Operating Subsidies | H132: questionnaires & administrative data base | I132: A - Census | J132: Every Year | K132: 1 | M132: 52 | N132: 24 | O132: 0.4615384615 | P132: 0.4615384615 | Q132: 46.15384615
A133: POL | B133: Baltic Sea, North Sea and Eastern Arctic, and North Atlantic | C133: Demersal trawlers and/or demersal seiners | D133: 12-<18 m | F133: E | G133: Subsidies on investments | H133: questionnaires & administrative data base | I133: A - Census | J133: Every Year | K133: 1 | M133: 52 | N133: 24 | O133: 0.4615384615 | P133: 0.4615384615 | Q133: 46.15384615
A134: POL | B134: Baltic Sea, North Sea and Eastern Arctic, and North Atlantic | C134: Demersal trawlers and/or demersal seiners | D134: 12-<18 m | F134: E | G134: Consumption of fixed capital | H134: questionnaires | I134: A - Census | J134: Every Year | K134: 1 | M134: 52 | N134: 24 | O134: 0.4615384615 | P134: 0.4615384615 | Q134: 46.15384615
A135: POL | B135: Baltic Sea, North Sea and Eastern Arctic, and North Atlantic | C135: Demersal trawlers and/or demersal seiners | D135: 12-<18 m | F135: E | G135: Value of physical capital | H135: questionnaires & scraping premium | I135: D - Indirect survey | J135: Every Year | K135: 1 | M135: 52 | N135: 24 | O135: =N135/M135 -> 0.4615384615 | P135: 0.4615384615 | Q135: =N135/(M135*K135/100) -> 46.15384615
A136: POL | B136: Baltic Sea, North Sea and Eastern Arctic, and North Atlantic | C136: Demersal trawlers and/or demersal seiners | D136: 12-<18 m | F136: E | G136: Value of quota and other fishing rights | H136: not relevant | M136: N/A | N136: N/A | O136: N/A | P136: N/A | Q136: N/A
A137: POL | B137: Baltic Sea, North Sea and Eastern Arctic, and North Atlantic | C137: Demersal trawlers and/or demersal seiners | D137: 12-<18 m | F137: E | G137: Investments in tangible assets, net | H137: questionnaires | I137: A - Census | J137: Every Year | K137: 1 | M137: 52 | N137: 24 | O137: 0.4615384615 | P137: 0.4615384615 | Q137: 46.15384615
A138: POL | B138: Baltic Sea, North Sea and Eastern Arctic, and North Atlantic | C138: Demersal trawlers and/or demersal seiners | D138: 12-<18 m | F138: E | G138: Long/short Debt | H138: questionnaires | I138: A - Census | J138: Every Year | K138: 1 | M138: 52 | N138: 24 | O138: 0.4615384615 | P138: 0.4615384615 | Q138: 46.15384615
A139: POL | B139: Baltic Sea, North Sea and Eastern Arctic, and North Atlantic | C139: Demersal trawlers and/or demersal seiners | D139: 12-<18 m | F139: E | G139: Total assets | H139: questionnaires & scraping premium | I139: D - Indirect survey | J139: Every Year | K139: 1 | M139: 52 | N139: 24 | O139: 0.4615384615 | P139: 0.4615384615 | Q139: 46.15384615
A140: POL | B140: Baltic Sea, North Sea and Eastern Arctic, and North Atlantic | C140: Demersal trawlers and/or demersal seiners | D140: 12-<18 m | F140: E | G140: Engaged crew | H140: questionnaires | I140: A - Census | J140: Every Year | K140: 1 | M140: 52 | N140: 24 | O140: 0.4615384615 | P140: 0.4615384615 | Q140: 46.15384615
A141: POL | B141: Baltic Sea, North Sea and Eastern Arctic, and North Atlantic | C141: Demersal trawlers and/or demersal seiners | D141: 12-<18 m | F141: E | G141: Unpaid labour | H141: questionnaires | I141: A - Census | J141: Every Year | K141: 1 | L141: starting collection every year in 2021 | M141: 52 | N141: 24 | O141: 0.4615384615 | P141: 0.4615384615 | Q141: 46.15384615
A142: POL | B142: Baltic Sea, North Sea and Eastern Arctic, and North Atlantic | C142: Demersal trawlers and/or demersal seiners | D142: 12-<18 m | F142: E | G142: Total hours worked per year | H142: questionnaires & logbooks | I142: D - Indirect survey | J142: Every Year | K142: 1 | M142: 52 | N142: 24 | O142: 0.4615384615 | P142: 0.4615384615 | Q142: 46.15384615
A143: POL | B143: Baltic Sea, North Sea and Eastern Arctic, and North Atlantic | C143: Demersal trawlers and/or demersal seiners | D143: 12-<18 m | F143: E | G143: Number of vessels | H143: questionnaires, Register | I143: A - Census | J143: Every Year | K143: 1 | M143: 52 | N143: 24 | O143: 0.4615384615 | P143: 0.4615384615 | Q143: 46.15384615
A144: POL | B144: Baltic Sea, North Sea and Eastern Arctic, and North Atlantic | C144: Demersal trawlers and/or demersal seiners | D144: 12-<18 m | F144: E | G144: Mean LOA of vessels | H144: questionnaires, Register | I144: A - Census | J144: Every Year | K144: 1 | M144: 52 | N144: 24 | O144: 0.4615384615 | P144: 0.4615384615 | Q144: 46.15384615
A145: POL | B145: Baltic Sea, North Sea and Eastern Arctic, and North Atlantic | C145: Demersal trawlers and/or demersal seiners | D145: 12-<18 m | F145: E | G145: Total vessels tonnage | H145: questionnaires, Register | I145: A - Census | J145: Every Year | K145: 1 | M145: 52 | N145: 24 | O145: 0.4615384615 | P145: 0.4615384615 | Q145: 46.15384615
A146: POL | B146: Baltic Sea, North Sea and Eastern Arctic, and North Atlantic | C146: Demersal trawlers and/or demersal seiners | D146: 12-<18 m | F146: E | G146: Total vessels power | H146: questionnaires, Register | I146: A - Census | J146: Every Year | K146: 1 | M146: 52 | N146: 24 | O146: 0.4615384615 | P146: 0.4615384615 | Q146: 46.15384615
A147: POL | B147: Baltic Sea, North Sea and Eastern Arctic, and North Atlantic | C147: Demersal trawlers and/or demersal seiners | D147: 12-<18 m | F147: E | G147: Mean age of vessels | H147: questionnaires, Register | I147: A - Census | J147: Every Year | K147: 1 | M147: 52 | N147: 24 | O147: 0.4615384615 | P147: 0.4615384615 | Q147: 46.15384615
A148: POL | B148: Baltic Sea, North Sea and Eastern Arctic, and North Atlantic | C148: Demersal trawlers and/or demersal seiners | D148: 12-<18 m | F148: E | G148: Days at sea | H148: questionnaires, logbooks | I148: A - Census | J148: Every Year | K148: 1 | M148: 52 | N148: 24 | O148: 0.4615384615 | P148: 0.4615384615 | Q148: 46.15384615
A149: POL | B149: Baltic Sea, North Sea and Eastern Arctic, and North Atlantic | C149: Demersal trawlers and/or demersal seiners | D149: 12-<18 m | F149: E | G149: Energy consuption | H149: questionnaires | I149: A - Census | J149: Every Year | K149: 1 | M149: 52 | N149: 24 | O149: 0.4615384615 | P149: 0.4615384615 | Q149: 46.15384615
A150: POL | B150: Baltic Sea, North Sea and Eastern Arctic, and North Atlantic | C150: Demersal trawlers and/or demersal seiners | D150: 12-<18 m | F150: E | G150: Number of fishing enterprises/units | H150: Register | I150: A - Census | J150: Every Year | K150: 1 | M150: 52 | N150: 24 | O150: 0.4615384615 | P150: 0.4615384615 | Q150: 46.15384615
A151: POL | B151: Baltic Sea, North Sea and Eastern Arctic, and North Atlantic | C151: Demersal trawlers and/or demersal seiners | D151: 12-<18 m | F151: E | G151: Value of landings per species | H151: First sale document | I151: A - Census | J151: Every Year | K151: 1 | M151: 52 | N151: 24 | O151: 0.4615384615 | P151: 0.4615384615 | Q151: 46.15384615
A152: POL | B152: Baltic Sea, North Sea and Eastern Arctic, and North Atlantic | C152: Demersal trawlers and/or demersal seiners | D152: 12-<18 m | F152: E | G152: Average price per spices | H152: First sale document | I152: A - Census | J152: Every Year | K152: 1 | M152: 52 | N152: 24 | O152: 0.4615384615 | P152: 0.4615384615 | Q152: 46.15384615
A153: POL | B153: Baltic Sea, North Sea and Eastern Arctic, and North Atlantic | C153: Demersal trawlers and/or demersal seiners | D153: 12-<18 m | F153: S | G153: Employment by gender | H153: questionnaires | I153: A - Census | J153: Every Year | K153: 1 | M153: 52 | N153: 24 | O153: 0.4615384615 | P153: 0.4615384615 | Q153: 46.15384615
A154: POL | B154: Baltic Sea, North Sea and Eastern Arctic, and North Atlantic | C154: Demersal trawlers and/or demersal seiners | D154: 12-<18 m | F154: S | G154: FTE by gender | H154: questionnaires | I154: A - Census | J154: Every Year | K154: 1 | M154: 52 | N154: 24 | O154: 0.4615384615 | P154: 0.4615384615 | Q154: 46.15384615
A155: POL | B155: Baltic Sea, North Sea and Eastern Arctic, and North Atlantic | C155: Demersal trawlers and/or demersal seiners | D155: 12-<18 m | F155: S | G155: Unpaid labour by gender | H155: questionnaires | I155: A - Census | J155: Every Year | K155: 1 | L155: starting collection every year in 2021 | M155: 52 | N155: 24 | O155: 0.4615384615 | P155: 0.4615384615 | Q155: 46.15384615
A156: POL | B156: Baltic Sea, North Sea and Eastern Arctic, and North Atlantic | C156: Demersal trawlers and/or demersal seiners | D156: 12-<18 m | F156: S | G156: Employment by age | H156: questionnaires | I156: A - Census | J156: Every Year | K156: 1 | M156: 52 | N156: 24 | O156: 0.4615384615 | P156: 0.4615384615 | Q156: 46.15384615
A157: POL | B157: Baltic Sea, North Sea and Eastern Arctic, and North Atlantic | C157: Demersal trawlers and/or demersal seiners | D157: 12-<18 m | F157: S | G157: Employment by education level | H157: questionnaires | I157: A - Census | J157: Every Year | K157: 1 | M157: 52 | N157: 24 | O157: 0.4615384615 | P157: 0.4615384615 | Q157: 46.15384615
A158: POL | B158: Baltic Sea, North Sea and Eastern Arctic, and North Atlantic | C158: Demersal trawlers and/or demersal seiners | D158: 12-<18 m | F158: S | G158: Employment by nationality | H158: questionnaires | I158: A - Census | J158: Every Year | K158: 1 | L158: starting collection every year in 2021 | M158: 52 | N158: 24 | O158: 0.4615384615 | P158: 0.4615384615 | Q158: 46.15384615
A159: POL | B159: Baltic Sea, North Sea and Eastern Arctic, and North Atlantic | C159: Demersal trawlers and/or demersal seiners | D159: 12-<18 m | F159: S | G159: Employment by employment status | H159: questionnaires | I159: A - Census | J159: Every Year | K159: 1 | M159: 52 | N159: 24 | O159: 0.4615384615 | P159: 0.4615384615 | Q159: 46.15384615
A160: POL | B160: Baltic Sea, North Sea and Eastern Arctic, and North Atlantic | C160: Demersal trawlers and/or demersal seiners | D160: 12-<18 m | F160: S | G160: FTE National | H160: questionnaires | I160: A - Census | J160: Every Year | K160: 1 | M160: 52 | N160: 24 | O160: 0.4615384615 | P160: 0.4615384615 | Q160: 46.15384615
A161: POL | B161: Baltic Sea, North Sea and Eastern Arctic, and North Atlantic | C161: Demersal trawlers and/or demersal seiners | D161: 18-<24 m | F161: E | G161: Gross value of landings | H161: questionnaires | I161: A - Census | J161: Every Year | K161: 1 | M161: 25 | N161: 25 | O161: 1 | P161: 1 | Q161: 100
A162: POL | B162: Baltic Sea, North Sea and Eastern Arctic, and North Atlantic | C162: Demersal trawlers and/or demersal seiners | D162: 18-<24 m | F162: E | G162: Income from leasing out quota or other fishing rights | H162: not relevant | M162: N/A | N162: N/A | O162: N/A | P162: N/A | Q162: N/A
A163: POL | B163: Baltic Sea, North Sea and Eastern Arctic, and North Atlantic | C163: Demersal trawlers and/or demersal seiners | D163: 18-<24 m | F163: E | G163: Other income | H163: questionnaires | I163: A - Census | J163: Every Year | K163: 1 | M163: 25 | N163: 11 | O163: 0.44 | P163: 0.44 | Q163: 44
A164: POL | B164: Baltic Sea, North Sea and Eastern Arctic, and North Atlantic | C164: Demersal trawlers and/or demersal seiners | D164: 18-<24 m | F164: E | G164: Wages and salaries of crew | H164: questionnaires | I164: A - Census | J164: Every Year | K164: 1 | M164: 25 | N164: 11 | O164: 0.44 | P164: 0.44 | Q164: 44
A165: POL | B165: Baltic Sea, North Sea and Eastern Arctic, and North Atlantic | C165: Demersal trawlers and/or demersal seiners | D165: 18-<24 m | F165: E | G165: Imputed value of unpaid labour | H165: estimation | I165: D - Indirect survey | J165: Every Year | K165: 1 | L165: starting collection every year in 2021 | M165: 25 | N165: 11 | O165: 0.44 | P165: 0.44 | Q165: 44
A166: POL | B166: Baltic Sea, North Sea and Eastern Arctic, and North Atlantic | C166: Demersal trawlers and/or demersal seiners | D166: 18-<24 m | F166: E | G166: Energy costs | H166: questionnaires | I166: A - Census | J166: Every Year | K166: 1 | M166: 25 | N166: 11 | O166: 0.44 | P166: 0.44 | Q166: 44
A167: POL | B167: Baltic Sea, North Sea and Eastern Arctic, and North Atlantic | C167: Demersal trawlers and/or demersal seiners | D167: 18-<24 m | F167: E | G167: Repair and maintenance costs | H167: questionnaires | I167: A - Census | J167: Every Year | K167: 1 | M167: 25 | N167: 11 | O167: 0.44 | P167: 0.44 | Q167: 44
A168: POL | B168: Baltic Sea, North Sea and Eastern Arctic, and North Atlantic | C168: Demersal trawlers and/or demersal seiners | D168: 18-<24 m | F168: E | G168: Variable costs | H168: questionnaires | I168: A - Census | J168: Every Year | K168: 1 | M168: 25 | N168: 11 | O168: 0.44 | P168: 0.44 | Q168: 44
A169: POL | B169: Baltic Sea, North Sea and Eastern Arctic, and North Atlantic | C169: Demersal trawlers and/or demersal seiners | D169: 18-<24 m | F169: E | G169: Non-variable costs | H169: questionnaires | I169: A - Census | J169: Every Year | K169: 1 | M169: 25 | N169: 11 | O169: 0.44 | P169: 0.44 | Q169: 44
A170: POL | B170: Baltic Sea, North Sea and Eastern Arctic, and North Atlantic | C170: Demersal trawlers and/or demersal seiners | D170: 18-<24 m | F170: E | G170: Lease/rental payments for quota or other fishing rights | H170: questionnaires | I170: A - Census | J170: Every Year | K170: 1 | M170: N/A | N170: N/A | P170: N/A
A171: POL | B171: Baltic Sea, North Sea and Eastern Arctic, and North Atlantic | C171: Demersal trawlers and/or demersal seiners | D171: 18-<24 m | F171: E | G171: Operating Subsidies | H171: questionnaires & administrative data base | I171: A - Census | J171: Every Year | K171: 1 | M171: 25 | N171: 11 | O171: 0.44 | P171: 0.44 | Q171: 44
A172: POL | B172: Baltic Sea, North Sea and Eastern Arctic, and North Atlantic | C172: Demersal trawlers and/or demersal seiners | D172: 18-<24 m | F172: E | G172: Subsidies on investments | H172: questionnaires & administrative data base | I172: A - Census | J172: Every Year | K172: 1 | M172: 25 | N172: 11 | O172: 0.44 | P172: 0.44 | Q172: 44
A173: POL | B173: Baltic Sea, North Sea and Eastern Arctic, and North Atlantic | C173: Demersal trawlers and/or demersal seiners | D173: 18-<24 m | F173: E | G173: Consumption of fixed capital | H173: questionnaires | I173: A - Census | J173: Every Year | K173: 1 | M173: 25 | N173: 11 | O173: 0.44 | P173: 0.44 | Q173: 44
A174: POL | B174: Baltic Sea, North Sea and Eastern Arctic, and North Atlantic | C174: Demersal trawlers and/or demersal seiners | D174: 18-<24 m | F174: E | G174: Value of physical capital | H174: questionnaires & scraping premium | I174: D - Indirect survey | J174: Every Year | K174: 1 | M174: 25 | N174: 11 | O174: 0.44 | P174: 0.44 | Q174: 44
A175: POL | B175: Baltic Sea, North Sea and Eastern Arctic, and North Atlantic | C175: Demersal trawlers and/or demersal seiners | D175: 18-<24 m | F175: E | G175: Value of quota and other fishing rights | H175: not relevant | M175: N/A | N175: N/A | O175: N/A | P175: N/A | Q175: N/A
A176: POL | B176: Baltic Sea, North Sea and Eastern Arctic, and North Atlantic | C176: Demersal trawlers and/or demersal seiners | D176: 18-<24 m | F176: E | G176: Investments in tangible assets, net | H176: questionnaires | I176: A - Census | J176: Every Year | K176: 1 | M176: 25 | N176: 11 | O176: 0.44 | P176: 0.44 | Q176: 44
A177: POL | B177: Baltic Sea, North Sea and Eastern Arctic, and North Atlantic | C177: Demersal trawlers and/or demersal seiners | D177: 18-<24 m | F177: E | G177: Long/short Debt | H177: questionnaires | I177: A - Census | J177: Every Year | K177: 1 | M177: 25 | N177: 11 | O177: 0.44 | P177: 0.44 | Q177: 44
A178: POL | B178: Baltic Sea, North Sea and Eastern Arctic, and North Atlantic | C178: Demersal trawlers and/or demersal seiners | D178: 18-<24 m | F178: E | G178: Total assets | H178: questionnaires & scraping premium | I178: D - Indirect survey | J178: Every Year | K178: 1 | M178: 25 | N178: 11 | O178: 0.44 | P178: 0.44 | Q178: 44
A179: POL | B179: Baltic Sea, North Sea and Eastern Arctic, and North Atlantic | C179: Demersal trawlers and/or demersal seiners | D179: 18-<24 m | F179: E | G179: Engaged crew | H179: questionnaires | I179: A - Census | J179: Every Year | K179: 1 | M179: 25 | N179: 11 | O179: 0.44 | P179: 0.44 | Q179: 44
A180: POL | B180: Baltic Sea, North Sea and Eastern Arctic, and North Atlantic | C180: Demersal trawlers and/or demersal seiners | D180: 18-<24 m | F180: E | G180: Unpaid labour | H180: questionnaires | I180: A - Census | J180: Every Year | K180: 1 | L180: starting collection every year in 2021 | M180: 25 | N180: 11 | O180: 0.44 | P180: 0.44 | Q180: 44
A181: POL | B181: Baltic Sea, North Sea and Eastern Arctic, and North Atlantic | C181: Demersal trawlers and/or demersal seiners | D181: 18-<24 m | F181: E | G181: Total hours worked per year | H181: questionnaires & logbooks | I181: D - Indirect survey | J181: Every Year | K181: 1 | M181: 25 | N181: 11 | O181: 0.44 | P181: 0.44 | Q181: 44
A182: POL | B182: Baltic Sea, North Sea and Eastern Arctic, and North Atlantic | C182: Demersal trawlers and/or demersal seiners | D182: 18-<24 m | F182: E | G182: Number of vessels | H182: questionnaires, Register | I182: A - Census | J182: Every Year | K182: 1 | M182: 25 | N182: 11 | O182: 0.44 | P182: 0.44 | Q182: 44
A183: POL | B183: Baltic Sea, North Sea and Eastern Arctic, and North Atlantic | C183: Demersal trawlers and/or demersal seiners | D183: 18-<24 m | F183: E | G183: Mean LOA of vessels | H183: questionnaires, Register | I183: A - Census | J183: Every Year | K183: 1 | M183: 25 | N183: 11 | O183: 0.44 | P183: 0.44 | Q183: 44
A184: POL | B184: Baltic Sea, North Sea and Eastern Arctic, and North Atlantic | C184: Demersal trawlers and/or demersal seiners | D184: 18-<24 m | F184: E | G184: Total vessels tonnage | H184: questionnaires, Register | I184: A - Census | J184: Every Year | K184: 1 | M184: 25 | N184: 11 | O184: 0.44 | P184: 0.44 | Q184: 44
A185: POL | B185: Baltic Sea, North Sea and Eastern Arctic, and North Atlantic | C185: Demersal trawlers and/or demersal seiners | D185: 18-<24 m | F185: E | G185: Total vessels power | H185: questionnaires, Register | I185: A - Census | J185: Every Year | K185: 1 | M185: 25 | N185: 11 | O185: 0.44 | P185: 0.44 | Q185: 44
A186: POL | B186: Baltic Sea, North Sea and Eastern Arctic, and North Atlantic | C186: Demersal trawlers and/or demersal seiners | D186: 18-<24 m | F186: E | G186: Mean age of vessels | H186: questionnaires, Register | I186: A - Census | J186: Every Year | K186: 1 | M186: 25 | N186: 11 | O186: 0.44 | P186: 0.44 | Q186: 44
A187: POL | B187: Baltic Sea, North Sea and Eastern Arctic, and North Atlantic | C187: Demersal trawlers and/or demersal seiners | D187: 18-<24 m | F187: E | G187: Days at sea | H187: questionnaires, logbooks | I187: A - Census | J187: Every Year | K187: 1 | M187: 25 | N187: 11 | O187: 0.44 | P187: 0.44 | Q187: 44
A188: POL | B188: Baltic Sea, North Sea and Eastern Arctic, and North Atlantic | C188: Demersal trawlers and/or demersal seiners | D188: 18-<24 m | F188: E | G188: Energy consuption | H188: questionnaires | I188: A - Census | J188: Every Year | K188: 1 | M188: 25 | N188: 11 | O188: 0.44 | P188: 0.44 | Q188: 44
A189: POL | B189: Baltic Sea, North Sea and Eastern Arctic, and North Atlantic | C189: Demersal trawlers and/or demersal seiners | D189: 18-<24 m | F189: E | G189: Number of fishing enterprises/units | H189: Register | I189: A - Census | J189: Every Year | K189: 1 | M189: 25 | N189: 11 | O189: 0.44 | P189: 0.44 | Q189: 44
A190: POL | B190: Baltic Sea, North Sea and Eastern Arctic, and North Atlantic | C190: Demersal trawlers and/or demersal seiners | D190: 18-<24 m | F190: E | G190: Value of landings per species | H190: First sale document | I190: A - Census | J190: Every Year | K190: 1 | M190: 25 | N190: 11 | O190: 0.44 | P190: 0.44 | Q190: 44
A191: POL | B191: Baltic Sea, North Sea and Eastern Arctic, and North Atlantic | C191: Demersal trawlers and/or demersal seiners | D191: 18-<24 m | F191: E | G191: Average price per spices | H191: First sale document | I191: A - Census | J191: Every Year | K191: 1 | M191: 25 | N191: 11 | O191: 0.44 | P191: 0.44 | Q191: 44
A192: POL | B192: Baltic Sea, North Sea and Eastern Arctic, and North Atlantic | C192: Demersal trawlers and/or demersal seiners | D192: 18-<24 m | F192: S | G192: Employment by gender | H192: questionnaires | I192: A - Census | J192: Every Year | K192: 1 | M192: 25 | N192: 11 | O192: 0.44 | P192: 0.44 | Q192: 44
A193: POL | B193: Baltic Sea, North Sea and Eastern Arctic, and North Atlantic | C193: Demersal trawlers and/or demersal seiners | D193: 18-<24 m | F193: S | G193: FTE by gender | H193: questionnaires | I193: A - Census | J193: Every Year | K193: 1 | M193: 25 | N193: 11 | O193: 0.44 | P193: 0.44 | Q193: 44
A194: POL | B194: Baltic Sea, North Sea and Eastern Arctic, and North Atlantic | C194: Demersal trawlers and/or demersal seiners | D194: 18-<24 m | F194: S | G194: Unpaid labour by gender | H194: questionnaires | I194: A - Census | J194: Every Year | K194: 1 | L194: starting collection every year in 2021 | M194: 25 | N194: 11 | O194: 0.44 | P194: 0.44 | Q194: 44
A195: POL | B195: Baltic Sea, North Sea and Eastern Arctic, and North Atlantic | C195: Demersal trawlers and/or demersal seiners | D195: 18-<24 m | F195: S | G195: Employment by age | H195: questionnaires | I195: A - Census | J195: Every Year | K195: 1 | M195: 25 | N195: 11 | O195: 0.44 | P195: 0.44 | Q195: 44
A196: POL | B196: Baltic Sea, North Sea and Eastern Arctic, and North Atlantic | C196: Demersal trawlers and/or demersal seiners | D196: 18-<24 m | F196: S | G196: Employment by education level | H196: questionnaires | I196: A - Census | J196: Every Year | K196: 1 | M196: 25 | N196: 11 | O196: 0.44 | P196: 0.44 | Q196: 44
A197: POL | B197: Baltic Sea, North Sea and Eastern Arctic, and North Atlantic | C197: Demersal trawlers and/or demersal seiners | D197: 18-<24 m | F197: S | G197: Employment by nationality | H197: questionnaires | I197: A - Census | J197: Every Year | K197: 1 | L197: starting collection every year in 2021 | M197: 25 | N197: 11 | O197: 0.44 | P197: 0.44 | Q197: 44
A198: POL | B198: Baltic Sea, North Sea and Eastern Arctic, and North Atlantic | C198: Demersal trawlers and/or demersal seiners | D198: 18-<24 m | F198: S | G198: Employment by employment status | H198: questionnaires | I198: A - Census | J198: Every Year | K198: 1 | M198: 25 | N198: 11 | O198: 0.44 | P198: 0.44 | Q198: 44
A199: POL | B199: Baltic Sea, North Sea and Eastern Arctic, and North Atlantic | C199: Demersal trawlers and/or demersal seiners | D199: 18-<24 m | F199: S | G199: FTE National | H199: questionnaires | I199: A - Census | J199: Every Year | K199: 1 | M199: 25 | N199: 11 | O199: =N199/M199 -> 0.44 | P199: 0.44 | Q199: =N199/(M199*K199/100) -> 44
A200: POL | B200: Baltic Sea, North Sea and Eastern Arctic, and North Atlantic | C200: Pelagic trawlers | D200: 18-<24 m | F200: E | G200: Gross value of landings | H200: questionnaires | I200: A - Census | J200: Every Year | K200: 1 | M200: 30 | N200: 30 | O200: 1 | P200: 1 | Q200: 100
... 202 more rows

Sheet Table3B Pop segments aquacultur
A1: Table 3B: Population segments for collection of economic and social data for aquaculture
Q2: WP years | R2: 2020-2021
Q3: AR year | R3: 2020
A4: MS | B4: Techniques | C4: Species group | D4: Type of variables (E/S) | E4: Variable | F4: Data source | G4: Type of data collection scheme | H4: Threshold (Y/N) | I4: Threshold Type | J4: Frequency | K4: Planned sample rate % | L4: Comments | M4: Frame population | N4: Achieved sample number | O4: Achieved Sample Rate % | P4: Response Rate % | Q4: Achieved Sample no/Planned sample no. | R4: AR Comment
A5: POL | B5: NA | C5: NA | D5: NA | E5: NA | F5: NA | G5: NA | H5: NA | J5: NA | K5: NA | L5: According to classification of aquaculture activities by Eurostat statistics, Poland has no marine aquaculture sector. Hence, no sampling is planned

Sheet Table3C Pop segments processin
A1: Table 3C: Population segments for collection of economic and social data for the processing industry
N2: WP years | O2: 2020-2021
N3: AR year | O3: 2020
A4: MS | B4: Segment | C4: Type of variables (E/S) | D4: Variables | E4: Data sources | F4: Type of data collection scheme | G4: Frequency | H4: Planned sample rate % | I4: Comments | J4: Frame population | K4: Achieved sample number | L4: Achieved Sample Rate % | M4: Response Rate % | N4: Achieved Sample no/Planned sample no. | O4: AR Comments
A5: POL | B5: All segments | C5: E | D5: Turnover | E5: questionnaires | F5: A - Census | G5: every year | H5: 100 | J5: 228 | K5: 163 | L5: =K5/J5 -> 0.7149122807 | M5: 0.7675438596 | N5: =K5/(J5*H5/100) -> 0.7149122807
A6: POL | B6: All segments | C6: E | D6: Other income | E6: questionnaires | F6: A - Census | G6: every year | H6: 100 | J6: 228 | K6: 163 | L6: =K6/J6 -> 0.7149122807 | M6: 0.7675438596 | N6: =K6/(J6*H6/100) -> 0.7149122807
A7: POL | B7: All segments | C7: E | D7: Personnel costs | E7: questionnaires | F7: A - Census | G7: every year | H7: 100 | J7: 228 | K7: 163 | L7: 0.7149122807 | M7: 0.7675438596 | N7: 0.7149122807
A8: POL | B8: All segments | C8: E | D8: Value of unpaid labour | E8: questionnaires | F8: A - Census | G8: every year | H8: 100 | J8: 228 | K8: 163 | L8: 0.7149122807 | M8: 0.7675438596 | N8: 0.7149122807
A9: POL | B9: All segments | C9: E | D9: Energy costs | E9: questionnaires | F9: A - Census | G9: every year | H9: 100 | J9: 228 | K9: 163 | L9: 0.7149122807 | M9: 0.7675438596 | N9: 0.7149122807
A10: POL | B10: All segments | C10: E | D10: Purchase of fish and other raw material for production | E10: questionnaires | F10: A - Census | G10: every year | H10: 100 | J10: 228 | K10: 163 | L10: 0.7149122807 | M10: 0.7675438596 | N10: 0.7149122807
A11: POL | B11: All segments | C11: E | D11: Other operational costs | E11: questionnaires | F11: A - Census | G11: every year | H11: 100 | J11: 228 | K11: 163 | L11: 0.7149122807 | M11: 0.7675438596 | N11: 0.7149122807
A12: POL | B12: All segments | C12: E | D12: Operating subsidies | E12: questionnaires | F12: A - Census | G12: every year | H12: 100 | J12: 228 | K12: 163 | L12: 0.7149122807 | M12: 0.7675438596 | N12: 0.7149122807
A13: POL | B13: All segments | C13: E | D13: Subsidies on investments | E13: questionnaires | F13: A - Census | G13: every year | H13: 100 | J13: 228 | K13: 163 | L13: 0.7149122807 | M13: 0.7675438596 | N13: 0.7149122807
A14: POL | B14: All segments | C14: E | D14: Consumption of fixed capital | E14: questionnaires | F14: A - Census | G14: every year | H14: 100 | J14: 228 | K14: 163 | L14: 0.7149122807 | M14: 0.7675438596 | N14: 0.7149122807
A15: POL | B15: All segments | C15: E | D15: Total value of assets | E15: questionnaires | F15: A - Census | G15: every year | H15: 100 | J15: 228 | K15: 163 | L15: 0.7149122807 | M15: 0.7675438596 | N15: 0.7149122807
A16: POL | B16: All segments | C16: E | D16: Financial income | E16: questionnaires | F16: A - Census | G16: every year | H16: 100 | J16: 228 | K16: 163 | L16: 0.7149122807 | M16: 0.7675438596 | N16: 0.7149122807
A17: POL | B17: All segments | C17: E | D17: Financial expenditures | E17: questionnaires | F17: A - Census | G17: every year | H17: 100 | J17: 228 | K17: 163 | L17: 0.7149122807 | M17: 0.7675438596 | N17: 0.7149122807
A18: POL | B18: All segments | C18: E | D18: Net investments | E18: questionnaires | F18: A - Census | G18: every year | H18: 100 | J18: 228 | K18: 163 | L18: 0.7149122807 | M18: 0.7675438596 | N18: 0.7149122807
A19: POL | B19: All segments | C19: E | D19: Debt | E19: questionnaires | F19: A - Census | G19: every year | H19: 100 | J19: 228 | K19: 163 | L19: 0.7149122807 | M19: 0.7675438596 | N19: 0.7149122807
A20: POL | B20: All segments | C20: E | D20: Number of persons employed | E20: questionnaires | F20: A - Census | G20: every year | H20: 100 | J20: 228 | K20: 163 | L20: 0.7149122807 | M20: 0.7675438596 | N20: 0.7149122807
A21: POL | B21: All segments | C21: E | D21: FTE National | E21: questionnaires | F21: A - Census | G21: every year | H21: 100 | J21: 228 | K21: 163 | L21: 0.7149122807 | M21: 0.7675438596 | N21: 0.7149122807
A22: POL | B22: All segments | C22: E | D22: Unpaid labour | E22: questionnaires | F22: A - Census | G22: every year | H22: 100 | J22: 228 | K22: 163 | L22: 0.7149122807 | M22: 0.7675438596 | N22: 0.7149122807
A23: POL | B23: All segments | C23: E | D23: Number of hours worked by employees and unpaid workers | E23: questionnaires | F23: A - Census | G23: every year | H23: 100 | J23: 228 | K23: 163 | L23: 0.7149122807 | M23: 0.7675438596 | N23: 0.7149122807
A24: POL | B24: All segments | C24: E | D24: Number of enterprises | E24: questionnaires | F24: A - Census | G24: every year | H24: 100 | J24: 228 | K24: 163 | L24: 0.7149122807 | M24: 0.7675438596 | N24: 0.7149122807
A25: POL | B25: All segments | C25: E | D25: Weight of raw material per species and origin (optional) | E25: questionnaires | F25: A - Census | G25: every year | H25: 100 | J25: 228 | K25: 163 | L25: 0.7149122807 | M25: 0.7675438596 | N25: 0.7149122807
A26: POL | B26: All segments | C26: S | D26: Employment by gender | E26: questionnaires | F26: A - Census | G26: every year | H26: 100 | J26: 228 | K26: 163 | L26: 0.7149122807 | M26: 0.7675438596 | N26: 0.7149122807
A27: POL | B27: All segments | C27: S | D27: Employment by age | E27: questionnaires | F27: A - Census | G27: every year | H27: 100 | J27: 228 | K27: 163 | L27: 0.7149122807 | M27: 0.7675438596 | N27: 0.7149122807
A28: POL | B28: All segments | C28: S | D28: Employment by education level | E28: questionnaires | F28: A - Census | G28: every year | H28: 100 | I28: starting collection every year in 2021 | J28: NA | K28: NA | L28: NA | M28: NA | N28: NA | O28: NA
A29: POL | B29: All segments | C29: S | D29: Employment by nationality | E29: questionnaires | F29: A - Census | G29: every year | H29: 100 | J29: 228 | K29: 163 | L29: 0.7149122807 | M29: 0.7675438596 | N29: 0.7149122807
A30: POL | B30: All segments | C30: S | D30: FTE National | E30: questionnaires | F30: A - Census | G30: every year | H30: 100 | J30: 228 | K30: 163 | L30: 0.7149122807 | M30: 0.7675438596 | N30: 0.7149122807

Sheet Table4A Sampling plan descripti
A1: Table 4A: Sampling plan description for biological data
X2: WP years | Y2: 2020-2021
X3: AR year | Y3: 2020
P4: Conformity | S4: Informative Data
A5: MS | B5: MS participating in sampling | C5: Region | D5: RFMO/RFO/IO | E5: Sub-area / Fishing ground | F5: Scheme | G5: Stratum ID code | H5: PSU type | I5: Catch fractions covered | J5: Species/ Stocks covered for estimation of volume and length of catch fractions | K5: Seasonality (Temporal strata) | L5: Reference years | M5: Average Number of PSU during the reference years | N5: Planned number of PSUs | O5: Comments | P5: Total number of PSU in the sampling year | Q5: Achieved number of PSU in the sampling year | R5: % of achievement (100*Q/N) | S5: Number of unique vessels with activity in the stratum | T5: Number of unique vessels sampled | U5: Number of fishing trips in the stratum | V5: Number of fishing trips sampled | W5: Number of species with length measurements | X5: Total number of length measurements | Y5: AR Comments
A6: POL | B6: POL | C6: Baltic Sea (ICES areas III b-d) | D6: ICES | E6: 22-32 | F6: Baltic at sea and on shore | G6: BAL VL0010 | H6: vessel trip | I6: Landings + Discards | J6: all species and stocks | K6: Quarterly | L6: 2018 | M6: 41390 | N6: 80 | O6: coverage 100% | P6: 21737 | Q6: 55 | R6: 68.75 | S6: 523 | T6: 22 | U6: 21737 | V6: 55 | W6: 32 | X6: 11184 | Y6: Low performance is the result of four main factors: high refusal rate, restrictions on people movevement or lack of vessels activity caused by Covid-19, fishing bans. See Text Boxex 1C and 4A for more details.
A7: POL | B7: POL | C7: Baltic Sea (ICES areas III b-d) | D7: ICES | E7: 22-32 | F7: Baltic at sea and on shore | G7: BAL VL1012 | H7: vessel trip | I7: Landings + Discards | J7: all species and stocks | K7: Quarterly | L7: 2018 | M7: 7227 | N7: 19 | O7: coverage 100% | P7: 5228 | Q7: 10 | R7: 52.63157895 | S7: 129 | T7: 6 | U7: 5228 | V7: 10 | W7: 23 | X7: 1741 | Y7: Low performance is the result of four main factors: high refusal rate, restrictions on people movevement or lack of vessels activity caused by Covid-19, fishing bans. See Text Boxex 1C and 4A for more details.
A8: POL | B8: POL | C8: Baltic Sea (ICES areas III b-d) | D8: ICES | E8: 22-32 | F8: Baltic at sea and on shore | G8: BAL VL1218 | H8: vessel trip | I8: Landings + Discards | J8: all species and stocks | K8: Quarterly | L8: 2018 | M8: 2627 | N8: 17 | O8: coverage 100% | P8: 1949 | Q8: 12 | R8: 70.58823529 | S8: 51 | T8: 7 | U8: 1949 | V8: 12 | W8: 6 | X8: 1741 | Y8: Low performance is the result of four main factors: high refusal rate, restrictions on people movevement or lack of vessels activity caused by Covid-19, fishing bans. See Text Boxex 1C and 4A for more details.
A9: POL | B9: POL | C9: Baltic Sea (ICES areas III b-d) | D9: ICES | E9: 22-32 | F9: Baltic at sea and on shore | G9: BAL VL1824 | H9: vessel trip | I9: Landings + Discards | J9: all species and stocks | K9: Quarterly | L9: 2018 | M9: 3666 | N9: 33 | O9: coverage 100% | P9: 2808 | Q9: 17 | R9: 51.51515152 | S9: 57 | T9: 11 | U9: 2808 | V9: 17 | W9: 6 | X9: 4366 | Y9: Low performance is the result of four main factors: high refusal rate, restrictions on people movevement or lack of vessels activity caused by Covid-19, fishing bans. See Text Boxex 1C and 4A for more details.
A10: POL | B10: POL | C10: Baltic Sea (ICES areas III b-d) | D10: ICES | E10: 22-32 | F10: Baltic at sea and on shore | G10: BAL VL2440 | H10: vessel trip | I10: Landings + Discards | J10: all species and stocks | K10: Quarterly | L10: 2018 | M10: 3128 | N10: 72 | O10: coverage 100% | P10: 2711 | Q10: 25 | R10: 34.72222222 | S10: 44 | T10: 14 | U10: 2711 | V10: 25 | W10: 8 | X10: 7307 | Y10: Low performance is the result of four main factors: high refusal rate, restrictions on people movevement or lack of vessels activity caused by Covid-19, fishing bans. See Text Boxex 1C and 4A for more details.
A11: POL | B11: POL | C11: North Sea (ICES areas IIIa and IV), Eastern Arctic (ICES areas I and II) | D11: ICES | E11: I, II | F11: North Sea and Eastern Arctic at sea | G11: NSEA | H11: vessel trip | I11: Landings + Discards | J11: only stocks in Table 1A | K11: Annual | L11: 2016-2018 | M11: 4 | N11: 1 | O11: One vessel only - no selection needed | P11: 7 | Q11: 0 | R11: 0 | S11: 2 | T11: 0 | U11: 7 | V11: 0 | W11: 0 | X11: 0 | Y11: No sampling performed in 2020 due to COVID-19 (closed borders, restrictions in poeple movement, safaty issues).
A12: POL | B12: DEU - LTU -LVA - NLD - POL | C12: Other regions | D12: CECAF | E12: 34.1.3, 34.3.1 | F12: Other fishing regions at sea | G12: OFR1 | H12: vessel trip | I12: Landings + Discards | J12: selected species/stocks | K12: Annual | L12: 2016-2018 | M12: 9 | N12: NA | O12: Selection for sampling stemming from international obligations and based on the Multi-lateral agreement for biological data collection of pelagic fisheries in CECAF waters (http://dcf.mir.gdynia.pl/?page_id=365) and on the Sampling Protocol - “Biological Data Collection of pelagic fisheries in CECAF waters in compliance with the DCF, version 8-03-2018”. ( http://dcf.mir.gdynia.pl/?page_id=367 ). Subject to the availability of place for scientific observers on board the EU fishing vessels operating in the area, two observer trips per quarter are planned. | P12: 0 | Q12: 0 | R12: NA | S12: 0 | T12: 0 | U12: 0 | V12: 0 | W12: 0 | X12: 0 | Y12: Joint sampling program based on Multilateral Agreement (see Table 7C). (http://dcf.mir.gdynia.pl/?page_id=365) POL is coordinating joint sampling programme from 2018. Sampling plan set in line with "Biological Data Collection of pelagic fisheries in CECAF waters - Manual for scientific observers on board EU pelagic trawlers in CECAF area", ver. 8-03-2018. There were no fishing activity by Polish vessels in CECAF area in 2020, netiher there was any biological sampling of the fishery conducted in 2020. Biological sampling of the fishery conducted by the EU vessels is executed by Poland on behalf of UE MS concerned (parties to the agreements). As an executor of biological sampling, Poland reports this activity in its AR on behalf of MS concerned. MS concerned, parties to the multilateral agreements, in their ARs make only the reference to Polish AR regarding sampling activity in the CECAF area. No sampling performed in 2020 due to COVID-19 (closed borders, restrictions in poeple movement, safaty issues).
A13: POL | B13: DEU - LTU - NLD - POL | C13: Other regions | D13: SPRFMO | E13: SPRFMO Convention Area | F13: Other fishing regions at sea | G13: OFR2 | H13: vessel trip | I13: Landings + Discards | J13: only stock in Table 1C | K13: Annual | L13: 2016-2018 | M13: 2 | N13: NA | O13: Multilateral Agreement for biological data collection of pelagic fisheries in SPRFMO waters (http://dcf.mir.gdynia.pl/?page_id=365). According to the SPRFMO requirements ("CMM 01-2019; Conservation and Management Measure for Trachurus Murphyi"), a minimum of 10% of all fishing trips shall be observed/sampled - https://www.sprfmo.int/assets/Fisheries/Conservation-and-Management-Measures/2019-CMMs/CMM-01-2019-5Mar2019.pdf | P13: 0 | Q13: 0 | R13: NA | S13: 0 | T13: 0 | U13: 0 | V13: 0 | W13: 0 | X13: 0 | Y13: Joint sampling program based on Multilateral Agreement (see Table 7C). (http://dcf.mir.gdynia.pl/?page_id=365). POL is coordinating joint sampling programme from 2017. Sampling programme set in line with the SPRFMO Data Standards (CMM 02-2018) and the requirements of the SPRFMO Conservation and Managemnt Measure for Trachurus murphyi (CMM 01-2019). Biological sampling of the fishery conducted by the EU vessels is executed and reported by Poland on behalf of UE MS concerned (parties to the agreements). No EU fishing activity in SPRFMO area, hence no sampling in 2020.
A14: POL | B14: POL | C14: Baltic Sea (ICES areas III b-d) | D14: ICES | E14: 22-32 | F14: self-sampling of small pelagic's | G14: Pelagics_pilot | H14: vessel_trip | I14: Landings | J14: all species and stocks | K14: Quaterly | L14: 02-05.2019 | M14: 1413 | N14: 10 | O14: NA | P14: 1640 | Q14: 4 | R14: 40 | S14: 54 | T14: 4 | U14: 1640 | V14: 4 | W14: 6 | X14: 1018 | Y14: New row, not corresponding to any sampling frame in the WP. Samples were collected as part of Intersessional Subgroup 'Case study of fisheries for small pelagic's in the Baltic'. The data were collected in three months period (February-April) in 2020

Sheet Table4B Sampling frame descrip
A1: Table 4B: Sampling frame description for biological data
E2: WP years | F2: 2020-2021
E3: AR year | F3: 2020
A4: MS | B4: Stratum ID number | C4: Stratum | D4: Sampling frame description | E4: Method of PSU selection | F4: Comments
A5: POL | B5: BAL VL0010 | C5: Baltic vessels under 10 meters in length. | D5: List of 508 vessels under 10 meters in length | E5: random draw
A6: POL | B6: BAL VL1012 | C6: Baltic vessels between 10 and 12 meters in length. | D6: List of 114 vessels between 10 and 12 meters in length | E6: random draw
A7: POL | B7: BAL VL1218 | C7: Baltic vessels between 12 and 18 meters in length. | D7: List of 52 vessels between 12 and 18 meters in length | E7: random draw
A8: POL | B8: BAL VL1824 | C8: Baltic vessels between 18 and 24 meters in length. | D8: List of 55 vessels between 18 and 24 meters in length | E8: random draw
A9: POL | B9: BAL VL2440 | C9: Baltic vessels between 24 and 40 meters in length. | D9: List of 46 vessels between 24 and 40 meters in length | E9: random draw | F9: One vessel over 40 meters in length was included in this stratum to avoid the risk of being identified
A10: POL | B10: NSEA | C10: Freezer trawler targetting cod in NS&EA | D10: 1 trawler targeting cod | E10: NA | F10: One vessel only - no selection needed
A11: POL | B11: OFR1 | C11: Pelagic trawlers fishing in CECAF | D11: Pelagic trawlers fishing in CECAF | E11: NA | F11: Multilateral agreement on joint sampling programme
A12: POL | B12: OFR2 | C12: Pelagic trawlers fishing in SPRFMO | D12: Pelagic trawlers fishing in SPRFMO | E12: NA | F12: Multilateral agreement on joint sampling programme
A13: POL | B13: Pelagics_pilot | C13: Baltic vessels fishing for small pelagic's | D13: List of 56 vessels which met the following criteria: were active at least once in the period Ferbuary-April in 2019, were using OTM, had total landings 10t minimum, were targeting sprat or herring (over 95%), have length above 17.5m. | E13: random draw | F13: New row. This is no corresponding to the sampling frame in the WP. Samples were collected as a part of Intersessional Subgroup 'Case study of fisheries for small pelagic's in the Baltic'. The data were collected in the three months period (February-April) in 2020

Sheet Table4C Data on the fisheries
A1: Table 4C: Data on the fisheries by member state | N1: =Q22/J22 -> 0.3337243608 | O1: =Q11/J11 -> 0.5626924498 | P1: =37787/58800 -> 0.6426360544
U2: WP years | V2: 2020-2021
U3: AR year | V3: 2020
A4: MS | B4: Region | C4: RFMO/RFO/IO | D4: Sub-area / Fishing ground | E4: Reference years | F4: Fleet segment / Metier | G4: Targeted species / species assemblage | H4: Average number of vessels | I4: Average number of fishing trips | J4: Average number of fishing days | K4: Average landings (tons) | L4: Average landings (tons) in national ports | M4: Average landings (tons) in foreign ports | N4: Comments | O4: Number of vessels | P4: Number of fishing trips | Q4: Number of fishing days | R4: Is the fleet segment/ metier covered by any stratum (Y/N) | S4: Landings (tons) | T4: Landings (tons) in national ports | U4: Landings (tons) in foreign ports | V4: AR Comments
A5: POL | B5: Baltic Sea (ICES areas III b-d) | C5: ICES | D5: 22-32 | E5: 2016-2018 | F5: FPO_ANA_>0_0_0 | G5: ANA | H5: 4.67 | I5: 10.67 | J5: 10.67 | K5: =L5+M5 -> 3.83 | L5: 3.83 | M5: 0 | O5: 4 | P5: 10 | Q5: 10 | R5: Y | S5: 0.8 | T5: 0.8 | U5: 0
A6: POL | B6: Baltic Sea (ICES areas III b-d) | C6: ICES | D6: 22-32 | E6: 2016-2018 | F6: FPO_DEF_>0_0_0 | G6: DEF | H6: 23.33 | I6: 189.33 | J6: 189.33 | K6: 3.72 | L6: 3.72 | M6: 0 | O6: 21 | P6: 80 | Q6: 80 | R6: Y | S6: 1.05 | T6: 1.05 | U6: 0
A7: POL | B7: Baltic Sea (ICES areas III b-d) | C7: ICES | D7: 22-32 | E7: 2016-2018 | F7: FPO_FWS_>0_0_0 | G7: FWS | H7: 200 | I7: 7582.33 | J7: 7582.33 | K7: 1545.47 | L7: 1545.47 | M7: 0 | O7: 218 | P7: 3769 | Q7: 3769 | R7: Y | S7: 674.18 | T7: 674.18 | U7: 0
A8: POL | B8: Baltic Sea (ICES areas III b-d) | C8: ICES | D8: 22-32 | E8: 2016-2018 | F8: FPO_SPF_>0_0_0 | G8: SPF | H8: 95.67 | I8: 971.67 | J8: 971.67 | K8: 1823.66 | L8: 1823.66 | M8: 0 | O8: 69 | P8: 482 | Q8: 482 | R8: Y | S8: 219.33 | T8: 219.33 | U8: 0
A9: POL | B9: Baltic Sea (ICES areas III b-d) | C9: ICES | D9: 22-32 | E9: 2016-2018 | F9: GNS_ANA_110-156_0_0 | G9: ANA | H9: 35 | I9: 155.33 | J9: 155.33 | K9: 6.91 | L9: 6.91 | M9: 0 | O9: 15 | P9: 44 | Q9: 44 | R9: Y | S9: 2.07 | T9: 2.07 | U9: 0
A10: POL | B10: Baltic Sea (ICES areas III b-d) | C10: ICES | D10: 22-32 | E10: 2016-2018 | F10: GNS_ANA_>=157_0_0 | G10: ANA | H10: 173.33 | I10: 2078 | J10: 2119.67 | K10: 138.63 | L10: 138.63 | M10: 0 | O10: 167 | P10: 1760 | Q10: 1790 | R10: Y | S10: 94.45 | T10: 94.45 | U10: 0
A11: POL | B11: Baltic Sea (ICES areas III b-d) | C11: ICES | D11: 22-32 | E11: 2016-2018 | F11: GNS_DEF_110-156_0_0 | G11: DEF | H11: 370.67 | I11: 15399.67 | J11: 16238 | K11: 4966.03 | L11: 4966.03 | M11: 0 | O11: 372 | P11: 9052 | Q11: 9137 | R11: Y | S11: 2657.57 | T11: 2657.57 | U11: 0
A12: POL | B12: Baltic Sea (ICES areas III b-d) | C12: ICES | D12: 22-32 | E12: 2016-2018 | F12: GNS_DEF_>=157_0_0 | G12: DEF | H12: 110 | I12: 946.33 | J12: 978.67 | K12: 267.19 | L12: 267.19 | M12: 0 | O12: 103 | P12: 1300 | Q12: 1327 | R12: Y | S12: 235.51 | T12: 235.51 | U12: 0
A13: POL | B13: Baltic Sea (ICES areas III b-d) | C13: ICES | D13: 22-32 | E13: 2016-2018 | F13: GNS_FWS_>0_0_0 | G13: FWS | H13: 280.33 | I13: 10763.33 | J13: 10764.33 | K13: 1249.21 | L13: 1249.21 | M13: 0 | O13: 314 | P13: 8267 | Q13: 8267 | R13: Y | S13: 880.16 | T13: 880.16 | U13: 0
A14: POL | B14: Baltic Sea (ICES areas III b-d) | C14: ICES | D14: 22-32 | E14: 2016-2018 | F14: GNS_SPF_32-109_0_0 | G14: SPF | H14: 226.33 | I14: 2705 | J14: 2707.33 | K14: 1301.48 | L14: 1301.48 | M14: 0 | O14: 222 | P14: 2227 | Q14: 2227 | R14: Y | S14: 924.99 | T14: 924.99 | U14: 0
A15: POL | B15: Baltic Sea (ICES areas III b-d) | C15: ICES | D15: 22-32 | E15: 2016-2018 | F15: LLD_ANA_0_0_0 | G15: ANA | H15: 58.33 | I15: 463.67 | J15: 856.33 | K15: 121.65 | L15: 121.65 | M15: 0 | O15: 54 | P15: 242 | Q15: 403 | R15: Y | S15: 27.89 | T15: 27.89 | U15: 0
A16: POL | B16: Baltic Sea (ICES areas III b-d) | C16: ICES | D16: 22-32 | E16: 2016-2018 | F16: LLD_SPF_0_0_0 | G16: SPF | H16: 0.67 | I16: 0.67 | J16: 0.67 | K16: 13.33 | L16: 0 | M16: 13.33 | O16: 1 | P16: 4 | Q16: 4 | R16: Y | S16: 0.55 | T16: 0.55 | U16: 0
A17: POL | B17: Baltic Sea (ICES areas III b-d) | C17: ICES | D17: 22-32 | E17: 2016-2018 | F17: LLS_CAT_0_0_0 | G17: CAT | H17: 45.33 | I17: 344 | J17: 344.33 | K17: 2.67 | L17: 2.67 | M17: 0 | O17: 14 | P17: 111 | Q17: 111 | R17: Y | S17: 0.75 | T17: 0.75 | U17: 0
A18: POL | B18: Baltic Sea (ICES areas III b-d) | C18: ICES | D18: 22-32 | E18: 2016-2018 | F18: LLS_DEF_0_0_0 | G18: DEF | H18: 80 | I18: 854 | J18: 895 | K18: 390.63 | L18: 390.63 | M18: 0 | O18: 6 | P18: 18 | Q18: 18 | R18: Y | S18: 1.38 | T18: 1.38 | U18: 0
A19: POL | B19: Baltic Sea (ICES areas III b-d) | C19: ICES | D19: 22-32 | E19: 2016-2018 | F19: LLS_FWS_0_0_0 | G19: FWS | H19: 5.33 | I19: 31.33 | J19: 31.33 | K19: 0.91 | L19: 0.91 | M19: 0 | O19: 1 | P19: 2 | Q19: 2 | R19: Y | S19: 0.02 | T19: 0.02 | U19: 0
A20: POL | B20: Baltic Sea (ICES areas III b-d) | C20: ICES | D20: 22-32 | E20: 2016-2018 | F20: LLS_SPF_0_0_0 | G20: SPF | H20: 0.67 | I20: 0.67 | J20: 0.67 | K20: 0.1 | L20: 0.1 | M20: 0 | O20: 1 | P20: 1 | Q20: 1 | R20: Y | S20: 0.02 | T20: 0.02 | U20: 0
A21: POL | B21: Baltic Sea (ICES areas III b-d) | C21: ICES | D21: 22-32 | E21: 2016-2018 | F21: OTB_DEF_<16_0_0 | G21: DEF | H21: 4.33 | I21: 9.67 | J21: 14.67 | K21: 31.69 | L21: 30.6 | M21: 1.09 | O21: 3 | P21: 4 | Q21: 4 | R21: Y | S21: 34.35 | T21: 34.35 | U21: 0
A22: POL | B22: Baltic Sea (ICES areas III b-d) | C22: ICES | D22: 22-32 | E22: 2016-2018 | F22: OTB_DEF_>=105_1_120 | G22: DEF | H22: 129 | I22: 3623 | J22: 6538.33 | K22: 14978.03 | L22: 14938.9 | M22: 39.13 | O22: 74 | P22: 1208 | Q22: 2182 | R22: Y | S22: 5351.68 | T22: 5298.95 | U22: 52.73
A23: POL | B23: Baltic Sea (ICES areas III b-d) | C23: ICES | D23: 22-32 | E23: 2016-2018 | F23: OTB_FWS_>0_0_0 | G23: FWS | H23: 19.67 | I23: 325 | J23: 413.67 | K23: 114.04 | L23: 114.04 | M23: 0 | O23: 17 | P23: 241 | Q23: 321 | R23: Y | S23: 58.02 | T23: 58.02 | U23: 0
A24: POL | B24: Baltic Sea (ICES areas III b-d) | C24: ICES | D24: 22-32 | E24: 2016-2018 | F24: OTB_SPF_16-31_0_0 | G24: SPF | H24: 10.67 | I24: 30.33 | J24: 35 | K24: 272.71 | L24: 239.42 | M24: 33.29 | O24: 11 | P24: 27 | Q24: 27 | R24: Y | S24: 277.75 | T24: 205.2 | U24: 72.55
A25: POL | B25: Baltic Sea (ICES areas III b-d) | C25: ICES | D25: 22-32 | E25: 2016-2018 | F25: OTB_SPF_32-104_0_0 | G25: SPF | H25: 13.67 | I25: 84 | J25: 104.33 | K25: 170.92 | L25: 157.59 | M25: 13.33 | O25: 17 | P25: 54 | Q25: 61 | R25: Y | S25: 267.83 | T25: 205.9 | U25: 61.93
A26: POL | B26: Baltic Sea (ICES areas III b-d) | C26: ICES | D26: 22-32 | E26: 2016-2018 | F26: OTM_DEF_<16_0_0 | G26: DEF | H26: 26 | I26: 216.67 | J26: 267.67 | K26: 2722.81 | L26: 2328.4 | M26: 394.41 | O26: 46 | P26: 506 | Q26: 625 | R26: Y | S26: 10803.91 | T26: 10296.41 | U26: 507.5
A27: POL | B27: Baltic Sea (ICES areas III b-d) | C27: ICES | D27: 22-32 | E27: 2016-2018 | F27: OTM_SPF_16-104_0_0 | G27: SPF | H27: 4 | I27: 68.67 | J27: 87.67 | K27: 3816.6 | L27: 577.97 | M27: 3238.63 | O27: 3 | P27: 126 | Q27: 137 | R27: Y | S27: 2487.93 | T27: 37 | U27: 2450.93
A28: POL | B28: Baltic Sea (ICES areas III b-d) | C28: ICES | D28: 22-32 | E28: 2016-2018 | F28: OTM_SPF_16-31_0_0 | G28: SPF | H28: 98.33 | I28: 3388.33 | J28: 4188.33 | K28: 77149.54 | L28: 57866.73 | M28: 19282.81 | O28: 111 | P28: 3708 | Q28: 4549 | R28: Y | S28: 84793.67 | T28: 70439.02 | U28: 14354.65
A29: POL | B29: Baltic Sea (ICES areas III b-d) | C29: ICES | D29: 22-32 | E29: 2016-2018 | F29: OTM_SPF_32-104_0_0 | G29: SPF | H29: 80.67 | I29: 1843.67 | J29: 2738 | K29: 28505.28 | L29: 25229.38 | M29: 3275.9 | O29: 91 | P29: 1340 | Q29: 1888 | R29: Y | S29: 18853.71 | T29: 18005.95 | U29: 847.76
A30: POL | B30: Baltic Sea (ICES areas III b-d) | C30: ICES | D30: 22-32 | E30: 2016-2018 | F30: PTB_DEF_>=105_1_120 | G30: DEF | H30: 0.67 | I30: 0.67 | J30: 0.67 | K30: 1.52 | L30: 1.52 | M30: 0 | O30: 2 | P30: 4 | Q30: 4 | R30: Y | S30: 39.5 | T30: 39.5 | U30: 0
A31: POL | B31: Baltic Sea (ICES areas III b-d) | C31: ICES | D31: 22-32 | E31: 2016-2018 | F31: PTB_SPF_16-31_0_0 | G31: SPF | H31: 2.67 | I31: 54.67 | J31: 54.67 | K31: 232.13 | L31: 232.13 | M31: 0 | O31: 0 | P31: 0 | Q31: 0 | R31: Y | S31: 0 | T31: 0 | U31: 0
A32: POL | B32: Baltic Sea (ICES areas III b-d) | C32: ICES | D32: 22-32 | E32: 2016-2018 | F32: PTB_SPF_32-104_0_0 | G32: SPF | H32: 1.33 | I32: 4.67 | J32: 4.67 | K32: 21.67 | L32: 21.67 | M32: 0 | O32: 0 | P32: 0 | Q32: 0 | R32: Y | S32: 0 | T32: 0 | U32: 0
A33: POL | B33: Baltic Sea (ICES areas III b-d) | C33: ICES | D33: 22-32 | E33: 2016-2018 | F33: PTM_SPF_16-31_0_0 | G33: SPF | H33: 14 | I33: 460 | J33: 463 | K33: 4284.07 | L33: 4284.07 | M33: 0 | O33: 10 | P33: 300 | Q33: 300 | R33: Y | S33: 2930.59 | T33: 2925.79 | U33: 4.8
A34: POL | B34: Baltic Sea (ICES areas III b-d) | C34: ICES | D34: 22-32 | E34: 2016-2018 | F34: PTM_SPF_32-104_0_0 | G34: SPF | H34: 5.33 | I34: 27.33 | J34: 38.33 | K34: 158.49 | L34: 158.49 | M34: 0 | O34: 3 | P34: 5 | Q34: 5 | R34: Y | S34: 120 | T34: 120 | U34: 0
A35: POL | B35: Baltic Sea (ICES areas III b-d) | C35: ICES | D35: 22-32 | E35: 2016-2018 | F35: LLS_ANA_0_0_0 | G35: ANA | H35: 1.33 | I35: 4 | J35: 4.67 | K35: 0.33 | L35: 0.33 | M35: 0 | O35: 6 | P35: 12 | Q35: 12 | R35: Y | S35: 0.57 | T35: 0.57 | U35: 0
A36: POL | B36: Baltic Sea (ICES areas III b-d) | C36: ICES | D36: 22-32 | E36: 2016-2018 | F36: PTB_SPF_>=105_1_120 | G36: SPF | H36: 0.33 | I36: 0.33 | J36: 0.33 | K36: 2 | L36: 2 | M36: 0 | O36: 0 | P36: 0 | Q36: 0 | R36: Y | S36: 0 | T36: 0 | U36: 0
A37: POL | B37: North Sea (ICES areas IIIa and IV), Eastern Arctic (ICES areas I and II) | C37: ICES | D37: I, II, IV | E37: 2016-2018 | F37: OTB_DEF_>=120_0_0 | G37: DEF | H37: 1.33 | I37: 4.33 | J37: 176 | K37: 5073.49 | L37: 0 | M37: 5073.49 | O37: 1 | P37: 2 | Q37: 31 | R37: Y | S37: 1064.17 | T37: 0 | U37: 1064.17
A38: POL | B38: North Sea (ICES areas IIIa and IV), Eastern Arctic (ICES areas I and II) | C38: ICES | D38: I, II, IV | E38: 2016-2018 | F38: OTM_DEF_100-119_0_0 | G38: DEF | H38: 0.67 | I38: 0.67 | J38: 3 | K38: 42.98 | L38: 0 | M38: 42.98 | O38: 0 | P38: 0 | Q38: 0 | R38: Y | S38: 0 | T38: 0 | U38: 0
A39: POL | B39: North Sea (ICES areas IIIa and IV), Eastern Arctic (ICES areas I and II) | C39: ICES | D39: I, II, IV | E39: 2016-2018 | F39: OTM_SPF_32-69_0_0 | G39: SPF | H39: 0.67 | I39: 1 | J39: 7.67 | K39: 1815.91 | L39: 0 | M39: 1815.91 | O39: 1 | P39: 2 | Q39: 15 | R39: N | S39: 2772.57 | T39: 0 | U39: 2772.57
A40: POL | B40: North Sea (ICES areas IIIa and IV), Eastern Arctic (ICES areas I and II) | C40: ICES | D40: I, II, IV | E40: 2016-2018 | F40: FPO_CRU_>0_0_0 | G40: CRU | H40: 0.33 | I40: 8.67 | J40: 20 | K40: 68.89 | L40: 0 | M40: 68.89 | O40: 1 | P40: 20 | Q40: 45 | R40: N | S40: 220.28 | T40: 3.25 | U40: 217.03
A41: POL | B41: North-Western waters (ICES areas Vb (only Union waters), VI and VII) | C41: ICES | D41: V, VI, VII | E41: 2016-2018 | F41: OTM_SPF_32-69_0_0 | G41: SPF | H41: 0.67 | I41: 4.67 | J41: 24.33 | K41: 9232.32 | L41: 0 | M41: 9232.32 | O41: 1 | P41: 12 | Q41: 143 | R41: N | S41: 52814.22 | T41: 0 | U41: 52814.22
A42: POL | B42: Other regions | C42: CECAF | D42: 34.1.3, 34.3.1 | E42: 2016-2018 | F42: OTM_SPF_>=40_0_0 | G42: SPF | H42: 1.33 | I42: 9.33 | J42: 164.67 | K42: 14343.31 | L42: 0 | M42: 14343.31 | O42: 1 | P42: 2 | Q42: 62 | R42: Y | S42: 3004.96 | T42: 0 | U42: 3004.96
A43: POL | B43: Other regions | C43: SPRFMO | D43: SPRFMO Convention Area | E43: 2016-2018 | F43: OTM_SPF_>=40_0_0 | G43: SPF | H43: 0.33 | I43: 2 | J43: 13 | K43: 916.88 | L43: 0 | M43: 916.88 | O43: 0 | P43: 0 | Q43: 0 | R43: Y | S43: 0 | T43: 0 | U43: 0 | V43: No EU fishing activity in SPRFMO area.
A44: POL | B44: NA | C44: NA | D44: 47 | E44: 2016-2018 | F44: OTM_SPF_>=40_0_0 | G44: SPF | H44: 1.33 | I44: 14.67 | J44: 189 | K44: =L44+M44 -> 28423.57 | L44: 0 | M44: 28423.57 | N44: one pelagic trawler fishing inside EEZ of Namibia | O44: 0 | P44: 0 | Q44: 0 | R44: N | S44: 0 | T44: 0 | U44: 0
A45: POL | B45: North Sea (ICES areas IIIa and IV), Eastern Arctic (ICES areas I and II) | C45: ICES | D45: I, II, IV | E45: 2016-2018 | F45: OTB_CRU_32-69_0_0 | G45: CRU | H45: 0 | I45: 0 | J45: 0 | K45: 0 | L45: 0 | M45: 0 | O45: 1 | P45: 4 | Q45: 183 | R45: Y | S45: 1855 | T45: 0 | U45: 1855 | V45: New row. Metier not present in the reference period.
A46: POL | B46: Baltic Sea (ICES areas III b-d) | C46: ICES | D46: 22-32 | E46: 2016-2018 | F46: LHP_FIF_0_0_0 | G46: FIF | H46: 0 | I46: 0 | J46: 0 | K46: 0 | L46: 0 | M46: 0 | O46: 1 | P46: 32 | Q46: 32 | R46: Y | S46: 0.08 | T46: 0.08 | U46: 0 | V46: New row. Metier not present in the reference period.

Sheet Table4D Landing locations
A1: Table 4D: Landing locations
J2: WP years | K2: 2020-2021
J3: AR year | K3: 2020
A4: MS | B4: Region | C4: Sub-area / Fishing ground | D4: Reference years | E4: Landing locations(s) | F4: Average number of locations | G4: Average number of registered landings | H4: Average landed tonnage | I4: Average landed tonnage of national fleet | J4: Average landed tonnage of foreign fleet | K4: Comments
A5: POL | B5: Baltic Sea (ICES areas III b-d) | C5: 22-32 | D5: 2016-2018 | E5: Major ports | F5: 8 | G5: 19237 | H5: =I5+J5 -> 113188.217 | I5: 109902.1153 | J5: 3286.10176
A6: POL | B6: Baltic Sea (ICES areas III b-d) | C6: 22-32 | D6: 2016-2018 | E6: Other ports SD 24 | F6: 3 | G6: 536.3333333 | H6: =I6+J6 -> 221.3840067 | I6: 221.3840067 | J6: 0
A7: POL | B7: Baltic Sea (ICES areas III b-d) | C7: 22-32 | D7: 2016-2018 | E7: Other ports SD 25 | F7: 11 | G7: 5016.333333 | H7: 1931.077427 | I7: 1931.077427 | J7: 0
A8: POL | B8: Baltic Sea (ICES areas III b-d) | C8: 22-32 | D8: 2016-2018 | E8: Other ports SD 26 | F8: 28 | G8: 12163.33333 | H8: 1339.633153 | I8: 1339.633153 | J8: 0
A9: POL | B9: Baltic Sea (ICES areas III b-d) | C9: 22-32 | D9: 2016-2018 | E9: Szczecin Lagoon ports | F9: 7 | G9: 6930.666667 | H9: 1676.638267 | I9: 1676.638267 | J9: 0
A10: POL | B10: Baltic Sea (ICES areas III b-d) | C10: 22-32 | D10: 2016-2018 | E10: Vistula Lagoon ports | F10: 9 | G10: 8177.666667 | H10: 2161.757983 | I10: 2161.757983 | J10: 0

Sheet Table5A Quality assurance frame
A1: Table 5A: Quality assurance framework for biological data
S2: WP years | T2: 2020-2021
S3: AR year | T3: 2020
H4: Sampling design | J4: Sampling implementation | K4: Data capture | M4: Data Storage | O4: Data processing
A5: MS | B5: MS participating in sampling | C5: Sampling year/ period | D5: Region | E5: RFMO/RFO/IO | F5: Name of sampling scheme | G5: Sampling frame | H5: Is the sampling design documented? | I5: Where can documentation on sampling design be found? | J5: Are non-responses and refusals recorded? | K5: Are quality checks to validate detailed data documented? | L5: Where can documentation on quality checks for data capture be found? | M5: In which national database are data stored? | N5: In which international database(s) are data stored? | O5: Are processes to evaluate data accuracy (bias and precision) documented? | P5: Where can documentation on processes to evaluate accuracy be found? | Q5: Are the editing and imputation methods documented? | R5: Where can documentation on editing and imputation be found? | S5: Comments | T5: AR Comments
A6: POL | B6: POL | C6: 2020-2021 | D6: Baltic Sea (ICES areas III b-d) | E6: ICES | F6: Baltic at sea and on shore | G6: List of 508 vessels under 10 meters in length | H6: Y | I6: SamplingDesign_2020-2021.doc (http://dcf.mir.gdynia.pl/?page_id=367) | J6: Y | K6: Y | L6: DataQualityCheck_Description.doc (http://dcf.mir.gdynia.pl/?page_id=367) | M6: NPZDRpl | N6: RDB-FishFrame, Intercatch, JRC | O6: Y | P6: Included in the Data Accuracy Check application - accessible only via intranet | Q6: N | R6: NA | S6: Software for data accuracy checks is still under development. | T6: Software for data accuracy checks has been launched, and is still under development with the new features. The model and assumptions of the data accuracy checks software have been specified in 2019 and in 2020 it was adjusted to the new sampling design. The new features are still being developed and the information about possible accuracy checks is currently being collected from the available literature. Throught the last year, the outcomes of WKBIOPTIM have been analysed and will be implemented in the nearest future. Moreover data quality check software is still being developed by adding new features to it. Imputation is not performed at national level but at Stock Data Coordination level. Data are provided to end user "as-is" (as collected, validated and recorded in national database).
A7: POL | B7: POL | C7: 2020-2021 | D7: Baltic Sea (ICES areas III b-d) | E7: ICES | F7: Baltic at sea and on shore | G7: List of 114 vessels between 10 and 12 meters in length | H7: Y | I7: SamplingDesign_2020-2021.doc (http://dcf.mir.gdynia.pl/?page_id=367) | J7: Y | K7: Y | L7: DataQualityCheck_Description.doc (http://dcf.mir.gdynia.pl/?page_id=367) | M7: NPZDRpl | N7: RDB-FishFrame, Intercatch, JRC | O7: Y | P7: Included in the Data Accuracy Check application - accessible only via intranet | Q7: N | R7: NA | S7: Software for data accuracy checks is still under development. | T7: Software for data accuracy checks has been launched, and is still under development with the new features. The model and assumptions of the data accuracy checks software have been specified in 2019 and in 2020 it was adjusted to the new sampling design. The new features are still being developed and the information about possible accuracy checks is currently being collected from the available literature. Throught the last year, the outcomes of WKBIOPTIM have been analysed and will be implemented in the nearest future. Moreover data quality check software is still being developed by adding new features to it. Imputation is not performed at national level but at Stock Data Coordination level. Data are provided to end user "as-is" (as collected, validated and recorded in national database).
A8: POL | B8: POL | C8: 2020-2021 | D8: Baltic Sea (ICES areas III b-d) | E8: ICES | F8: Baltic at sea and on shore | G8: List of 52 vessels between 12 and 18 meters in length | H8: Y | I8: SamplingDesign_2020-2021.doc (http://dcf.mir.gdynia.pl/?page_id=367) | J8: Y | K8: Y | L8: DataQualityCheck_Description.doc (http://dcf.mir.gdynia.pl/?page_id=367) | M8: NPZDRpl | N8: RDB-FishFrame, Intercatch, JRC | O8: Y | P8: Included in the Data Accuracy Check application - accessible only via intranet | Q8: N | R8: NA | S8: Software for data accuracy checks is still under development. | T8: The model and assumptions of the data accuracy checks software have been specified in 2019 and in 2020 it was adjusted to the new sampling design. The new features are still being developed and the information about possible accuracy checks is currently being collected from the available literature. Throught the last year, the outcomes of WKBIOPTIM have been analysed and will be implemented in the nearest future. Moreover data quality check software is still being developed by adding new features to it. Imputation is not performed at national level but at Stock Data Coordination level. Data are provided to end user "as-is" (as collected, validated and recorded in national database).
A9: POL | B9: POL | C9: 2020-2021 | D9: Baltic Sea (ICES areas III b-d) | E9: ICES | F9: Baltic at sea and on shore | G9: List of 55 vessels between 18 and 24 meters in length | H9: Y | I9: SamplingDesign_2020-2021.doc (http://dcf.mir.gdynia.pl/?page_id=367) | J9: Y | K9: Y | L9: DataQualityCheck_Description.doc (http://dcf.mir.gdynia.pl/?page_id=367) | M9: NPZDRpl | N9: RDB-FishFrame, Intercatch, JRC | O9: Y | P9: Included in the Data Accuracy Check application - accessible only via intranet | Q9: N | R9: NA | S9: Software for data accuracy checks is still under development. | T9: Software for data accuracy checks has been launched, and is still under development with the new features. The model and assumptions of the data accuracy checks software have been specified in 2019 and in 2020 it was adjusted to the new sampling design. The new features are still being developed and the information about possible accuracy checks is currently being collected from the available literature. Throught the last year, the outcomes of WKBIOPTIM have been analysed and will be implemented in the nearest future. Moreover data quality check software is still being developed by adding new features to it. Imputation is not performed at national level but at Stock Data Coordination level. Data are provided to end user "as-is" (as collected, validated and recorded in national database).
A10: POL | B10: POL | C10: 2020-2021 | D10: Baltic Sea (ICES areas III b-d) | E10: ICES | F10: Baltic at sea and on shore | G10: List of 46 vessels between 24 and 40 meters in length | H10: Y | I10: SamplingDesign_2020-2021.doc (http://dcf.mir.gdynia.pl/?page_id=367) | J10: Y | K10: Y | L10: DataQualityCheck_Description.doc (http://dcf.mir.gdynia.pl/?page_id=367) | M10: NPZDRpl | N10: RDB-FishFrame, Intercatch, JRC | O10: Y | P10: Included in the Data Accuracy Check application - accessible only via intranet | Q10: N | R10: NA | S10: Software for data accuracy checks is still under development. | T10: Software for data accuracy checks has been launched, and is still under development with the new features. The model and assumptions of the data accuracy checks software have been specified in 2019 and in 2020 it was adjusted to the new sampling design. The new features are still being developed and the information about possible accuracy checks is currently being collected from the available literature. Throught the last year, the outcomes of WKBIOPTIM have been analysed and will be implemented in the nearest future. Moreover data quality check software is still being developed by adding new features to it. Imputation is not performed at national level but at Stock Data Coordination level. Data are provided to end user "as-is" (as collected, validated and recorded in national database).
A11: POL | B11: POL | C11: 2020-2021 | D11: North Sea (ICES areas IIIa and IV), Eastern Arctic (ICES areas I and II) | E11: ICES | F11: North Sea and Eastern Arctic at sea | G11: 1 trawler targeting cod | H11: Y | I11: "DCF – Sampling Design and Plan description – Demersal – NS&EA.pdf" (https://dcf.mir.gdynia.pl/?page_id=367) | J11: N | K11: Y | L11: DataQualityCheck_Description.doc (http://dcf.mir.gdynia.pl/?page_id=367) | M11: NPZDRpl | N11: RDB-FishFrame, Intercatch, JRC | O11: Y | P11: Included in the Data Accuracy Check application - accessible only via intranet | Q11: N | R11: NA | S11: Software for data accuracy checks is still under development. | T11: Software for data accuracy checks has been launched, and is still under development with the new features. The model and assumptions of the data accuracy checks software have been specified in 2019 and in 2020 it was adjusted to the new sampling design. The new features are still being developed and the information about possible accuracy checks is currently being collected from the available literature. Throught the last year, the outcomes of WKBIOPTIM have been analysed and will be implemented in the nearest future. Moreover data quality check software is still being developed by adding new features to it. Imputation is not performed at national level but at Stock Data Coordination level. Data are provided to end user "as-is" (as collected, validated and recorded in national database).
A12: POL | B12: POL | C12: 2020-2021 | D12: Other regions | E12: CECAF | F12: Other fishing regions at sea | G12: Pelagic trawlers fishing in CECAF | H12: Y | I12: "Biological Data Collection of pelagic fisheries in CECAF waters " at: http://dcf.mir.gdynia.pl/?page_id=367 | J12: NA | K12: Y | L12: DataQualityCheck_Description.doc (http://dcf.mir.gdynia.pl/?page_id=367) | M12: NA | N12: NA | O12: NA | P12: NA | Q12: NA | R12: NA | S12: Software for data accuracy checks is still under development. | T12: Error in kolumn "B" of WP - correct entry shall be: DEU - LTU - LVA - NLD - POL. Software for data accuracy checks has been launched, and is still under development with the new features. The model and assumptions of the data accuracy checks software have been specified in 2020. The environment has been set up and the first type of a check has been implemented. The new features are still being developed. Data collection coordinated and executed by POL and data provision executed by NLD under joint sampling programme based on multilateral agreement (see Table 7C). Data collected in CECAF area transferred to NLD for processing, further quality checks and transmission to CECAF WG. Data are also being converted into the national database format.
A13: POL | B13: POL | C13: 2020-2021 | D13: Other regions | E13: SPRFMO | F13: Other fishing regions at sea | G13: Pelagic trawlers fishing in SPRFMO | H13: Y | I13: SPRFMO Observer Programme (COM 16-2018), SPRFMO Data Standards (COM 02-2018) at: https://www.sprfmo.int/measures/superseded-cmms/ | J13: NA | K13: Y | L13: SPRFMO_data_quality_assurance.pdf (http://dcf.mir.gdynia.pl/?page_id=367) | M13: Temporary database in Excel | N13: Internal SPRFMO database | O13: Y | P13: Included in the Data Accuracy Check application - accessible only via intranet | Q13: N | R13: NA | S13: Software for data accuracy checks is still under development. | T13: Error in kolumn "B" of WP - correct entry shall be: DEU - LTU - NLD - POL. Software for data accuracy checks has been launched, and is still under development with the new features. The model and assumptions of the data accuracy checks software have been specified in 2020. The environment has been set up and the first type of a check has been implemented. The new features are still being developed and the information about possible accuracy checks is currently being collected from the available literature. Non-responses and refusal are not applicable for the SPRMFO area. Data quality checks documented and available at the Polish DCF website. Imputation is not performed at national level. Data delivered to the SPRFMO Secretariat and Scientific Committee. National database during modification to enable storage of data from SPRFMO. Data collection and provision coordinated by POL under joint sampling programme based on multilateral agreement (see Table 7C).
A14: POL | B14: POL | C14: 2020-2021 | D14: Baltic Sea (ICES Subdivisions 22-32) | E14: ICES | F14: National estimates of numbers of trips &number of anglers & onsite surveys of catch per unit effort & of catch composition | G14: NA | H14: Y | I14: Sampling Plan – cod recreational – POL DCF.PDF (http://dcf.mir.gdynia.pl/?page_id=367) | J14: Y | K14: Y | L14: DataQualityCheck_Description.doc (http://dcf.mir.gdynia.pl/?page_id=367) | M14: NPZDRpl, Temporary database in Excel | N14: WGRFS | O14: N | P14: NA | Q14: N | R14: NA | S14: Software for data accuracy checks is still under development. | T14: Biological data of this sampling scheme have been subjected to quality control, defined in DataQualityCheck_Description.doc. Data quality checks have been specified in 2020. Data quality check software is still being developed by adding new features to it. Types of accuracy checks for recreational fishery have not been identified. Imputation is not performed at national level. Data delivered to the ICES WGRFS. See Text Box 1D for comments. | AD14: Software for data accuracy checks is still under development.
A15: POL | B15: POL | C15: 2020-2021 | D15: Inland waters | E15: ICES | F15: Anglers registers verified and modified by in situ questionnaires. | G15: NA | H15: Y | I15: SamplingDesign_diad_Inland.pdf (http://dcf.mir.gdynia.pl/?page_id=367) | J15: Y | K15: N | L15: NA | M15: Temporary database in Excel | N15: WGBAST database | O15: N | P15: NA | Q15: N | R15: NA | S15: Software for data quality and accuracy checks is still under development. | T15: Revised sampling design documented. Imputation is not performed at national level. Data delivered to the ICES WGBAST. See Text Box 1D for comments.
A16: POL | B16: POL | C16: 2020-2021 | D16: Baltic Sea (ICES Subdivisions 22-32) | E16: ICES | F16: National estimates of numbers of trips; remote CCTV cameras in ports, on-site surveys; annual off-site surveys; catch per unit effort; catch composition. | G16: NA | H16: Y | I16: Sampling Plan – Marine recreational fisheries for Diadromous species.PDF (http://dcf.mir.gdynia.pl/?page_id=367) | J16: Y | K16: N | L16: NA | M16: Temporary database in Excel | N16: WGBAST database | O16: N | P16: NA | Q16: N | R16: NA | S16: Software for data quality and accuracy checks is still under development. | T16: Revised sampling design documented. Imputation is not performed at national level. Data delivered to the ICES WGBAST
A17: POL | B17: POL | C17: 2020-2021 | D17: Baltic Sea (ICES Subdivisions 22-32) | E17: ICES | F17: On-site surveys; off-site surveys; estimates of catch size; catch composition. | G17: NA | H17: Y | I17: Sampling Plan – Marine recreational fisheries for Diadromous species.PDF (http://dcf.mir.gdynia.pl/?page_id=367) | J17: Y | K17: N | L17: NA | M17: Temporary database in Excel | N17: WGBAST database | O17: N | P17: NA | Q17: N | R17: NA | S17: Software for data quality and accuracy checks is still under development. | T17: Revised sampling design documented. Imputation is not performed at national level. Data delivered to the ICES WGBAST
A18: POL | B18: POL | C18: 2020-2021 | D18: Baltic Sea (ICES Subdivisions 22-32) | E18: ICES | F18: Off-site surveys; estimates of catch size; catch composition. | G18: NA | H18: Y | I18: Sampling Plan – Marine recreational fisheries for Diadromous species.PDF (http://dcf.mir.gdynia.pl/?page_id=367) | J18: Y | K18: N | L18: NA | M18: Temporary database in Excel | N18: WGEEL database | O18: N | P18: NA | Q18: N | R18: NA | S18: Software for data quality and accuracy checks is still under development. | T18: Revised sampling design documented. Imputation is not performed at national level. Data delivered to the ICES WGEEL
A19: POL | B19: POL | C19: 2020-2021 | D19: ODER EMU | E19: ICES | F19: Anguilla anguilla*sampling | G19: NA | H19: Y | I19: SamplingDesign_diad_Inland.pdf (http://dcf.mir.gdynia.pl/?page_id=367) | J19: NA | K19: N | L19: NA | M19: Temporary database in Excel | N19: WGEEL database | O19: N | P19: NA | Q19: N | R19: NA | S19: Software for data quality and accuracy checks is still under development. | T19: Revised sampling design documented. Imputation is not performed at national level. Data delivered to the ICES WGEEL
A20: POL | B20: POL | C20: 2020-2021 | D20: VISTULA EMU | E20: ICES | F20: Anguilla anguilla*sampling | G20: NA | H20: Y | I20: SamplingDesign_diad_Inland.pdf (http://dcf.mir.gdynia.pl/?page_id=367) | J20: NA | K20: N | L20: NA | M20: Temporary database in Excel | N20: WGEEL database | O20: N | P20: NA | Q20: N | R20: NA | S20: Software for data quality and accuracy checks is still under development. | T20: Revised sampling design documented. Imputation is not performed at national level. Data delivered to the ICES WGEEL
A21: POL | B21: POL | C21: 2020-2021 | D21: ODER EMU | E21: ICES | F21: Anguilla anguilla*trap | G21: NA | H21: Y | I21: SamplingDesign_diad_Inland.pdf (http://dcf.mir.gdynia.pl/?page_id=367) | J21: NA | K21: N | L21: NA | M21: Temporary database in Excel | N21: WGEEL database | O21: N | P21: NA | Q21: N | R21: NA | S21: Software for data quality and accuracy checks is still under development. | T21: Revised sampling design documented. Imputation is not performed at national level. Data delivered to the ICES WGEEL
A22: POL | B22: POL | C22: 2020-2021 | D22: VISTULA EMU | E22: ICES | F22: Anguilla anguilla*trap | G22: NA | H22: Y | I22: SamplingDesign_diad_Inland.pdf (http://dcf.mir.gdynia.pl/?page_id=367) | J22: NA | K22: N | L22: NA | M22: Temporary database in Excel | N22: WGEEL database | O22: N | P22: NA | Q22: N | R22: NA | S22: Software for data quality and accuracy checks is still under development. | T22: Revised sampling design documented. Imputation is not performed at national level. Data delivered to the ICES WGEEL
A23: POL | B23: POL | C23: 2020-2021 | D23: ODER EMU | E23: ICES | F23: Anguilla anguilla*trap,eel ladder | G23: NA | H23: Y | I23: SamplingDesign_diad_Inland.pdf (http://dcf.mir.gdynia.pl/?page_id=367) | J23: NA | K23: N | L23: NA | M23: Temporary database in Excel | N23: WGEEL database | O23: N | P23: NA | Q23: N | R23: NA | S23: Software for data quality and accuracy checks is still under development. | T23: Revised sampling design documented. Imputation is not performed at national level. Data delivered to the ICES WGEEL
A24: POL | B24: POL | C24: 2020-2021 | D24: Inland waters | E24: ICES | F24: Salmo trutta*sampling | G24: NA | H24: Y | I24: SamplingDesign_diad_Inland.pdf (http://dcf.mir.gdynia.pl/?page_id=367) | J24: NA | K24: N | L24: NA | M24: Temporary database in Excel | N24: WGBAST database | O24: N | P24: NA | Q24: N | R24: NA | S24: Software for data quality and accuracy checks is still under development. | T24: Revised sampling design documented. Imputation is not performed at national level. Data delivered to the ICES WGBAST
A25: POL | B25: POL | C25: 2020-2021 | D25: Inland waters | E25: ICES | F25: Salmo trutta*electrofishing | G25: NA | H25: Y | I25: SamplingDesign_diad_Inland.pdf (http://dcf.mir.gdynia.pl/?page_id=367) | J25: NA | K25: N | L25: NA | M25: Temporary database in Excel | N25: WGBAST database | O25: N | P25: NA | Q25: N | R25: NA | S25: Software for data quality and accuracy checks is still under development. | T25: Revised sampling design documented. The quality of electrofishing is currently being assessed by RCG Diadromous
A26: POL | B26: POL | C26: 2020-2021 | D26: Inland waters | E26: ICES | F26: Salmo trutta*counters | G26: NA | H26: Y | I26: SamplingDesign_diad_Inland.pdf (http://dcf.mir.gdynia.pl/?page_id=367) | J26: NA | K26: N | L26: NA | M26: Temporary database in Excel | N26: WGBAST database | O26: N | P26: NA | Q26: N | R26: NA | S26: Software for data quality and accuracy checks is still under development. | T26: Revised sampling design documented. Imputation is not performed at national level. Data delivered to the ICES WGBAST

Sheet Table5B Quality assurance frame
A1: Table 5B: Quality assurance framework for socio-economic data
AF2: WP years | AG2: 2020-2021
AF3: AR year | AG3: 2020
H4: Institutional environment | M4: Statistical processes | W4: Statistical Outputs
H5: P3 Impartiality and objectiveness | J5: P4 Confidentiality | M5: P5 Sound methodology | P5: P6 Appropriate statistical procedures | U5: P7 Non-excessive burden on respondents | V5: P8 Cost effectiveness | W5: P9 Relevance | X5: P10 Accuracy and reliability | Z5: P11 Timeliness and punctuality | AA5: P12 coherence and comparability | AC5: P13 Accessibility and Clarity | AF5: Comments | AG5: AR Comments
A6: MS | B6: Sector Name | C6: Sampling year/ period | D6: Region | E6: RFMO/RFO/IO/NSB | F6: Type of data collection scheme | G6: Data Sources | H6: Statistically sound sources and methods | I6: Error checking | J6: Are procedures for confidential data handling in place and documented? | K6: Are protocols to enforce confidentiality between DCF partners in place and documented? | L6: Are protocols to enforce confidentiality with external users in place and documented? | M6: Is sound methodology documented ? | N6: Does it follow international standards, guidelines and best practices? | O6: Are methodologies consistent at MS, regional and EU level? | P6: Is there consistency between administrative and other statistical data? | Q6: Are there agreements for access and quality of administrative data between partners? | R6: Are data collection, entry and coding checked? | S6: Are editing and imputation methods used and checked? | T6: Are revisions documented and available? | U6: Is duplication of data collection avoided? | V6: Do automatic techniques for data capture, data coding and validation exist? | W6: Are end-users listed and updated? | X6: Are sources, intermediate results and outputs regularly assessed and validated? | Y6: Are errors measured and documented? | Z6: Are procedures in place to ensure timely execution? | AA6: Are procedures in place to monitor internal coherence? | AB6: Are statistics comparable over time? | AC6: Are methodological documents publicly available? | AD6: Are data stored in databases? | AE6: Where can documentation be found?
A7: POL | B7: Fishing, Processing | C7: 2020-2021 | D7: All regions | E7: ICES | F7: Census, estimation | G7: questionairres, logbooks, first sale documents, Fleet register | H7: Y | I7: Y | J7: Y | K7: NA | L7: NA | M7: Y | N7: Y | O7: Y | P7: Y | Q7: Y | R7: Y | S7: Y | T7: N | U7: N | V7: Y | W7: N | X7: Y | Y7: N | Z7: Y | AA7: Y | AB7: Y | AC7: Y | AD7: Y | AE7: https://dcf.mir.gdynia.pl/?page_id=367

Sheet Table6A_Data_availability
A1: Table 6A: Data availability
I2: WP years | J2: 2020-2021
I3: AR year | J3: 2020
A4: MS | B4: Data set | C4: Section | D4: Variable group | E4: Year(s) of WP implementation | F4: Reference year | G4: Final data available after | H4: Comments | I4: Date when data was available | J4: AR Comments
A5: POL | B5: Biological variables | C5: 1B | D5: all | E5: 2020-2021 | F5: N | G5: N+1, March 31 | I5: March 31, 2021 | J5: N = 2020
A6: POL | B6: Recreational Fisheries | C6: 1D | D6: all | E6: 2020-2021 | F6: N-1 | G6: N, May 31 | I6: March 31, 2021 | J6: N = 2020
A7: POL | B7: Anadromous and catadromous species | C7: 1E | D7: all | E7: 2020-2021 | F7: N | G7: N+1, March 15 | I7: March 15, 2021 | J7: N = 2020
A8: POL | B8: Incidental by-catch | C8: 1F | D8: all | E8: 2020-2021 | F8: N | G8: N+1, March 31 | I8: March 31, 2021 | J8: N = 2020
A9: POL | B9: Research surveys at sea | C9: 1H | D9: all | E9: 2020-2021 | F9: N | G9: N+1, March 31 | I9: March 31, 2021 | J9: N = 2020
A10: POL | B10: Fishing Activity Variable | C10: 2A | D10: Effort | E10: 2020-2021 | F10: N | G10: N+1, March 31 | I10: March 31, 2021 | J10: N = 2020
A11: POL | B11: Fishing Activity Variable | C11: 2A | D11: Capacity | E11: 2020-2021 | F11: N | G11: N+1, January 31 | I11: February 15, 2021 | J11: N = 2020
A12: POL | B12: Fishing Activity Variable | C12: 2A | D12: Landings | E12: 2020-2021 | F12: N | G12: N+1, March 31 | I12: March 31, 2021 | J12: N = 2020
A13: POL | B13: Fleet economic | C13: 3A | D13: Revenue/costs | E13: 2020-2021 | F13: N-1 | G13: N+1, November 30 | I13: February 15, 2021 | J13: N = 2020
A14: POL | B14: Aquaculture economic | C14: 3B | D14: NA | E14: NA | F14: NA | G14: NA | H14: Based on the data until 2017, according to classification of aquaculture activities by Eurostat statistics, Poland has no marine aquaculture sector. Hence, no sampling is planned | I14: NA
A15: POL | B15: Fish processing economic | C15: 3C | D15: all | E15: 2020-2021 | F15: N-1 | G15: N+1, November 30 | I15: February 15, 2021 | J15: N = 2020

Sheet Table7A_Planned Regional_coord
A1: Table 7A: Planned regional and international coordination
G2: WP years | H2: 2020-2021
G3: AR year | H3: 2020
A4: MS | B4: Acronym | C4: Name of meeting | D4: RFMO/RFO/IO | E4: Planned MS participation | F4: Comments | G4: Number of participants | H4: AR Comments
A5: POL | B5: RCM Baltic | C5: Regional Coordination Meeting for the Baltic Sea | E5: X | G5: 6 | H5: RCG Baltic meeting combined with RCG NANSEA meeting
A6: POL | B6: RCM NS&EA | C6: Regional Coordination Meeting for the North Sea and Eastern Arctic | E6: X | G6: 6 | H6: RCG NANSEA meeting combined with RCG Baltic meeting
A7: POL | B7: RCM LDF | C7: Regional Coordination Meeting for the Long Distance Fisheries | E7: X | G7: 2 | H7: Chair
A8: POL | B8: EGFDC | C8: Expert Group on Fisheries Data Collection | E8: X | G8: 1 | H8: five meetings (incl. LM)
A9: POL | B9: PGECON | C9: Planning Group on Economic Issues | E9: X | G9: 2 | H9: Transformed to RCG ECON
A10: POL | B10: PGDATA | C10: Planning Group on Data Needs for Assessment and Advice | D10: ICES | E10: X | G10: 0 | H10: participation not possible due to other commitments
A11: POL | B11: WGBIOP | C11: Working Group on Biological Parameters | D11: ICES | E11: X | G11: 2
A12: POL | B12: WGEEL | C12: Working Group on Eel | D12: ICES | E12: X | G12: 1
A13: POL | B13: WGBAST | C13: Working Group on Baltic Salmon and Trout | D13: ICES | E13: X | G13: 2
A14: POL | B14: WGRFS | C14: Working Group on Recreational Fisheries Surveys | D14: ICES | E14: X | G14: 2
A15: POL | B15: WGCATCH | C15: Working Group on Commercial Catches | D15: ICES | E15: X | G15: 1
A16: POL | B16: WGBIFS | C16: Working Group on Baltic International Fish Survey | D16: ICES | E16: X | G16: 2 | H16: two meetings
A17: POL | B17: WGBFAS | C17: Baltic Fisheries Assessment Working Group | D17: ICES | E17: X | G17: 3 | H17: two meetings
A18: POL | B18: WGCHAIRS | C18: Annual Meeting of Advisory Working Groups Chairs | D18: ICES | E18: X | G18: 0 | H18: participation not possible due to other commitments
A19: POL | B19: WGBYC | C19: Working Group on Bycatch of Protected Species | D19: ICES | E19: X | G19: 1
A20: POL | B20: WGBIOP | C20: Working Group on Biological Parameters | D20: ICES | E20: X | G20: 1 | H20: four meetings
A21: POL | B21: WGSFD | C21: Working Group on Spatial Fisheries Data | D21: ICES | E21: X | G21: 0 | H21: participation not possible due to other commitments
A22: POL | B22: DIG | C22: Data and Information Group | D22: ICES | E22: X | G22: 1
A23: POL | B23: WKRDB | C23: Workshop on Regional Data Base | D23: ICES | E23: X | G23: 3 | H23: Name changed (see rows 41-42below)
A24: POL | B24: WKBaltSalmon | C24: Baltic salmon Benchmark WKBaltSalmon | D24: ICES | E24: X | G24: 2
A25: POL | B25: WGZE | C25: ICES Working Group on Zooplankton Ecology | D25: ICES | E25: X | G25: 1
A26: POL | B26: WGOH | C26: ICES Working Group on Oceanic Hydrography | D26: ICES | E26: X | G26: 1
A27: POL | B27: WGTRUTTA | C27: ICES Working Group with the Aim to Develop Assessment Models and Establish Biological Reference Points for Sea Trout (Anadromous Salmo trutta) Populations | D27: ICES | E27: X | G27: 1
A28: POL | B28: WKIBEBCA | C28: Workshop on Biological Input to Eastern Baltic Cod Assessment | D28: ICES | E28: X | G28: 0 | H28: No meeting in 2020
A29: POL | B29: BEWG | C29: Benthic Ecology Working Group | D29: ICES | E29: X | G29: 1
A30: POL | B30: SCRDB | C30: Steering Committee for the Regional Database & Estimation System | D30: ICES | E30: X | G30: 2 | H30: Name changed for WGRDBESGOV (see row 40 below)
A31: POL | B31: WKEMBYC | C31: ICES Workshop on fisheries Emergency Measures to minimize BYCatch of short-beaked common dolphins in the Bay of Biscay and harbour porpoise in the Baltic Sea | D31: ICES | G31: 1 | H31: in addition to Work Plan
A32: POL | B32: WGAcousticGov | C32: ICES Working Group on the Acoustic Trawl Data Portal Governonce | D32: ICES | G32: 1 | H32: in addition to Work Plan; two meetings
A33: POL | B33: WKTAF-BN | C33: ICES Workshop on Training for the Transparent Assessment Framework: Baltic Sea and Norway | D33: ICES | G33: 2 | H33: in addition to Work Plan; two meetings
A34: POL | B34: IBPBASH | C34: An Inter-Benchmark Process (IBP) on BAltic Sprat (Sprattus sprattus) and Herring (Clupea harengus) | D34: ICES | G34: 2 | H34: in addition to Work Plan
A35: POL | B35: WKRP-Change | C35: ICES Workshop of Fisheries Management Reference Points in a Changing Environment | D35: ICES | G35: 1 | H35: in addition to Work Plan
A36: POL | B36: WKLIFE X | C36: ICES Workshop on the Development of Quantitative Assessment Methodologies based on Life-history traits, exploitation characteristics, and other relevant parameters for data-limited stocks | D36: ICES | G36: 1 | H36: in addition to Work Plan
A37: POL | B37: WKBioArc | C37: ICES Workshop on Scale, Otolith Biochronology Archives | D37: ICES | G37: 1 | H37: in addition to Work Plan
A38: POL | B38: WKBALTIC | C38: ICES Workshop on the Ecosystem Based Management of the Baltic Sea | D38: ICES | G38: 1 | H38: in addition to Work Plan
B39: WGRDBESGOV | C39: ICES Working Group on Governance of the Regional Database & Estimation System | D39: ICES | G39: 2 | H39: in addition to Work Plan
A40: POL | B40: WKRDB-POP2 | C40: ICES Workshop on populating the RDBES data model | D40: ICES | G40: 5 | H40: in addition to Work Plan; two meetings
A41: POL | B41: WKRDB-EST2 | C41: ICES Workshop on RDBES data estimation | D41: ICES | G41: 2 | H41: in addition to Work Plan; three meetings
A42: POL | C42: ICES Workshop on registrations of cod liver worm | D42: ICES | G42: 1 | H42: in addition to Work Plan
A43: POL | B43: WKMixHer | C43: ICES Workshop on Mixing of Western and Central Baltic Herring Stocks | D43: ICES | G43: 1 | H43: in addition to Work Plan; two meetings
A44: POL | B44: RDBES | C44: RDBES Core Group | D44: ICES | G44: 1 | H44: in addition to Work Plan; 29 meetings
A45: POL | B45: NCs | C45: National Correspondents meetings | G45: 1 | H45: in addition to Work Plan; two meetings
A46: POL | C46: Workshop for standarization of observers methodologies | D46: CECAF | G46: 1 | H46: in addition to Work Plan
A47: POL | B47: ISSG SPB | C47: RCG ISSG SPB - RCG Inter Sessional Sub-Group on Case study of fisheries for small pelagics in the Baltic | G47: 3 | H47: in addition to Work Plan; 10 meetings
A48: POL | B48: ISSG Diadromous | C48: RCG ISSG Diadromous Fishes | G48: 2 | H48: in addition to Work Plan
A49: POL | B49: ISSG PETS | C49: RCG ISSG PETS meeting | G49: 2 | H49: in addition to Work Plan
A50: POL | B50: ISSG Stomach | C50: RCG ISSG on regionally coordinated stomach sampling | G50: 1 | H50: in addition to Work Plan
A51: POL | B51: ISSG Catch Effort | C51: RCG ISSG on Catch Effort and Sampling Overviews | G51: 2 | H51: Chair; in addition to Work Plan; 15 meetings
A52: POL | B52: ISSG SSF | C52: RCG ISSG on Small Scale Fisheries | G52: 1 | H52: in addition to Work Plan
A53: POL | B53: ISSG Data quality | C53: RCG ISSG on Data quality | G53: 2 | H53: in addition to Work Plan; four meetings
A54: POL | B54: ISSG Metier | C54: RCG ISSG Metier issues | G54: 1 | H54: in addition to Work Plan; nine meetings
A55: POL | B55: ISSG RWP | C55: RCG ISSG on the Development of Draft Regional work plan | G55: 1 | H55: in addition to Work Plan; eight meetings

Sheet Table7B_Follow up of Recommenda
A1: Table 7B: Follow-up of recommendations and agreements
J2: WP years | K2: 2020-2021
J3: AR year | K3: 2020
A4: MS | B4: Region | C4: RFMO/RFO/IO | D4: Source | E4: Section | F4: Topic | G4: Recommendation number | H4: Recommendation/ Agreement | I4: Follow-up action | J4: Comments | K4: MS action taken
A5: POL | B5: Other regions | C5: CECAF, SPRFMO | D5: LM 2016 | E5: 7C | F5: Sampling programme | G5: RCM LDF 2016 - 4 | H5: The current multi-annual and multi-lateral agreements for biological sampling in CECAF (partners: GER, LAT, LIT, NED, POL) and SPFRMO area (partners: GER, LIT, NED, POL) terminate as of 31st December 2016. Given that the current arrangements with a subcontractor can’t continue, a new set-up for the multi-lateral agreements is required. Poland and The Netherlands agreed to investigate possibilities to arrange a joint sampling plan. RCM LDF recommends Poland and The Netherlands to liaise and draft an agreement for the respective areas and to propose this draft to the other MS involved | I5: FULFILLED | J5: Sampling agreements for both regions (CECAF and SPRFMO) has been extended untill end of 2020.
A6: POL | B6: All regions | C6: ICES, GFCM | D6: LM 2019 | E6: 1G, 1H | F6: Surveys data | G6: NA NS&EA BAL R1 | H6: All data from mandatory research vessel surveys (Table 10 EU 2016/1251) should be made publicly available through an international database | I6: Ongoing | J6: Mandatory surveys funded under EUMAP and used for stock assessment, should be made publicly available. MS to start the process on providing survey data | K6: No specific action is needed - POL is ready to make survey data publicaly available once appropriate platform is set
A7: POL | B7: North Atlantic, North Sea & Eastern Arctic | C7: ICES | D7: LM 2019 | E7: 1G, 1H | F7: Cost sharing - surveys | G7: RCG NANS&EA 2019 – D1 | H7: Cost-sharing agreement for participation to the International Ecosystem Survey in the Nordic Seas 2020-2021 | I7: NA | J7: Not applicable to POL | K7: NA
A8: POL | B8: North Atlantic, North Sea & Eastern Arctic | C8: ICES | D8: LM 2019 | E8: 1G, 1H | F8: Cost sharing - surveys | G8: RCG NANS&EA 2019 – D3 | H8: Cost-sharing agreement for participation to the International Blue Whiting survey 2020-2021 | I8: NA | J8: Not applicable to POL | K8: NA
A9: POL | B9: Other regions | C9: CECAF, SPRFMO | D9: LM 2019 | E9: NA | F9: RDB | G9: RCG-LDF Recommendation 2019-1 | H9: RCG LDF recommends that MS continue to update historical data as well as most recent data prior to the 2020 RCG LDF data call. | I9: Fulfilled | J9: MS to update their data and promote set up of routine procedures to provide data to the RDB, prior to the RCG LDF 2020 data call | K9: POL data up to date
A10: POL | B10: North Atlantic, North Sea & Eastern Arctic | C10: ICES | D10: LM 2019 | E10: NA | F10: RDBES funding | G10: NA NS&EA BAL 2019 – D5 | H10: Central resources to support work in the RCGs - a need for robust long term funding of the RDBES development | I10: On stand-by | J10: No action needed yet as other financial solution was implemented by ICES | K10: No action needed yet. POL ready to follow recommendation if needed
A11: POL | B11: All regions | C11: NA | D11: LM 2019 | E11: NA | F11: Governance of RCGs | G11: RCG Baltic 2019 – D6 ; RCG NANS&EA and RCG Baltic 2019 – D6 | H11: Central resources to support work in the RCGs - a need for robust long term funding | I11: On stand-by | J11: Need to follow the recommendation pending the outcomes of the EU project dedicated to this issue - the SECWEB project (under EU Grant MARE/2020/08) dedicated to develop mechanisms to support the planning and execution of RCGs' administrative tasks and to establish a long term supportive structure | K11: POL is involved in consultation in the SECWEB project
A12: POL | B12: Baltic Sea, North Atlantic, North Sea & Eastern Arctic | C12: ICES | D12: LM 2019 | E12: NA | F12: RDB Data Policy | G12: NA NS&EA BS D1 and RCG Baltic D2 | H12: Annual fisheries overview – approve content | I12: Approved | J12: NCs to approve the idea, concept and content of the annual fisheries overview document and whether this is a document that will be beneficial to the work of RCG and the assessment working groups | K12: The idea, concept and content of the annual fisheries overview document approved by POL
A13: POL | B13: Baltic Sea, North Atlantic, North Sea & Eastern Arctic | C13: ICES | D13: LM 2019 | E13: NA | F13: RDB Data Policy | G13: NA NS&EA BS D2 | H13: Annual fisheries overview – to be public available | I13: On stand-by | J13: Data provided to RCGs in a given year not necessarily contain the finally approved data. An appropriate reservation is necessary when making this data public | K13: Decision pending - subject to outcomes of futher consultations
A14: POL | B14: Baltic Sea | C14: ICES | D14: LM 2019 | E14: 1B, 1C, 4A | F14: Sampling design | G14: RCG Baltic 2019 – D5 | H14: Moving towards Regional Sampling Plan on fisheries for small pelagic in the Baltic | I14: Approved | J14: To make progress and move towards a regional sampling programme in the Baltic it is of major importance that the MS are involved and participate in the development and the planned Workshop | K14: POL actively participates in the work of the ISSG Case study of fisheries for small pelagics in the Baltic
A15: POL | B15: North Atlantic, North Sea & Eastern Arctic | C15: ICES | D15: LM 2019 | E15: NA | F15: RCG governance | G15: RCG NA NS&EA 2019 – D4 | H15: Establish the current RCG NS&EA RoP as the RoP for the merged RCG NA and RCG NS&EA group | I15: Fulfilled | K15: POL adopted the RCG NS&EA RoPs as the RoP for the merged RCG NA and RCG NS&EA group
A16: POL | B16: North Atlantic, North Sea & Eastern Arctic | C16: ICES | D16: LM 2019 | E16: NA | F16: RCGs ISSg work | G16: RCG Baltic and RCG NA NSEA 2019: D9 | H16: Decision to be taken on ISSG 2019-2020. NC to agree on the list of ISSG that are suggested for 2019-2020. | I16: Approved | K16: Approved
A17: POL | B17: Baltic Sea, North Atlantic, North Sea & Eastern Arctic | C17: ICES | D17: LM 2019 | E17: NA | F17: RCG governance | G17: NA NS&EA BAL D4 | H17: Back to back meeting’ RCG Baltic and RCG NA NS&EA | I17: Approved | K17: Approved
A18: POL | B18: Baltic Sea, North Atlantic, North Sea & Eastern Arctic | C18: ICES | D18: LM 2020 | E18: 4C | F18: RDB Data Policy | G18: NANSEA BALTIC_2020_D01 | H18: NC’s to approve whether the overviews can be made available to WGs that have been pre-approved for access to aggregated RDB data and agree on the process | I18: Approved | J18: Details in the RCG NA NS&EA RCG Baltic 2020 report PART I Section 5.2.1, Annex 3 (SCRDB group list) and Annex 4 (review data policy) | K18: Approved at NCs Decision Meeting in 2020
A19: POL | B19: Baltic Sea, North Atlantic, North Sea & Eastern Arctic | C19: ICES | D19: LM 2020 | E19: 7C | F19: Metiers (Code list) | G19: NANSEA BALTIC_2020_D02 | H19: NC’s to approve whether the new codes for metiers and reference lists will be used and implemented by MS | I19: Approved | J19: Codes for metiers and reference lists that shall be used by Member States as detailed in RCG NA NS&EA RCG Baltic 2020 report PART I Section 5.2.2. Feedback from the ISSG on "Metier issues" | K19: Approved at NCs Decision Meeting in 2020
A20: POL | B20: All regions | C20: ICES | D20: LM 2020 | E20: 5A | F20: Data quality | G20: NANSEA BALTIC_2020_R04 | H20: MS should take notice of the advice made for completing Table 5A: - Provide direct links to relevant documentations where possible, - Ensure any links provided are correct and work, - Ensure the documents referenced are reasonably recent (>2014), - Provide the date when the documentation was written or updated, - Provide explanations of why this is good/best practice e.g. give explicit references to any expert group reports that define the practices that are being followed, - Double-check whether “NA” is a legitimate answer to a particular question. | I20: Fulfilled | J20: Details in the RCG NA NS&EA RCG Baltic 2020 report PART III Section 4 ISSG Data Quality report | K20: Links to documents provided in Table 5A checked and working, documentation revised.
A21: POL | B21: Baltic Sea, North Atlantic, North Sea & Eastern Arctic | C21: ICES | D21: LM 2020 | E21: NA | F21: RDB Data Policy | G21: NANSEA BALTIC_2020_D03 | H21: Approve the proposed changes to the RDB/RDBES Data Policy. These changes are: i) minor changes to the text, ii) allow NCs to pre-approve access to detailed data for selected ICES expert groups, iii) minor change to the aggregation guidelines | I21: Approved | J21: Revised RDB Data Policy (with tracked changes) on the RCG SharePoint. -> 02. Background documents -> 20_Data_Policy_RDB_RDBES-DEC2019_revised.docx | K21: Approved at NCs Decision Meeting in 2020
A22: POL | B22: Baltic Sea, North Atlantic, North Sea & Eastern Arctic | C22: ICES | D22: LM 2020 | E22: NA | F22: RDB Data Policy | G22: NANSEA BALTIC_2020_D04 | H22: Approve the "Conditions for detailed RDBES data use" document | I22: Approved | J22: A recommendation was made by the RCGs to the SCRDB to produce a document that people within ICES expert groups who have been given access to detailed RDB/RDBES data could sign to say they have read and agree to abide by the conditions of using the data. The "Conditions for detailed RDBES data use" document can be found on the RCG SharePoint. -> 02. Background documents -> 20_RDBES_DataAccess.docx | K22: Approved at NCs Decision Meeting in 2021
